Workbook

Sheet Site Profiles
F1: 03 Hudet | O1: Site profiles | R1: Site Profile Generator This is an interactive profile generator that displays snapshots of each of the site's DTM Ethiopia's Mobility Tracking assessments. | W1: 2 | X1: 3 | Y1: 4 | Z1: 5 | AA1: 6 | AB1: 7 | AC1: 8 | AD1: 9 | AE1: 10 | AF1: 11 | AG1: 12 | AH1: 13 | AI1: 14 | AJ1: 15 | AK1: 16 | AL1: 17 | AM1: 18 | AN1: 19 | AO1: 20 | AP1: 21 | AQ1: 22 | AR1: 23 | AS1: 24 | AT1: 25 | AU1: 26 | AV1: 27 | AW1: 28 | AX1: 29 | AY1: 30 | AZ1: 31 | BA1: 32 | BB1: 33 | BC1: 34 | BD1: 35 | BE1: 36 | BF1: 37 | BG1: 38 | BH1: 39 | BI1: 40 | BJ1: 41 | BK1: 42 | BL1: 43 | BM1: 44 | BN1: 45 | BO1: 46 | BP1: 47 | BQ1: 48 | BR1: 49 | BS1: 50 | BT1: 51 | BU1: 52 | BV1: 53 | BW1: 54 | BX1: 55 | BY1: 56 | BZ1: 57 | CA1: 58 | CB1: 59 | CC1: 60 | CD1: 61 | CE1: 62 | CF1: 63 | CG1: 64 | CH1: 65 | CI1: 66 | CJ1: 67 | CK1: 68 | CL1: 69 | CM1: 70 | CN1: 71 | CO1: 72 | CP1: 73 | CQ1: 74 | CR1: 75 | CS1: 76 | CT1: 77 | CU1: 78 | CV1: 79 | CW1: 80 | CX1: 81 | CY1: 82 | CZ1: 83 | DA1: 84 | DB1: 85 | DC1: 86 | DD1: 87 | DE1: 88 | DF1: 89 | DG1: 90 | DH1: 91 | DI1: 92 | DJ1: 93 | DK1: 94 | DL1: 95 | DM1: 96 | DN1: 97 | DO1: 98 | DP1: 99 | DQ1: 100 | DR1: 101 | DS1: 102 | DT1: 103 | DU1: 104 | DV1: 105 | DW1: 106 | DX1: 107 | DY1: 108 | DZ1: 109 | EA1: 110 | EB1: 111 | EC1: 112 | ED1: 113 | EE1: 114 | EF1: 115 | EG1: 116 | EH1: 117 | EI1: 118 | EJ1: 119 | EK1: 120 | EL1: 121 | EM1: 122 | EN1: 123 | EO1: 124 | EP1: 125 | EQ1: 126 | ER1: 127 | ES1: 128 | ET1: 129 | EU1: 130 | EV1: 131 | EW1: 132 | EX1: 133 | EY1: 134 | EZ1: 135 | FA1: 136 | FB1: 137 | FC1: 138 | FD1: 139 | FE1: 140 | FF1: 141 | FG1: 142 | FH1: 143 | FI1: 144 | FJ1: 145 | FK1: 146 | FL1: 147 | FM1: 148 | FN1: 149 | FO1: 150 | FP1: 151 | FQ1: 152 | FR1: 153 | FS1: 154 | FT1: 155 | FU1: 156 | FV1: 157 | FW1: 158 | FX1: 159 | FY1: 160 | FZ1: 161 | GA1: 162 | GB1: 163 | GC1: 164 | GD1: 165 | GE1: 166 | GF1: 167 | GG1: 168 | GH1: 169 | GI1: 170 | GJ1: 171 | GK1: 172 | GL1: 173 | GM1: 174 | GN1: 175 | GO1: 176 | GP1: 177 | GQ1: 178 | GR1: 179 | GS1: 180 | GT1: 181 | GU1: 182 | GV1: 183 | GW1: 184 | GX1: 185 | GY1: 186 | GZ1: 187 | HA1: 188 | HB1: 189 | HC1: 190 | HD1: 191 | HE1: 192 | HF1: 193 | HG1: 194 | HH1: 195 | HI1: 196 | HJ1: 197 | HK1: 198 | HL1: 199 | HM1: 200 | HN1: 201 | HO1: 202 | HP1: 203 | HQ1: 204
L2: DISPLACEMENT TRACKING MATRIX ETHIOPIA 2017
M3: Published on: | O3: =TODAY() -> 2019-01-03
A4: Survey Date: | C4: =VLOOKUP(F1,'Static Data'!A:C,3,FALSE) -> 2018-11-11 | O4: =VLOOKUP($C$6,AllData,AB$1,FALSE)&", "&VLOOKUP($C$6,AllData,AC$1,FALSE)&", "&VLOOKUP($C$6,AllData,AD$1,FALSE)&", "&VLOOKUP($C$6,AllData,AE$1,FALSE)&" ("&ROUND(VLOOKUP($C$6,AllData,AF$1,FALSE),5)&", "&ROUND(VLOOKUP($C$6,AllData,AG$1,FALSE),5)&")"&" - " &VLOOKUP($C$6,AllData,GB$1,FALSE) -> Somali, Dawa, Hudet, Hudat 03 (4.77081, 39.24292) - Conflict
G5: Site Management | M5: =VLOOKUP($C$6,AllData,BT$1,FALSE) -> 1480 | N5: =VLOOKUP($C$6,AllData,CG$1,FALSE) -> 8917
B6: Site ID: | C6: =VLOOKUP(F1,'Static Data'!A:B,2,FALSE) -> SO115 | G6: ="Is there SMA at the site: "&IF(VLOOKUP($C$6,AllData,AX$1,FALSE)=0,"None",VLOOKUP($C$6,AllData,AX$1,FALSE)) -> Is there SMA at the site: Yes | M6: Households | O6: IDPs
C7: Site open date: | D7: =VLOOKUP($C$6,AllData,AM$1,FALSE) -> 2012-05-18 | G7: ="SMA focal point name: "&IF(VLOOKUP($C$6,AllData,BB$1,FALSE)=0,"None",VLOOKUP($C$6,AllData,BB$1,FALSE)) -> SMA focal point name: Issack Mahammed
C8: Expected closing date: | D8: =VLOOKUP($C$6,AllData,AN$1,FALSE) -> Unknown | G8: ="Need for WASH: "&IF(VLOOKUP($C$6,AllData,BE$1,FALSE)=0,"None",VLOOKUP($C$6,AllData,BE$1,FALSE)) -> Need for WASH: Yes | M8: Male | O8: Female
B9: Site type: | C9: =VLOOKUP($C$6,AllData,AK$1,FALSE) -> Host community/families | G9: ="Need for Health: "&IF(VLOOKUP($C$6,AllData,BF$1,FALSE)=0,"None",VLOOKUP($C$6,AllData,BF$1,FALSE)) -> Need for Health: Yes | M9: =VLOOKUP($C$6,AllData,BU$1,FALSE) -> 925 | N9: 0-4 | O9: =VLOOKUP($C$6,AllData,CA$1,FALSE) -> 925
B10: Land of site: | C10: =VLOOKUP($C$6,AllData,AP$1,FALSE) -> Public/Government | G10: ="Need for Shelter / NFIs: "&IF(VLOOKUP($C$6,AllData,BG$1,FALSE)=0, "None",VLOOKUP($C$6,AllData,BG$1,FALSE)) -> Need for Shelter / NFIs: Yes | M10: =VLOOKUP($C$6,AllData,BV$1,FALSE) -> 1517 | N10: 5-14 | O10: =VLOOKUP($C$6,AllData,CB$1,FALSE) -> 1369
G11: ="Need for Food: "&IF(VLOOKUP($C$6,AllData,BH$1,FALSE)=0, "None",VLOOKUP($C$6,AllData,BH$1,FALSE)) -> Need for Food: Yes | M11: =VLOOKUP($C$6,AllData,BW$1,FALSE) -> 444 | N11: 15-17 | O11: =VLOOKUP($C$6,AllData,CC$1,FALSE) -> 481
B12: Majority of IDPs originated from: | G12: ="Need for Protection: "&IF(VLOOKUP($C$6,AllData,BI$1,FALSE)=0,"None",VLOOKUP($C$6,AllData,BI$1,FALSE)) -> Need for Protection: Yes | M12: =VLOOKUP($C$6,AllData,BX$1,FALSE) -> 1110 | N12: 18-59 | O12: =VLOOKUP($C$6,AllData,CD$1,FALSE) -> 1443
B13: =VLOOKUP($C$6,AllData,BL$1,FALSE)&", "&VLOOKUP($C$6,AllData,BM$1,FALSE)&", "&VLOOKUP($C$6,AllData,BN$1,FALSE)&", "&VLOOKUP($C$6,AllData,BO$1,FALSE) -> Oromia, Borena, Arero, Hallu | G13: ="Need for Education: "&IF(VLOOKUP($C$6,AllData,BJ$1,FALSE)=0,"None",VLOOKUP($C$6,AllData,BJ$1,FALSE)) -> Need for Education: Yes | M13: =VLOOKUP($C$6,AllData,BY$1,FALSE) -> 333 | N13: 60+ | O13: =VLOOKUP($C$6,AllData,CE$1,FALSE) -> 370
G14: ="Need for Livelihood: "&IF(VLOOKUP($C$6,AllData,BK$1,FALSE)=0,"None",VLOOKUP($C$6,AllData,BK$1,FALSE)) -> Need for Livelihood: Yes | M14: =SUM(M9:M13) -> 4329 | N14: TOTAL | O14: =SUM(O9:O13) -> 4588
A16: =IF(ISERROR(INDEX(rqt_assistances!C:C,MATCH(1,(rqt_assistances!B:B='Site Profiles'!$C$6)*(rqt_assistances!A:A='Site Profiles'!#REF!),0))),"",(INDEX(rqt_assistances!C:C,MATCH(1,(rqt_assistances!B:B='Site Profiles'!$C$6)*(rqt_assistances!A:A='Site Profiles'!#REF!),0)))) ->  | C16: =IF(ISERROR(INDEX(rqt_assistances!D:D,MATCH(1,(rqt_assistances!B:B='Site Profiles'!$C$6)*(rqt_assistances!A:A='Site Profiles'!#REF!),0))),"",(INDEX(rqt_assistances!D:D,MATCH(1,(rqt_assistances!B:B='Site Profiles'!$C$6)*(rqt_assistances!A:A='Site Profiles'!#REF!),0)))) ->  | J16: =IF(ISERROR(INDEX(rqt_assistances!E:E,MATCH(1,(rqt_assistances!B:B='Site Profiles'!$C$6)*(rqt_assistances!A:A='Site Profiles'!#REF!),0))),"",(INDEX(rqt_assistances!E:E,MATCH(1,(rqt_assistances!B:B='Site Profiles'!$C$6)*(rqt_assistances!A:A='Site Profiles'!#REF!),0)))) ->  | P16: =IF(ISERROR(INDEX(rqt_assistances!F:F,MATCH(1,(rqt_assistances!B:B='Site Profiles'!$C$6)*(rqt_assistances!A:A='Site Profiles'!#REF!),0))),"",(INDEX(rqt_assistances!F:F,MATCH(1,(rqt_assistances!B:B='Site Profiles'!$C$6)*(rqt_assistances!A:A='Site Profiles'!#REF!),0)))) -> 
A17: Persons with special vulnerabilities
A18: =VLOOKUP($C$6,AllData,CH$1,FALSE) -> 37 | B18: Pregnant girls under 18 years | H18: =VLOOKUP($C$6,AllData,CK$1,FALSE) -> 16 | I18: Persons with Mental or Physical Disabilities under 18 years
A19: =VLOOKUP($C$6,AllData,CI$1,FALSE) -> 170 | B19: Pregnant women over 18 years | H19: =VLOOKUP($C$6,AllData,CL$1,FALSE) -> 25 | I19: Persons with Mental or Physical Disabilities over 18 years
A20: =VLOOKUP($C$6,AllData,CJ$1,FALSE) -> 200 | B20: Breastfeeding mothers | H20: =VLOOKUP($C$6,AllData,CM$1,FALSE) -> 25 | I20: Persons with chronic diseases/serious medical conditions
A22: Water | L22: Hygiene / Sanitation
A23: Site's main water source: | G23: =VLOOKUP($C$6,AllData,DB$1,FALSE) -> On-site (< 20 minutes) | J23: Condition of most of the latrines: | N23: =VLOOKUP($C$6,AllData,DJ$1,FALSE) -> No toilets
A24: Main non-drinking water source provided or available: | G24: =VLOOKUP($C$6,AllData,DC$1,FALSE) -> None | M24: Functioning toilets available on-site: | N24: =VLOOKUP($C$6,AllData,DK$1,FALSE) -> 
A25: Main drinking water collection sources available: | G25: =VLOOKUP($C$6,AllData,DE$1,FALSE) ->  | M25: Toilets and bathrooms have locks from the inside: | N25: =VLOOKUP($C$6,AllData,DL$1,FALSE) -> No
A26: Number of protected wells (hand pumps/motorized boreholes): | G26: =VLOOKUP($C$6,AllData,GD$1,FALSE) -> 2 | M26: Availability of separate male and female toilets: | N26: =VLOOKUP($C$6,AllData,DN$1,FALSE) -> 
A27: Number of protected springs: | G27: =VLOOKUP($C$6,AllData,GE$1,FALSE) -> 0 | M27: Availability of separate male and female bathing areas: | N27: =VLOOKUP($C$6,AllData,DO$1,FALSE) -> No
A28: Number of other water sources available: | G28: =VLOOKUP($C$6,AllData,GF$1,FALSE) -> 0 | M28: Garbage Disposal Type: | N28: =VLOOKUP($C$6,AllData,DP$1,FALSE) -> No waste disposal system
A29: Average amount of water available per day/person: | G29: =VLOOKUP($C$6,AllData,DG$1,FALSE) -> < 5 liters
A30: Main problem with the water: | G30: =VLOOKUP($C$6,AllData,DH$1,FALSE) -> 
A31: Food / Nutrition
D32: Access to food: | E32: =VLOOKUP($C$6,AllData,DT$1,FALSE) -> No | M32: Screening for malnorished children and/or PLW conducted in the area: | N32: =VLOOKUP($C$6,AllData,DX$1,FALSE) -> Yes
D33: IDPs on the site have access to a market | E33: =VLOOKUP($C$6,AllData,DU$1,FALSE) -> Yes | M33: Availability of supplementary feeding for pregnant and lactating mothers: | N33: =VLOOKUP($C$6,AllData,DY$1,FALSE) -> No
D34: Most common source for food: | E34: =VLOOKUP($C$6,AllData,DV$1,FALSE) -> Host Community Donation | M34: Availability of supplementary feeding for children: | N34: =VLOOKUP($C$6,AllData,DZ$1,FALSE) -> No
A35: Education | J35: Protection
F36: Access to formal primary education for children: | G36: =VLOOKUP($C$6,AllData,GG$1,FALSE) -> Yes | M36: Security on-site/settlement areas: | N36: =VLOOKUP($C$6,AllData,EZ$1,FALSE) -> Yes
F37: Location of formal primary education facilities/services: | G37: =VLOOKUP($C$6,AllData,GH$1,FALSE) -> Offsite | M37: Main security provider: | N37: =VLOOKUP($C$6,AllData,FB$1,FALSE) -> Local authorities
F38: Distance to nearest formal primary education facility: | G38: =VLOOKUP($C$6,AllData,GI$1,FALSE) -> 3-5km | M38: # children friendly spaces: | N38: =VLOOKUP($C$6,AllData,FJ$1,FALSE) -> 0
M39: # women friendly spaces: | N39: =VLOOKUP($C$6,AllData,FK$1,FALSE) -> 0
A40: Health | M40: Adequate lighting in communal points: | N40: =VLOOKUP($C$6,AllData,FQ$1,FALSE) -> No lighting
A41: Prevalent health problems | G41: Access to health facilities: | H41: =VLOOKUP($C$6,AllData,EG$1,FALSE) -> No
A42: 1st most: | B42: =IF(VLOOKUP($C$6,AllData,EA$1,FALSE)="Other",VLOOKUP($C$6,AllData,EA$1,FALSE) &" - "&VLOOKUP($C$6,AllData,EB$1,FALSE),VLOOKUP($C$6,AllData,EA$1,FALSE)) -> Pneumonia | G42: Location of health facilities/services: | H42: =VLOOKUP($C$6,AllData,EI$1,FALSE) -> 
A43: 2nd most: | B43: =IF(VLOOKUP($C$6,AllData,EC$1,FALSE)="Other",VLOOKUP($C$6,AllData,EC$1,FALSE)&" - "&VLOOKUP($C$6,AllData,ED$1,FALSE),VLOOKUP($C$6,AllData,EC$1,FALSE)) -> Malaria | G43: Health facilities/services provider: | H43: =VLOOKUP($C$6,AllData,EJ$1,FALSE) ->  | J43: Livelihood
A44: 3rd most: | B44: =IF(VLOOKUP($C$6,AllData,EE$1,FALSE)="Other",VLOOKUP($C$6,AllData,EE$1,FALSE)&" - "&VLOOKUP($C$6,AllData,EF$1,FALSE),VLOOKUP($C$6,AllData,EE$1,FALSE)) -> Diarrhea | G44: Access to medicine: | H44: =VLOOKUP($C$6,AllData,EL$1,FALSE) ->  | N44: Occupation/trade of majority of displaced households: | O44: =VLOOKUP($C$6,AllData,EQ$1,FALSE) -> Collecting firewood
N45: Access to income generating activities | O45: =VLOOKUP($C$6,AllData,ET$1,FALSE) -> No
A46: Communication | N46: Last food distribution on site: | O46: =VLOOKUP($C$6,AllData,EU$1,FALSE) -> 
E47: Most information from: | F47: =VLOOKUP($C$6,AllData,FR$1,FALSE) -> Mobile Phone | N47: Livestock on site: | O47: =VLOOKUP($C$6,AllData,EV$1,FALSE) -> No
N48: IDPs have access to land for cultivation: | O48: =VLOOKUP($C$6,AllData,EW$1,FALSE) -> No
N49: % of HH in the site with source of income: | O49: =VLOOKUP($C$6,AllData,ES$1,FALSE) -> 0
A50: Shelter
A51: =VLOOKUP($C$6,AllData,CW$1,FALSE) -> None | C51: living outside (no shelter) | J51: =VLOOKUP($C$6,AllData,DA$1,FALSE) -> None | K51: with access to electricity
A52: =VLOOKUP($C$6,AllData,CX$1,FALSE) -> 25-50 % | C52: living in standard temporary shelter | J52: =VLOOKUP($C$6,AllData,FV$1,FALSE) -> None | K52: with access to mosquito net
A53: =VLOOKUP($C$6,AllData,CY$1,FALSE) -> None | C53: living in collective centers | J53: Safety concerns with current shelter? | K53: =VLOOKUP($C$6,AllData,FW$1,FALSE) -> Yes
A54: =VLOOKUP($C$6,AllData,CZ$1,FALSE) -> None | C54: living in host family permanent houses | J54: Need for shelter repair materials? | K54: =VLOOKUP($C$6,AllData,GA$1,FALSE) -> Yes
D55: Most needed type of NFI: | E55: =VLOOKUP($C$6,AllData,FX$1,FALSE) -> Kitchen sets
D56: Second most needed type of NFI: | E56: =VLOOKUP($C$6,AllData,FY$1,FALSE) -> Bedding sets
D57: Third most needed type of NFI: | E57: =VLOOKUP($C$6,AllData,FZ$1,FALSE) -> Hygiene kits
A58: Displacement Tracking Matrix - International Organization for Migration 2018

Sheet DATA (hidden)
B1: 2 | C1: 3 | D1: 4 | E1: 5 | F1: 6 | G1: 7 | H1: 8 | I1: 9 | J1: 10 | K1: 11 | L1: 12 | M1: 13 | N1: 14 | O1: 15 | P1: 16 | Q1: 17 | R1: 18 | S1: 19 | T1: 20 | U1: 21 | V1: 22 | W1: 23 | X1: 24 | Y1: 25 | Z1: 26 | AA1: 27 | AB1: 28 | AC1: 29 | AD1: 30 | AE1: 31 | AF1: 32 | AG1: 33 | AH1: 34 | AI1: 35 | AJ1: 36 | AK1: 37 | AL1: 38 | AM1: 39 | AN1: 40 | AO1: 41 | AP1: 42 | AQ1: 43 | AR1: 44 | AS1: 45 | AT1: 46 | AU1: 47 | AV1: 48 | AW1: 49 | AX1: 50 | AY1: 51 | AZ1: 52 | BA1: 53 | BB1: 54 | BC1: 55 | BD1: 56 | BE1: 57 | BF1: 58 | BG1: 59 | BH1: 60 | BI1: 61 | BJ1: 62 | BK1: 63 | BL1: 64 | BM1: 65 | BN1: 66 | BO1: 67 | BP1: 68 | BQ1: 69 | BR1: 70 | BS1: 71 | BT1: 72 | BU1: 73 | BV1: 74 | BW1: 75 | BX1: 76 | BY1: 77 | BZ1: 78 | CA1: 79 | CB1: 80 | CC1: 81 | CD1: 82 | CE1: 83 | CF1: 84 | CG1: 85 | CH1: 86 | CI1: 87 | CJ1: 88 | CK1: 89 | CL1: 90 | CM1: 91 | CN1: 92 | CO1: 93 | CP1: 94 | CQ1: 95 | CR1: 96 | CS1: 97 | CT1: 98 | CU1: 99 | CV1: 100 | CW1: 101 | CX1: 102 | CY1: 103 | CZ1: 104 | DA1: 105 | DB1: 106 | DC1: 107 | DD1: 108 | DE1: 109 | DF1: 110 | DG1: 111 | DH1: 112 | DI1: 113 | DJ1: 114 | DK1: 115 | DL1: 116 | DM1: 117 | DN1: 118 | DO1: 119 | DP1: 120 | DQ1: 121 | DR1: 122 | DS1: 123 | DT1: 124 | DU1: 125 | DV1: 126 | DW1: 127 | DX1: 128 | DY1: 129 | DZ1: 130 | EA1: 131 | EB1: 132 | EC1: 133 | ED1: 134 | EE1: 135 | EF1: 136 | EG1: 137 | EH1: 138 | EI1: 139 | EJ1: 140 | EK1: 141 | EL1: 142 | EM1: 143 | EN1: 144 | EO1: 145 | EP1: 146 | EQ1: 147 | ER1: 148 | ES1: 149 | ET1: 150 | EU1: 151 | EV1: 152 | EW1: 153 | EX1: 154 | EY1: 155 | EZ1: 156 | FA1: 157 | FB1: 158 | FC1: 159 | FD1: 160 | FE1: 161 | FF1: 162 | FG1: 163 | FH1: 164 | FI1: 165 | FJ1: 166 | FK1: 167 | FL1: 168 | FM1: 169 | FN1: 170
A2: 1.1.c.1 Site ID (SSID) | B2: 1.1.d.1 Site Name | C2: 1.1.a.2 Survey Round | D2: 1.1.a.1 Survey date (DD.MM.YYYY) | E2: 1.1.b.1 Enumerator name (person filling out the form) | F2: 1.1.b.2 Sex of Enumerator | G2: 1.1.e.1 Region | H2: 1.1.e.2 Zone | I2: 1.1.e.3 Woreda | J2: 1.1.e.4 Kebele | K2: 1.1.f.2 Site GPS Latitude | L2: 1.1.f.1 Site GPS Longitude | M2: 1.4.a.2 Site open? | N2: 1.4.c.1 Closing Date (DD.MM.YYYY) | O2: 1.3.a.1 Site Classification | P2: 1.3.b.1 Site Type | Q2: If site type is pther, please specify | R2: 1.4.a.1 Site start/open date (DD.MM.YYYY) | S2: 1.4.b.1 Site Expected Closing Date | T2: 1.1.i.1 Accessibility to site | U2: 1.3.d.1 Ownership of land of site | V2: 1.3.c.1 What is the most common type of shelter | W2: If other type of shelter or No Answer, please specify | X2: 1.2.b.1 Is there a Site Management Committee (SMC) at the site? | Y2: 1.2.b.3 Number of women participating in the Site Management Committee (SMC) | Z2: 1.2.b.2 Is the site management committee (SMC) made up from the community at the site? | AA2: 1.2.b.7 SMC member name or focal point at site | AB2: 1.2.b.8 SMC member phone number | AC2: 1.2.c.1 Is there a Site Management Agency (SMA) at the site? | AD2: 1.2.c.2 Type of SMA | AE2: If SMA is other, specify | AF2: 1.2.c.3 Name of SMA | AG2: 1.2.c.4 SMA member name or focal point at site | AH2: 1.2.c.5 SMA member phone number | AI2: 1.2.a.1 Is there any registration activity/IDP List Maintained | AJ2: 1.2.w.2 Is WASH need at the site? | AK2: 1.2.o.1 Is HEALTH need at the site? | AL2: 1.2.p.1 Is SHELTER/NFI need at the site? | AM2: 1.2.q.1 Is FOOD need at the site? | AN2: 1.2.r.1 Is PROTECTION need at the site? | AO2: 1.2.s.1 Is EDUCATION need at the site? | AP2: 1.2.t.1 Is LIVELIHOOD need at the site? | AQ2: 1.5.b.1 Place of Origin of the largest IDP group in Camp (Region) | AR2: 1.5.b.2 Place of Origin of the largest IDP group in Camp (Zone) | AS2: 1.5.b.3 Place of Origin of the largest IDP group in Camp (Woreda) | AT2: 1.5.b.4 Place of Origin of the largest IDP group in Camp (Kebele) | AU2: 1.5.c.1 Place of Origin of the second largest IDP group (Region) | AV2: 1.5.c.2 Place of Origin of the second largest IDP group (Zone) | AW2: 1.5.c.3 Place of Origin of the second largest IDP group (Woreda) | AX2: 1.5.c.4 Place of Origin of the second largest IDP group (Kebele) | AY2: 2.1.a.1 Total Number of IDP Families/HHs | AZ2: 2.1.c.1 Number of Males by age: 0-4 year | BA2: 2.1.c.1 Number of Males by age: 5-14 year | BB2: 2.1.c.1 Number of Males by age: 15-17 year | BC2: 2.1.c.1 Number of Males by age: 18-59 year | BD2: 2.1.c.1 Number of Males by age: 60+ year | BE2: 2.1.b.2 Total number of IDP Male Individuals | BF2: 2.1.d.1 Number of Females by age: 0-4 year | BG2: 2.1.d.1 Number of Females by age: 15-14 year | BH2: 2.1.d.1 Number of Females by age: 15-17 year2 | BI2: 2.1.d.1 Number of Females by age: 18-59 year | BJ2: 2.1.d.1 Number of Females by age: 60+ year | BK2: 2.1.b.2 Total number of IDP Female Individuals | BL2: 2.1.b.2 Total number of IDP | BM2: 2.2.c.3 Number of pregnant girls under 18 | BN2: 2.2.c.4 Number of pregnant women over 18 | BO2: 2.2.d.1 Number of breastfeeding mOthers | BP2: 2.2.g.1 Number of persons with Disabilities under 18 | BQ2: 2.2.h.1 Number of persons with Disabilities over 18 | BR2: 2.2.i.2 Number of children at risk (Unaccompanied and separated children) | BS2: 2.2.f.1 Number of Persons with Chronic Diseases or Serious Medical Conditions | BT2: 2.2.n.1 Number of single female-headed households | BU2: 2.2.p.1 Number of child-headed households | BV2: 2.2.o.1 Number of MALE-headed households | BW2: 2.3.c.1 Date of arrival of first IDP group | BX2: 2.3.c.2 Date of arrival of last IDP group | BY2: 2.3.e.1 Area of intended return for largest IDP group | BZ2: 2.3.b.4 Have IDPs previously been displaced | CA2: 2.3.e.7 What is preventing the largest IDP group from returning home? | CB2: 3.1.a.1 Percentage of HH living outside (no shelter) | CC2: 3.8.p.7 Percentage of HH living in standard temporary shelter | CD2: 3.8.p.9 Percentage of HH living in collective centers | CE2: 3.8.p.10 Percentage of HH living in host family permanent houses | CF2: 3.2.a.1 Percentage of HH with access to electricity | CG2: 4.1.a.1 Location of site's main water source (walking, one-way) | CH2: 4.1.b.1 Main non-drinking water source provided or available | CI2: If main non-drinking water source is other, please specify | CJ2: 4.1.f.1 What is the main drinking water source provided or available | CK2: If main drinking water source is other, please specify | CL2: 4.2.a.1 Average amount of water available per day and per person | CM2: 4.3.e.1 What is the main problem with the water? | CN2: If main problem with water is other, please specify | CO2: 4.4.j.1 Condition of most of the latrines | CP2: 4.4.a.1 Number of functioning toilets available on-site | CQ2: 4.8.b.1 Do toilets and bathrooms have locks from the inside | CR2: 4.1.g.1 Is the drinking water potable ? | CS2: 4.4.b.1 Availability of separate male and female toilets | CT2: 4.5.b.1 Availability of separate male and female bathing areas | CU2: 4.6.a.1 Garbage Disposal Type | CV2: If other garbage disposal, please specify | CW2: 4.4.n.1 Evidence of open defecation? | CX2: 4.7.g.2 Evidence of hand-washing practices? | CY2: 5.1.a.1 Is there access to food (distribution, vouchers, trade, fishing…) | CZ2: 5.1.e.1 Do IDPs on the site have access to a market? | DA2: 5.1.d.1 Most common source for obtaining food since the last survey | DB2: If other common source of obtaining food, please specify | DC2: 6.1.a.5 Has screening been conducted in the area for identifying malnourished children and/or PLW? | DD2: 6.1.b.1 Availability of supplementary feeding for pregnant and lactating mothers during the time of survey? | DE2: 6.1.c.1 Availability of supplementary feeding for children | DF2: 7.1.b.1 What is the most prevalent health problem at the site | DG2: If other most prevalent health problem, please specify | DH2: 7.1.b.2 What is the second most prevalent health problem at the site | DI2: If other second most prevalent health problem, please specify | DJ2: 7.1.b.3 What is the third most prevalent health problem at the site | DK2: If other third most prevalent health problem, please specify | DL2: 7.2.a.1 Access to health facilities | DM2: 10.2.j.2 Reporting/referral mechanism for GBV survivors | DN2: 7.2.b.1 Location of health facilities/services | DO2: 7.2.c.2 Who provides health facilities/services | DP2: If other health facility provider, please specify | DQ2: 7.2.a.3 Regular access to medicine | DR2: 8.6.a.1 Access to Alternative Basic Education (ABE)/Temporary Learning centers for children from displaced HHs? | DS2: 8.6.a.3 Distance to nearest ABE facility | DT2: 8.6.a.8 Of children in site attending ABE and Temporary Learning center, what % are girls? | DU2: 8.6.a.2 Location of Alternative Basic Education (ABE) facilites for children from displaced HHs | DV2: 9.1.a.1 Occupation/trade of majority of displaced households (coping mechanism) | DW2: If other occupation/trade, please specify | DX2: 9.2.a.1 % of HH in the site with a source of income | DY2: 9.2.i.1 Access to income generating activities | DZ2: 5.1.a.3 When was the last time food was distributed on site? | EA2: 9.3.a.2 Is there livestock on site | EB2: 9.1.c.1 Do IDPs have access to land for cultivation? | EC2: 11.3.a.1 Travel opportunities are being discussed/advertised within the community? | ED2: 11.3.a.6 if Yes, where? | EE2: 10.1.a.2 Is there security on-site/settlement areas | EF2: 10.1.e.1 Are security incidents reported in the site | EG2: 10.1.b.1 Who provides main security in the site | EH2: If other main security provider, please specify | EI2: 10.2.g.1 Most common type of security incidents reported/known occurring in the settlement area | EJ2: If other know security incident reported, please specify | EK2: 10.2.h.5 Most common type of GBV incidents reported/known occurring in the site | EL2: If other GBV incidents reported, please specify | EM2: 10.2.i.1 Most common type of child protection incidents reported/known occurring in the settlement area | EN2: If other CP incident reported, please specify | EO2: 10.1.c.1 Number of children friendly spaces | EP2: 10.1.d.1 Number of women friendly spaces | EQ2: 10.1.f.1 Do the majority of people have identification card or Other documentation? | ER2: 10.2.j.2 ReportIng/referral mechanism for GBV survivors16 | ES2: 10.3.a.1 Do men feel safe in site? | ET2: 10.3.a.2 Do children feel safe in site | EU2: 10.3.a.3 Do women feel safe at the site | EV2: 10.1.s.1 Is there adequate lighting in the majority of communal point (WASH facilities, public spaces…) | EW2: 11.1.a.1 Where do residents mostly get their information from? | EX2: If other source of information for residents, please specify | EY2: 11.1.c.1 What is the main topic on which the community is requesting information on? | EZ2: If other topic the community is requesting, please specify | FA2: 3.7.c.2 % of HH have access to mosquito net | FB2: 3.8.m.1 Safety concerns with shelter | FC2: 3.7.J.1 Most needed NFI | FD2: 3.7.J.1 Second most needed NFI | FE2: 3.7.j.1 Third most needed NFI | FF2: 3.8.b.1: Need for shelter repair materials | FG2: 1.5.e.1: Displacement Cause | FH2: 1.4.b.1:Site Started on | FI2: 4.2.b.4: Number of protected wells (hand pumps/motorized boreholes) available | FJ2: 4.2.b.5: Number of protected springs available | FK2: 4.2.b.10: Number of other water sources available | FL2: 8.1.b.7: Access to formal primary education services for childre | FM2: 8.2.a.2: Location of formal primary education facilities/service | FN2: 8.2.b.4: Distance to nearest formal primary education facility
A3: OR618 | B3: 01 Kebele | C3: 14 | D3: 2018-11-12 | E3: Eshetu Kure | F3: Male | G3: Oromia | H3: South West Shewa | I3: Waliso Town | J3: 01 | K3: 8.52614791 | L3: 37.96822016 | M3: Yes | P3: Collective Center | R3: 2017-09-16 | S3: Unknown | T3: Yes | U3: Public/Government | X3: Yes | Y3: 2 | Z3: Yes | AA3: Galane Shelema | AB3: 0920909007 | AC3: Yes | AD3: Government | AF3: Waliso Town Disaster Risk Management office | AG3: Aster kebade | AH3: 0925299188 | AI3: Yes | AJ3: Yes | AK3: No | AL3: Yes | AM3: Yes | AN3: No | AO3: No | AP3: Yes | AQ3: Oromia | AR3: South West Shewa | AS3: Waliso Town | AT3: Waliso 01 Kebele | AY3: 32 | AZ3: 8 | BA3: 12 | BB3: 7 | BC3: 32 | BD3: 1 | BE3: 60 | BF3: 7 | BG3: 9 | BH3: 9 | BI3: 28 | BJ3: 0 | BK3: 53 | BL3: 113 | BM3: 0 | BN3: 3 | BO3: 8 | BP3: 0 | BQ3: 0 | BR3: 0 | BS3: 0 | BT3: 3 | BU3: 0 | BV3: 0 | BW3: 42994 | BZ3: No | CA3: accessibility lack of food no livelihood | CB3: None | CC3: None | CD3: > 75% | CE3: < 25% | CF3: 25-50 % | CG3: On-site (< 20 minutes) | CH3: Water taps from piped network | CL3: < 5 liters | CO3: Not so good (not hygienic) | CP3: 2 | CQ3: No | CS3: Yes | CT3: No | CU3: No waste disposal system | CW3: Yes | CY3: Yes, On Site | CZ3: Yes | DA3: Host Community Donation | DC3: No | DD3: No | DE3: No | DF3: Scabies | DH3: None | DJ3: None | DL3: Yes | DN3: Off-site (< 3 km) | DO3: Government | DQ3: Yes | DR3: No | DV3: None | DX3: 0 | DY3: No | DZ3: Irregular | EA3: No | EB3: No | EC3: No | EE3: Yes | EF3: No | EG3: Police/Militia | EI3: None | EJ3: No | EK3: None | EL3: No | EM3: None | EN3: No | EO3: 0 | EP3: 0 | EQ3: No | ES3: Yes | EU3: Yes | EV3: Yes, there is lighting but it is NOT adequate | EW3: Site Management | EY3: shelter safety and security relief assistance | EZ3: No | FA3: None | FB3: Yes | FC3: Emergency shelter kits | FD3: Bedding sets | FE3: Kitchen sets | FF3: Yes | FG3: Conflict | FH3: During 2017 | FI3: 0 | FJ3: 0 | FK3: 0 | FL3: Yes | FM3: Offsite | FN3: 1-2km
A4: SO339 | B4: 01 Kebele | C4: 14 | D4: 2018-11-06 | E4: Mahmaed Abdikarin Ali | F4: Male | G4: Somali | H4: Doolo | I4: Boh | J4: 01 Kebele | K4: 7.440458671 | L4: 46.63984587 | M4: Yes | P4: Spontaneous camp/site | R4: 2017-01-06 | S4: Unknown | T4: Yes | U4: Public/Government | X4: Yes | Y4: 2 | Z4: Yes | AA4: Abdkani Mahamed gele | AB4: 0963886548 | AC4: Yes | AD4: Government | AF4: 01Kebele administration | AG4: Bisharo hirsi Sheik | AH4: 0935784835 | AI4: Yes | AJ4: Yes | AK4: Yes | AL4: Yes | AM4: Yes | AN4: Yes | AO4: Yes | AP4: Yes | AQ4: Somali | AR4: Doolo | AS4: Boh | AT4: Gel adays | AU4: Somali | AV4: Doolo | AW4: Boh | AX4: Balijira | AY4: 145 | AZ4: 116 | BA4: 102 | BB4: 58 | BC4: 145 | BD4: 15 | BE4: 436 | BF4: 94 | BG4: 109 | BH4: 65 | BI4: 145 | BJ4: 22 | BK4: 435 | BL4: 871 | BM4: 10 | BN4: 18 | BO4: 38 | BP4: 4 | BQ4: 1 | BR4: 5 | BS4: 3 | BT4: 6 | BU4: 3 | BV4: 1 | BW4: 42741 | BX4: 42896 | BZ4: No | CA4: accessibility lack of food house damaged destroyed no livelihood | CB4: None | CC4: 25-50 % | CD4: None | CE4: None | CF4: None | CG4: On-site (< 20 minutes) | CH4: Protected wells (hand pumps/motorized boreholes) | CL4: 5-10 liters | CM4: Other | CN4: Shortage water | CO4: Good (Hygienic) | CP4: 16 | CQ4: No | CS4: Yes | CT4: No | CU4: Garbage pit | CW4: Yes | CY4: Yes, On Site | CZ4: Yes | DA4: Food Assistance | DC4: Yes | DD4: Yes | DE4: Yes | DF4: Pneumonia | DH4: Malaria | DJ4: UTI | DL4: Yes | DN4: On-site (< 3 km) | DO4: Government | DQ4: Yes | DR4: No | DV4: Pastoralism | DX4: 0 | DY4: No | DZ4: Within the month | EA4: Yes | EB4: Yes 51-75% | EC4: No | EE4: Yes | EF4: No | EG4: Local authorities | EI4: None | EJ4: No | EK4: None | EL4: No | EM4: None | EN4: No | EO4: 0 | EP4: 0 | EQ4: No | ES4: Yes | EU4: Yes | EV4: No lighting | EW4: Site Management | EY4: access to services distribution registration shelter relief assistance | EZ4: No | FA4: None | FB4: Yes | FC4: Bedding sets | FD4: Mosquito nets | FE4: Kitchen sets | FF4: Yes | FG4: Drought | FH4: During 2017 | FI4: 1 | FJ4: 0 | FK4: 0 | FL4: Yes | FM4: Offsite | FN4: 1-2km
A5: SO709 | B5: 02 Kebele | C5: 14 | D5: 2018-11-28 | E5: Abdi Adan | F5: Male | G5: Somali | H5: Dawa | I5: Moyale | J5: 02 Kebele | K5: 3.534700796 | L5: 39.05369108 | M5: Yes | P5: Host community/families | R5: 2018-11-13 | S5: Unknown | T5: Yes | U5: Public/Government | X5: Yes | Y5: 1 | Z5: Yes | AA5: Ibrahim Abdirahman | AB5: 0966144169 | AC5: Yes | AD5: Government | AF5: Local government administration | AG5: Ibrahim Abdirahman | AH5: 0966144169 | AI5: No | AJ5: Yes | AK5: Yes | AL5: No | AM5: Yes | AN5: Yes | AO5: Yes | AP5: Yes | AQ5: Somali | AR5: Dawa | AS5: Moyale | AT5: Burgab | AU5: Somali | AV5: Dawa | AW5: Moyale | AX5: Madomigo | AY5: 2061 | AZ5: 979 | BA5: 2009 | BB5: 670 | BC5: 1494 | BD5: 773 | BE5: 5925 | BF5: 1288 | BG5: 1803 | BH5: 670 | BI5: 1855 | BJ5: 567 | BK5: 6183 | BL5: 12108 | BM5: 0 | BN5: 440 | BO5: 500 | BP5: 26 | BQ5: 40 | BR5: 130 | BS5: 20 | BT5: 120 | BU5: 30 | BV5: 60 | BW5: 43417 | BZ5: No | CA5: house damaged destroyed lack of security safety basic infrastructures damage | CB5: None | CC5: None | CD5: 25-50 % | CE5: 25-50 % | CF5: None | CG5: Unknown | CH5: None | CL5: < 5 liters | CO5: Good (Hygienic) | CP5: 65 | CQ5: Yes | CS5: No | CT5: No | CU5: Burning | CW5: No | CY5: No | CZ5: Yes | DA5: Host Community Donation | DC5: Yes | DD5: No | DE5: No | DF5: Pneumonia | DH5: Malaria | DJ5: Scabies | DL5: No | DR5: No | DV5: None | DX5: 0 | DY5: No | EA5: No | EB5: No | EC5: No | EE5: Yes | EF5: No | EG5: Local authorities | EI5: None | EJ5: No | EK5: None | EL5: No | EM5: None | EN5: No | EO5: 0 | EP5: 0 | EQ5: No | ES5: No | EU5: No | EV5: No lighting | EW5: Mobile Phone | EY5: distribution shelter safety and security relief assistance situation in origin | EZ5: No | FA5: None | FB5: Yes | FC5: Emergency shelter kits | FD5: Kitchen sets | FE5: Bedding sets | FF5: Yes | FG5: Conflict | FH5: In 2018 | FI5: 0 | FJ5: 0 | FK5: 0 | FL5: No
A6: SO329 | B6: 02 Kebele | C6: 14 | D6: 2018-11-10 | E6: Mahamed Abdikarin Ali | F6: Male | G6: Somali | H6: Doolo | I6: Geladin | J6: Galadi 02 Kebele | K6: 6.979230712 | L6: 46.40884806 | M6: Yes | P6: Spontaneous camp/site | R6: 2017-01-01 | S6: Unknown | T6: Yes | U6: Public/Government | X6: Yes | Y6: 3 | Z6: Yes | AA6: Osman farah adan | AB6: 0986395805 | AC6: Yes | AD6: Government | AF6: Galadin 02 kebele administration | AG6: Abdikadir nur dini | AH6: 0963888975 | AI6: Yes | AJ6: Yes | AK6: Yes | AL6: Yes | AM6: Yes | AN6: Yes | AO6: Yes | AP6: Yes | AQ6: Somali | AR6: Doolo | AS6: Geladin | AT6: Sar haye | AU6: Somali | AV6: Doolo | AW6: Geladin | AX6: Labile | AY6: 365 | AZ6: 310 | BA6: 237 | BB6: 201 | BC6: 365 | BD6: 55 | BE6: 1168 | BF6: 237 | BG6: 183 | BH6: 164 | BI6: 365 | BJ6: 55 | BK6: 1004 | BL6: 2172 | BM6: 0 | BN6: 43 | BO6: 61 | BP6: 9 | BQ6: 16 | BR6: 1 | BS6: 5 | BT6: 73 | BU6: 2 | BV6: 6 | BW6: 42736 | BX6: 42865 | BZ6: No | CA6: accessibility lack of food house damaged destroyed no livelihood | CB6: None | CC6: 25-50 % | CD6: None | CE6: None | CF6: None | CG6: On-site (< 20 minutes) | CH6: Water taps from piped network | CL6: 5-10 liters | CO6: Good (Hygienic) | CP6: 18 | CQ6: Yes | CS6: Yes | CT6: No | CU6: Burning | CW6: Yes | CY6: Yes, On Site | CZ6: Yes | DA6: Food Assistance | DC6: No | DD6: No | DE6: No | DF6: Measles | DH6: Pneumonia | DJ6: Malaria | DL6: Yes | DN6: On-site (< 3 km) | DO6: Government | DQ6: Yes | DR6: No | DV6: Pastoralism | DX6: 0 | DY6: No | DZ6: 3 months ago | EA6: Yes | EB6: Yes 51-75% | EC6: No | EE6: Yes | EF6: No | EG6: Local authorities | EI6: None | EJ6: No | EK6: None | EL6: No | EM6: Child Labor | EN6: No | EO6: 0 | EP6: 0 | EQ6: No | ES6: Yes | EU6: Yes | EV6: No lighting | EW6: Site Management | EY6: access to services distribution registration shelter relief assistance | EZ6: No | FA6: None | FB6: Yes | FC6: Emergency shelter kits | FD6: Bedding sets | FE6: Kitchen sets | FF6: Yes | FG6: Drought | FH6: During 2017 | FI6: 0 | FJ6: 0 | FK6: 0 | FL6: No
A7: SO115 | B7: 03 Hudet | C7: 14 | D7: 2018-11-11 | E7: Abdi Adan | F7: Male | G7: Somali | H7: Dawa | I7: Hudet | J7: Hudat 03 | K7: 4.77081433 | L7: 39.24291806 | M7: Yes | P7: Host community/families | R7: 2012-05-18 | S7: Unknown | T7: Yes | U7: Public/Government | X7: Yes | Y7: 1 | Z7: Yes | AA7: Issack Mahammed | AB7: No | AC7: Yes | AD7: Government | AF7: Local government administration | AG7: Issack Mahammed | AH7: No | AI7: No | AJ7: Yes | AK7: Yes | AL7: Yes | AM7: Yes | AN7: Yes | AO7: Yes | AP7: Yes | AQ7: Oromia | AR7: Borena | AS7: Arero | AT7: Hallu | AU7: Oromia | AV7: Guji | AW7: Liben | AX7: Madar | AY7: 1480 | AZ7: 925 | BA7: 1517 | BB7: 444 | BC7: 1110 | BD7: 333 | BE7: 4329 | BF7: 925 | BG7: 1369 | BH7: 481 | BI7: 1443 | BJ7: 370 | BK7: 4588 | BL7: 8917 | BM7: 37 | BN7: 170 | BO7: 200 | BP7: 16 | BQ7: 25 | BR7: 25 | BS7: 8 | BT7: 45 | BU7: 12 | BV7: 15 | BW7: 41047 | BZ7: No | CA7: lack of security safety basic infrastructures damage | CB7: None | CC7: 25-50 % | CD7: None | CE7: None | CF7: None | CG7: On-site (< 20 minutes) | CH7: None | CL7: < 5 liters | CO7: No toilets | CQ7: No | CT7: No | CU7: No waste disposal system | CW7: Yes | CY7: No | CZ7: Yes | DA7: Host Community Donation | DC7: Yes | DD7: No | DE7: No | DF7: Pneumonia | DH7: Malaria | DJ7: Diarrhea | DL7: No | DR7: Yes | DS7: 3-5km | DT7: 25-50 % | DU7: Offsite | DV7: Collecting firewood | DX7: 0 | DY7: No | EA7: No | EB7: No | EC7: No | EE7: Yes | EF7: No | EG7: Local authorities | EI7: None | EJ7: No | EK7: forced marriage psycho emotional abuse | EL7: No | EM7: Sexual violence | EN7: No | EO7: 0 | EP7: 0 | EQ7: Yes | ES7: No | EU7: No | EV7: No lighting | EW7: Mobile Phone | EY7: distribution shelter relief assistance other | EZ7: Yes | FA7: None | FB7: Yes | FC7: Kitchen sets | FD7: Bedding sets | FE7: Hygiene kits | FF7: Yes | FG7: Conflict | FH7: Before 2017 | FI7: 2 | FJ7: 0 | FK7: 0 | FL7: Yes | FM7: Offsite | FN7: 3-5km
A8: SO338 | B8: 03 Kebele | C8: 14 | D8: 2018-11-06 | E8: Mahmaed Abdikarin Ali | F8: Male | G8: Somali | H8: Doolo | I8: Boh | J8: 03 Kebele | K8: 7.426112042 | L8: 46.64871868 | M8: Yes | P8: Spontaneous camp/site | R8: 2017-01-06 | S8: Unknown | T8: Yes | U8: Public/Government | X8: Yes | Y8: 2 | Z8: Yes | AA8: Abdirashid Mahamed koshin | AB8: 0947288873 | AC8: Yes | AD8: Government | AF8: 03kebele kebele Administration | AG8: Abdirahman Sheik ali | AH8: 0902619017 | AI8: Yes | AJ8: Yes | AK8: Yes | AL8: Yes | AM8: Yes | AN8: Yes | AO8: Yes | AP8: Yes | AQ8: Somali | AR8: Doolo | AS8: Boh | AT8: Saarey | AU8: Somali | AV8: Doolo | AW8: Boh | AX8: Qabriga Sheik | AY8: 151 | AZ8: 113 | BA8: 143 | BB8: 76 | BC8: 128 | BD8: 23 | BE8: 483 | BF8: 91 | BG8: 91 | BH8: 60 | BI8: 143 | BJ8: 30 | BK8: 415 | BL8: 898 | BM8: 0 | BN8: 21 | BO8: 43 | BP8: 6 | BQ8: 6 | BR8: 0 | BS8: 3 | BT8: 28 | BU8: 0 | BV8: 0 | BW8: 42741 | BX8: 42960 | BZ8: No | CA8: accessibility lack of food house damaged destroyed no livelihood | CB8: None | CC8: 25-50 % | CD8: None | CE8: None | CF8: None | CG8: Off-site (< 20 minutes) | CH8: Surface water sources (ponds/canals/river/lake/birkat) | CL8: 5-10 liters | CM8: Odor/smell | CO8: Good (Hygienic) | CP8: 18 | CQ8: Yes | CS8: Yes | CT8: No | CU8: Garbage pit | CW8: Yes | CY8: Yes, On Site | CZ8: Yes | DA8: Food Assistance | DC8: Yes | DD8: Yes | DE8: Yes | DF8: Malaria | DH8: Scabies | DJ8: Pneumonia | DL8: Yes | DN8: Off-site (< 3 km) | DO8: Government | DQ8: Yes | DR8: No | DV8: Pastoralism | DX8: 0 | DY8: No | DZ8: Within the month | EA8: Yes | EB8: Yes > 75% | EC8: No | EE8: Yes | EF8: No | EG8: Local authorities | EI8: None | EJ8: No | EK8: None | EL8: No | EM8: None | EN8: No | EO8: 0 | EP8: 0 | EQ8: No | ES8: Yes | EU8: Yes | EV8: No lighting | EW8: Site Management | EY8: access to services distribution registration shelter relief assistance | EZ8: No | FA8: None | FB8: Yes | FC8: Bedding sets | FD8: Hygiene kits | FE8: Mosquito nets | FF8: Yes | FG8: Drought | FH8: During 2017 | FI8: 0 | FJ8: 0 | FK8: 0 | FL8: Yes | FM8: Offsite | FN8: < 1km
A9: SO362 | B9: Aanomalabley | C9: 14 | D9: 2018-11-18 | E9: Mohamud Abdi | F9: Male | G9: Somali | H9: Shabelle | I9: Adadle | J9: Aanomalabley | K9: 5.736777616 | L9: 43.45247697 | M9: Yes | P9: Spontaneous camp/site | R9: 2017-01-05 | S9: Unknown | T9: Yes | U9: Public/Government | X9: Yes | Y9: 1 | Z9: Yes | AA9: Muhumed omer rage | AB9: 0948612855 | AC9: Yes | AD9: Government | AF9: Aanomalabley | AG9: Muhumed omer raage | AH9: 0948612855 | AI9: Yes | AJ9: Yes | AK9: Yes | AL9: Yes | AM9: Yes | AN9: Yes | AO9: Yes | AP9: Yes | AQ9: Somali | AR9: Shabelle | AS9: Adadle | AT9: Qudhac kudle | AU9: Somali | AV9: Shabelle | AW9: Adadle | AX9: Ragaad | AY9: 41 | AZ9: 21 | BA9: 35 | BB9: 25 | BC9: 29 | BD9: 14 | BE9: 124 | BF9: 29 | BG9: 37 | BH9: 10 | BI9: 27 | BJ9: 16 | BK9: 119 | BL9: 243 | BM9: 0 | BN9: 8 | BO9: 12 | BP9: 4 | BQ9: 5 | BR9: 0 | BS9: 6 | BT9: 3 | BU9: 0 | BV9: 2 | BW9: 42740 | BX9: 43002 | BZ9: No | CA9: lack of food house damaged destroyed no livelihood | CB9: None | CC9: 25-50 % | CD9: None | CE9: None | CF9: None | CG9: On-site (> 20 minutes) | CH9: Unprotected wells (open wells) | CL9: 5-10 liters | CM9: Taste | CO9: No toilets | CQ9: No | CT9: No | CU9: No waste disposal system | CW9: Yes | CY9: Yes, On Site | CZ9: Yes | DA9: Food Assistance | DC9: Yes | DD9: No | DE9: No | DF9: Injury | DH9: Other | DI9: Gastric | DJ9: Malaria | DL9: Yes | DN9: Off-site (> 3 km) | DO9: Government | DQ9: Yes | DR9: Yes | DS9: < 1km | DT9: 25-50 % | DU9: Onsite | DV9: Pastoralism | DX9: 0 | DY9: No | DZ9: Irregular | EA9: Yes | EB9: No | EC9: No | EE9: Yes | EF9: No | EG9: Community leaders | EI9: None | EJ9: No | EK9: None | EL9: No | EM9: None | EN9: No | EO9: 0 | EP9: 0 | EQ9: No | ES9: Yes | EU9: Yes | EV9: No lighting | EW9: Site Management | EY9: access to services distribution shelter relief assistance | EZ9: No | FA9: None | FB9: Yes | FC9: Emergency shelter kits | FD9: Kitchen sets | FE9: Bedding sets | FF9: Yes | FG9: Drought | FH9: During 2017 | FI9: 0 | FJ9: 0 | FK9: 0 | FL9: No
A10: HA103 | B10: Abadir | C10: 14 | D10: 2018-11-20 | E10: Dagnu Solomon | F10: Male | G10: Hareri | H10: Hareri | I10: Abadir | J10: Abadir | K10: 9.30855484 | L10: 42.13328543 | M10: Yes | P10: Host community/families | R10: 2017-09-12 | S10: Unknown | T10: Yes | U10: Public/Government | X10: Yes | Y10: 2 | Z10: Yes | AA10: Murad Ahmed | AB10: 0984089535 | AC10: Yes | AD10: Government | AF10: Hareri region DRM Office | AG10: Adil Abdulkadir | AH10: 0915745529 | AI10: No | AJ10: Yes | AK10: Yes | AL10: Yes | AM10: Yes | AN10: No | AO10: Yes | AP10: Yes | AQ10: Somali | AR10: Fafan | AS10: Jijiga | AT10: 5 | AU10: Somali | AV10: Fafan | AW10: Tog-Wajale | AX10: 2 | AY10: 25 | AZ10: 9 | BA10: 16 | BB10: 8 | BC10: 21 | BD10: 0 | BE10: 54 | BF10: 6 | BG10: 13 | BH10: 3 | BI10: 24 | BJ10: 0 | BK10: 46 | BL10: 100 | BM10: 0 | BN10: 0 | BO10: 4 | BP10: 0 | BQ10: 0 | BR10: 0 | BS10: 0 | BT10: 2 | BU10: 0 | BV10: 3 | BW10: 42990 | BZ10: No | CA10: lack of food house damaged destroyed lack of security safety no livelihood | CB10: None | CC10: None | CD10: None | CE10: 25-50 % | CF10: > 75% | CG10: On-site (< 20 minutes) | CH10: Water taps from piped network | CL10: < 5 liters | CO10: Not so good (not hygienic) | CP10: 15 | CQ10: No | CS10: No | CT10: No | CU10: No waste disposal system | CW10: No | CY10: Yes, Offsite | CZ10: Yes | DA10: Food Assistance | DC10: No | DD10: No | DE10: No | DF10: Other | DG10: Coughing | DH10: Other | DI10: Asem | DJ10: Other | DK10: Commen cold | DL10: Yes | DN10: On-site (< 3 km) | DO10: Government | DQ10: No | DR10: No | DV10: None | DX10: 0 | DY10: No | DZ10: Irregular | EA10: No | EB10: No | EC10: No | EE10: No | EF10: No | EI10: None | EJ10: No | EK10: None | EL10: No | EM10: None | EN10: No | EO10: 0 | EP10: 0 | EQ10: No | ES10: Yes | EU10: Yes | EV10: Yes, there is lighting but it is NOT adequate | EW10: Site Management | EY10: distribution shelter situation in origin | EZ10: No | FA10: None | FB10: Yes | FC10: Emergency shelter kits | FD10: Bedding sets | FE10: Kitchen sets | FF10: No | FG10: Conflict | FH10: During 2017 | FI10: 0 | FJ10: 0 | FK10: 0 | FL10: Yes | FM10: Onsite | FN10: 1-2km
A11: OR787 | B11: Abadir | C11: 14 | D11: 2018-11-18 | E11: Chala Feyissa | F11: Male | G11: Oromia | H11: East Harerge | I11: Gursum | J11: Abadir | K11: 9.31543282 | L11: 42.38037005 | M11: Yes | P11: Host community/families | R11: 2017-09-18 | S11: Unknown | T11: Yes | U11: Public/Government | X11: Yes | Y11: 2 | Z11: Yes | AA11: Ahmed Mohamed | AB11: Xxxx | AC11: Yes | AD11: Government | AF11: DRM Office | AG11: Zeyidan Hassen | AH11: 0920435255 | AI11: Yes | AJ11: Yes | AK11: Yes | AL11: Yes | AM11: Yes | AN11: No | AO11: Yes | AP11: Yes | AQ11: Somali | AR11: Fafan | AS11: Jijiga | AT11: Different kebeles | AU11: Somali | AV11: Fafan | AW11: Aw-bare | AX11: Different kebeles | AY11: 26 | AZ11: 13 | BA11: 14 | BB11: 8 | BC11: 25 | BD11: 0 | BE11: 60 | BF11: 13 | BG11: 13 | BH11: 5 | BI11: 26 | BJ11: 0 | BK11: 57 | BL11: 117 | BM11: 0 | BN11: 1 | BO11: 8 | BP11: 0 | BQ11: 0 | BR11: 0 | BS11: 0 | BT11: 3 | BU11: 0 | BV11: 2 | BW11: 42996 | BX11: 43269 | BZ11: No | CA11: accessibility lack of food house damaged destroyed lack of security safety no livelihood | CB11: None | CC11: None | CD11: None | CE11: > 75% | CF11: None | CG11: On-site (> 20 minutes) | CH11: Surface water sources (ponds/canals/river/lake/birkat) | CL11: < 5 liters | CO11: No toilets | CQ11: No | CT11: No | CU11: No waste disposal system | CW11: Yes | CY11: Yes, Offsite | CZ11: No | DA11: Food Assistance | DC11: No | DD11: No | DE11: No | DF11: None | DH11: None | DJ11: None | DL11: Yes | DN11: On-site (< 3 km) | DO11: Government | DQ11: No | DR11: No | DV11: None | DX11: 0 | DY11: No | DZ11: Within the month | EA11: No | EB11: No | EC11: No | EE11: No | EF11: No | EI11: None | EJ11: No | EK11: None | EL11: No | EM11: None | EN11: No | EO11: 0 | EP11: 0 | EQ11: No | ES11: No | EU11: No | EV11: No lighting | EW11: Families/Friends | EY11: access to services distribution shelter safety and security relief assistance | EZ11: No | FA11: None | FB11: Yes | FC11: Emergency shelter kits | FD11: Kitchen sets | FE11: Bedding sets | FF11: No | FG11: Conflict | FH11: During 2017 | FI11: 1 | FJ11: 0 | FK11: 0 | FL11: Yes | FM11: Onsite | FN11: 1-2km
A12: TG120 | B12: Abby Adi Town | C12: 14 | D12: 2018-11-15 | E12: Henok welay | F12: Female | G12: Tigray | H12: Central | I12: Abiyiadi | J12: Abiyiadi Town | K12: 13.62469064 | L12: 38.99892277 | M12: Yes | P12: Host community/families | R12: 2016-09-06 | S12: Unknown | T12: Yes | U12: Public/Government | X12: Yes | Y12: 1 | Z12: Yes | AA12: Tsehaye Brhane | AB12: 0918778032 | AC12: Yes | AD12: Government | AF12: Woreda of Labour and Social affair expert | AG12: Ashenafi Adisu | AH12: 0925450081 | AI12: Yes | AJ12: Yes | AK12: Yes | AL12: Yes | AM12: Yes | AN12: Yes | AO12: Yes | AP12: Yes | AQ12: Amhara | AR12: West Gonder | AS12: Metema | AT12: Different kebelles | AU12: Oromia | AV12: Ilubabor | AW12: Metu Zuria | AX12: Different kebelles | AY12: 445 | AZ12: 51 | BA12: 62 | BB12: 45 | BC12: 376 | BD12: 9 | BE12: 543 | BF12: 32 | BG12: 53 | BH12: 29 | BI12: 173 | BJ12: 4 | BK12: 291 | BL12: 834 | BM12: 0 | BN12: 14 | BO12: 22 | BP12: 5 | BQ12: 0 | BR12: 0 | BS12: 5 | BT12: 53 | BU12: 0 | BV12: 151 | BW12: 42619 | BX12: 43399 | BZ12: No | CA12: accessibility lack of food house damaged destroyed lack of security safety no livelihood basic infrastructures damage | CB12: None | CC12: None | CD12: None | CE12: < 25% | CF12: 25-50 % | CG12: On-site (> 20 minutes) | CH12: Surface water sources (ponds/canals/river/lake/birkat) | CL12: < 5 liters | CM12: Taste | CO12: Not so good (not hygienic) | CP12: 32 | CQ12: No | CS12: No | CT12: No | CU12: Garbage pit | CW12: Yes | CY12: Yes, On Site | CZ12: Yes | DA12: Other | DB12: Daily Labour | DC12: Yes | DD12: Yes | DE12: Yes | DF12: Pneumonia | DH12: Measles | DJ12: Diarrhea | DL12: Yes | DN12: On-site (> 3 km) | DO12: Government | DQ12: No | DR12: No | DV12: Daily Laborer | DX12: 5 | DY12: No | DZ12: Irregular | EA12: No | EB12: No | EC12: Yes | ED12: Within Ethiopia | EE12: Yes | EF12: Yes | EG12: Police/Militia | EI12: alcohol drug theft robbery physical assault | EJ12: No | EK12: physical assault denial of resources psycho emotional abuse | EL12: No | EM12: child physical abuse child psycho distress child labor | EN12: No | EO12: 0 | EP12: 0 | EQ12: Yes | ES12: Yes | EU12: Yes | EV12: Yes, there is lighting but it is NOT adequate | EW12: Local Leader | EY12: access to services distribution shelter how to get information relief assistance situation in origin | EZ12: No | FA12: < 25% | FB12: Yes | FC12: Kitchen sets | FD12: Emergency shelter kits | FE12: Bedding sets | FF12: Yes | FG12: Conflict | FH12: Before 2017 | FI12: 2 | FJ12: 0 | FK12: 0 | FL12: Yes | FM12: Onsite | FN12: 3-5km
A13: OR577 | B13: Abdulkadir | C13: 14 | D13: 2018-11-09 | E13: Chala Feyissa | F13: Male | G13: Oromia | H13: East Harerge | I13: Babile | J13: Abdulkadir | K13: 9.1858334 | L13: 42.33023501 | M13: Yes | P13: Host community/families | R13: 2017-09-15 | S13: Unknown | T13: Yes | U13: Public/Government | X13: Yes | Y13: 3 | Z13: Yes | AA13: Mustafa Abdi | AB13: Xxxx | AC13: Yes | AD13: Government | AF13: DRM Office | AG13: Abdusalam Mohamed | AH13: 0948618232 | AI13: Yes | AJ13: Yes | AK13: Yes | AL13: Yes | AM13: Yes | AN13: No | AO13: Yes | AP13: Yes | AQ13: Somali | AR13: Fafan | AS13: Jijiga | AT13: Different kebeles | AU13: Somali | AV13: Fafan | AW13: Aw-bare | AX13: Different kebeles | AY13: 45 | AZ13: 23 | BA13: 18 | BB13: 14 | BC13: 43 | BD13: 0 | BE13: 98 | BF13: 23 | BG13: 23 | BH13: 18 | BI13: 47 | BJ13: 0 | BK13: 111 | BL13: 209 | BM13: 0 | BN13: 0 | BO13: 10 | BP13: 0 | BQ13: 0 | BR13: 0 | BS13: 0 | BT13: 5 | BU13: 0 | BV13: 2 | BW13: 42993 | BX13: 42998 | BZ13: No | CA13: accessibility lack of food house damaged destroyed lack of security safety no livelihood | CB13: None | CC13: None | CD13: None | CE13: > 75% | CF13: None | CG13: On-site (> 20 minutes) | CH13: Protected wells (hand pumps/motorized boreholes) | CL13: < 5 liters | CO13: No toilets | CQ13: No | CT13: No | CU13: No waste disposal system | CW13: Yes | CY13: Yes, Offsite | CZ13: No | DA13: Food Assistance | DC13: No | DD13: No | DE13: No | DF13: None | DH13: None | DJ13: None | DL13: Yes | DN13: On-site (< 3 km) | DO13: Government | DQ13: No | DR13: No | DV13: None | DX13: 0 | DY13: No | DZ13: Within the month | EA13: No | EB13: No | EC13: No | EE13: No | EF13: No | EI13: None | EJ13: No | EK13: None | EL13: No | EM13: None | EN13: No | EO13: 0 | EP13: 0 | EQ13: No | ES13: No | EU13: No | EV13: No lighting | EW13: Families/Friends | EY13: access to services distribution shelter safety and security relief assistance | EZ13: No | FA13: None | FB13: Yes | FC13: Emergency shelter kits | FD13: Bedding sets | FE13: Kitchen sets | FF13: No | FG13: Conflict | FH13: During 2017 | FI13: 2 | FJ13: 0 | FK13: 0 | FL13: Yes | FM13: Onsite | FN13: 1-2km
A14: SO482 | B14: Abeesaale | C14: 14 | D14: 2018-11-27 | E14: Dahir Mohamed | F14: Male | G14: Somali | H14: Nogob | I14: Dihun | J14: Abeesaale | K14: 7.202589518 | L14: 42.86075412 | M14: Yes | P14: Spontaneous camp/site | R14: 2017-01-15 | S14: Unknown | T14: Yes | U14: Public/Government | X14: Yes | Y14: 2 | Z14: Yes | AA14: Khadar Mohamed Diriye | AB14: XXXX | AC14: Yes | AD14: Government | AF14: Abeesaale | AG14: Kaad Husein Mohamed | AH14: 0983553402 | AI14: Yes | AJ14: Yes | AK14: Yes | AL14: Yes | AM14: Yes | AN14: Yes | AO14: Yes | AP14: Yes | AQ14: Somali | AR14: Nogob | AS14: Dihun | AT14: Abeesaale | AU14: Somali | AV14: Nogob | AW14: Dihun | AX14: Abeesaale | AY14: 103 | AZ14: 67 | BA14: 88 | BB14: 41 | BC14: 103 | BD14: 15 | BE14: 314 | BF14: 67 | BG14: 62 | BH14: 41 | BI14: 98 | BJ14: 41 | BK14: 309 | BL14: 623 | BM14: 0 | BN14: 45 | BO14: 32 | BP14: 0 | BQ14: 2 | BR14: 0 | BS14: 0 | BT14: 3 | BU14: 0 | BV14: 1 | BW14: 42750 | BX14: 43167 | BZ14: No | CA14: lack of food house damaged destroyed no livelihood | CB14: None | CC14: 25-50 % | CD14: None | CE14: None | CF14: None | CG14: Off-site (> 20 minutes) | CH14: Unprotected wells (open wells) | CL14: < 5 liters | CO14: No toilets | CQ14: No | CT14: No | CU14: No waste disposal system | CW14: Yes | CY14: Yes, On Site | CZ14: Yes | DA14: Food Assistance | DC14: Yes | DD14: No | DE14: No | DF14: Malaria | DH14: Pneumonia | DJ14: Scabies | DL14: Yes | DN14: Off-site (< 3 km) | DO14: Government | DQ14: No | DR14: No | DV14: Pastoralism | DX14: 0 | DY14: No | DZ14: Last month | EA14: No | EB14: Yes > 75% | EC14: No | EE14: Yes | EF14: No | EG14: Police/Militia | EI14: None | EJ14: No | EK14: None | EL14: No | EM14: Children separated from parents/carers | EN14: No | EO14: 0 | EP14: 0 | EQ14: No | ES14: Yes | EU14: Yes | EV14: No lighting | EW14: Site Management | EY14: access to services distribution shelter | EZ14: No | FA14: < 25% | FB14: Yes | FC14: Emergency shelter kits | FD14: Bedding sets | FE14: Hygiene kits | FF14: Yes | FG14: Drought | FH14: During 2017 | FI14: 0 | FJ14: 0 | FK14: 0 | FL14: Yes | FM14: Offsite | FN14: 1-2km
A15: AM152 | B15: Abilalo | C15: 14 | D15: 2018-11-12 | E15: Eden Girma | F15: Female | G15: Amhara | H15: Oromia | I15: Bati | J15: Chechatu | K15: 11.2254048 | L15: 40.09122893 | M15: Yes | P15: Spontaneous camp/site | R15: 2017-12-12 | S15: Unknown | T15: Yes | U15: Public/Government | X15: No | AC15: Yes | AD15: Government | AF15: Kebele adminstration | AG15: Said adem | AH15: 0920797567 | AI15: No | AJ15: Yes | AK15: Yes | AL15: Yes | AM15: Yes | AN15: No | AO15: No | AP15: Yes | AQ15: Amhara | AR15: Oromia | AS15: Bati | AT15: Chechatu | AY15: 28 | AZ15: 13 | BA15: 29 | BB15: 10 | BC15: 26 | BD15: 4 | BE15: 82 | BF15: 17 | BG15: 24 | BH15: 2 | BI15: 25 | BJ15: 5 | BK15: 73 | BL15: 155 | BM15: 0 | BN15: 3 | BO15: 10 | BP15: 0 | BQ15: 2 | BR15: 0 | BS15: 2 | BT15: 4 | BU15: 0 | BV15: 0 | BW15: 43081 | BX15: 43358 | BZ15: No | CA15: accessibility lack of food house damaged destroyed lack of security safety no livelihood | CB15: None | CC15: None | CD15: None | CE15: 25-50 % | CF15: None | CG15: Off-site (> 20 minutes) | CH15: Protected wells (hand pumps/motorized boreholes) | CL15: 5-10 liters | CM15: Taste | CO15: No toilets | CQ15: No | CT15: No | CU15: Unknown | CW15: Yes | CY15: No | CZ15: No | DA15: Cultivated/Sale of Livestock | DC15: No | DD15: No | DE15: No | DF15: Malaria | DH15: Diarrhea | DJ15: Other | DK15: Water related disease | DL15: Yes | DN15: Off-site (> 3 km) | DO15: Government | DQ15: Yes | DR15: No | DV15: Farming | DX15: 25 | DY15: No | EA15: Yes | EB15: Yes 25-50% | EC15: No | EE15: Yes | EF15: Yes | EG15: Police/Militia | EI15: physical assault rbc | EJ15: No | EK15: None | EL15: No | EM15: None | EN15: No | EO15: 0 | EP15: 0 | EQ15: Yes | ES15: Yes | EU15: Yes | EV15: No lighting | EW15: Local Leader | EY15: distribution safety and security relief assistance | EZ15: No | FA15: < 25% | FB15: Yes | FC15: Bedding sets | FD15: Kitchen sets | FE15: Other | FF15: Yes | FG15: Conflict | FH15: During 2017 | FI15: 1 | FJ15: 0 | FK15: 0 | FL15: Yes | FM15: Onsite | FN15: < 1km
A16: HA105 | B16: Abo ker | C16: 14 | D16: 2018-11-18 | E16: Dagnu Solomon | F16: Male | G16: Hareri | H16: Hareri | I16: Abo Ker | J16: Abo Ker | K16: 9.31866584 | L16: 42.1157914 | M16: Yes | P16: Host community/families | R16: 2017-09-12 | S16: Unknown | T16: Yes | U16: Public/Government | X16: Yes | Y16: 2 | Z16: Yes | AA16: Awel Seid | AB16: 0940881589 | AC16: Yes | AD16: Government | AF16: Hareri region DRM Office | AG16: Adil Abdulkadir | AH16: 0915745529 | AI16: No | AJ16: Yes | AK16: Yes | AL16: Yes | AM16: Yes | AN16: No | AO16: Yes | AP16: Yes | AQ16: Somali | AR16: Fafan | AS16: Jijiga | AT16: 5 | AU16: Somali | AV16: Fafan | AW16: Tog-Wajale | AX16: 2 | AY16: 30 | AZ16: 14 | BA16: 15 | BB16: 6 | BC16: 26 | BD16: 0 | BE16: 61 | BF16: 11 | BG16: 11 | BH16: 6 | BI16: 29 | BJ16: 0 | BK16: 57 | BL16: 118 | BM16: 0 | BN16: 0 | BO16: 3 | BP16: 0 | BQ16: 0 | BR16: 0 | BS16: 0 | BT16: 3 | BU16: 0 | BV16: 4 | BW16: 42990 | BZ16: No | CA16: lack of food house damaged destroyed lack of security safety no livelihood | CB16: None | CC16: None | CD16: None | CE16: > 75% | CF16: > 75% | CG16: On-site (< 20 minutes) | CH16: Water taps from piped network | CL16: < 5 liters | CO16: Not so good (not hygienic) | CP16: 15 | CQ16: No | CS16: No | CT16: No | CU16: No waste disposal system | CW16: No | CY16: Yes, Offsite | CZ16: Yes | DA16: Food Assistance | DC16: No | DD16: No | DE16: No | DF16: Other | DG16: Commen cold | DH16: Diarrhea | DJ16: Other | DK16: Coughing | DL16: Yes | DN16: On-site (< 3 km) | DO16: Government | DQ16: No | DR16: No | DV16: None | DX16: 0 | DY16: No | DZ16: Irregular | EA16: No | EB16: No | EC16: No | EE16: No | EF16: No | EI16: None | EJ16: No | EK16: None | EL16: No | EM16: None | EN16: No | EO16: 0 | EP16: 0 | EQ16: No | ES16: Yes | EU16: Yes | EV16: Yes, there is lighting but it is NOT adequate | EW16: Site Management | EY16: registration shelter safety and security situation in origin | EZ16: No | FA16: None | FB16: Yes | FC16: Emergency shelter kits | FD16: Kitchen sets | FE16: Bedding sets | FF16: No | FG16: Conflict | FH16: During 2017 | FI16: 0 | FJ16: 0 | FK16: 0 | FL16: Yes | FM16: Onsite | FN16: 1-2km
A17: OR794 | B17: Abomsa Town | C17: 14 | D17: 2018-11-15 | E17: Melaku Alemu | F17: Male | G17: Oromia | H17: Arsi | I17: Merti | J17: Abomsa 01 kebele | K17: 8.48649513 | L17: 39.83246639 | M17: Yes | P17: Host community/families | R17: 2017-09-13 | S17: Unknown | T17: Yes | U17: Public/Government | X17: Yes | Y17: 0 | Z17: Yes | AA17: Abdi Kemal | AB17: 0933312753 | AC17: Yes | AD17: Government | AF17: Merti Woreda Disaster Resk Menagement Office | AG17: Tola Ido | AH17: 0936051473 | AI17: Yes | AJ17: Yes | AK17: Yes | AL17: Yes | AM17: Yes | AN17: No | AO17: Yes | AP17: Yes | AQ17: Somali | AR17: Fafan | AS17: Jijiga | AT17: 01 | AU17: Somali | AV17: Fafan | AW17: Jijiga | AX17: 04 | AY17: 26 | AZ17: 5 | BA17: 25 | BB17: 2 | BC17: 36 | BD17: 0 | BE17: 68 | BF17: 7 | BG17: 20 | BH17: 3 | BI17: 16 | BJ17: 0 | BK17: 46 | BL17: 114 | BM17: 0 | BN17: 6 | BO17: 6 | BP17: 0 | BQ17: 0 | BR17: 0 | BS17: 0 | BT17: 0 | BU17: 0 | BV17: 0 | BW17: 42991 | BX17: 43399 | BZ17: No | CA17: house damaged destroyed lack of security safety | CB17: None | CC17: None | CD17: None | CE17: < 25% | CF17: > 75% | CG17: On-site (< 20 minutes) | CH17: Surface water sources (ponds/canals/river/lake/birkat) | CL17: 5-10 liters | CO17: Not so good (not hygienic) | CP17: 10 | CQ17: No | CS17: No | CT17: No | CU17: No waste disposal system | CW17: No | CY17: Yes, On Site | CZ17: Yes | DA17: Food Assistance | DC17: No | DD17: No | DE17: No | DF17: None | DH17: None | DJ17: None | DL17: Yes | DN17: On-site (< 3 km) | DO17: Government | DQ17: Yes | DR17: No | DV17: Petty Trade | DX17: 100 | DY17: Yes | DZ17: Within the month | EA17: No | EB17: No | EC17: No | EE17: Yes | EF17: No | EG17: Police/Militia | EI17: None | EJ17: No | EK17: None | EL17: No | EM17: None | EN17: No | EO17: 0 | EP17: 0 | EQ17: Yes | ES17: Yes | EU17: Yes | EV17: Yes, there is lighting and it is adequate | EW17: Site Management | EY17: distribution shelter relief assistance | EZ17: No | FA17: None | FB17: Yes | FC17: Emergency shelter kits | FD17: Bedding sets | FE17: Kitchen sets | FF17: No | FG17: Conflict | FH17: During 2017 | FI17: 0 | FJ17: 0 | FK17: 0 | FL17: Yes | FM17: Onsite | FN17: < 1km
A18: AM166 | B18: Abuarie | C18: 14 | D18: 2018-11-14 | E18: Eshetu Mequanent | F18: Male | G18: Amhara | H18: North Wollo | I18: Kobo | J18: Abuarie | K18: 12.10039471 | L18: 39.64998742 | M18: Yes | P18: Collective Center | R18: 2018-09-03 | S18: Unknown | T18: Yes | U18: Public/Government | X18: Yes | Y18: 0 | Z18: Yes | AA18: Assefa Yimam | AB18: 0965736980 | AC18: Yes | AD18: Government | AF18: Kobo Woreda DPPO | AG18: Adino Molla | AH18: 0913930955 | AI18: Yes | AJ18: Yes | AK18: Yes | AL18: Yes | AM18: Yes | AN18: Yes | AO18: Yes | AP18: Yes | AQ18: Oromia | AR18: Kelem Wellega | AS18: Sayo | AT18: Gelano | AU18: Oromia | AV18: Kelem Wellega | AW18: Hawa Galan | AX18: Hawi chekorsa | AY18: 427 | AZ18: 129 | BA18: 121 | BB18: 106 | BC18: 425 | BD18: 26 | BE18: 807 | BF18: 117 | BG18: 235 | BH18: 94 | BI18: 385 | BJ18: 15 | BK18: 846 | BL18: 1653 | BM18: 0 | BN18: 0 | BO18: 8 | BP18: 0 | BQ18: 0 | BR18: 0 | BS18: 0 | BT18: 10 | BU18: 0 | BV18: 8 | BW18: 43346 | BX18: 43403 | BZ18: No | CA18: house damaged destroyed lack of security safety no livelihood | CB18: None | CC18: None | CD18: > 75% | CE18: < 25% | CF18: None | CG18: Off-site (> 20 minutes) | CH18: Unprotected wells (open wells) | CL18: 5-10 liters | CM18: Taste | CO18: No toilets | CQ18: No | CT18: No | CU18: Unknown | CW18: Yes | CY18: Yes, On Site | CZ18: No | DA18: Food Assistance | DC18: No | DD18: No | DE18: No | DF18: Malaria | DH18: Diarrhea | DJ18: Scabies | DL18: No | DR18: No | DV18: Daily Laborer | DX18: 15 | DY18: No | DZ18: Last month | EA18: No | EB18: No | EC18: No | EE18: No | EF18: No | EI18: None | EJ18: No | EK18: None | EL18: No | EM18: None | EN18: No | EO18: 0 | EP18: 0 | EQ18: No | ES18: Yes | EU18: Yes | EV18: No lighting | EW18: Mobile Phone | EY18: distribution registration shelter how to get information relief assistance situation in origin | EZ18: No | FA18: 51-75 % | FB18: Yes | FC18: Bedding sets | FD18: Kitchen sets | FE18: Hygiene kits | FF18: No | FG18: Conflict | FH18: In 2018 | FI18: 0 | FJ18: 0 | FK18: 0 | FL18: Yes | FM18: Offsite | FN18: 6-10km
A19: OR801 | B19: Abubeker Sadiq Santala | C19: 14 | D19: 2018-11-17 | E19: Chala Feyissa | F19: Male | G19: Oromia | H19: East Harerge | I19: Gursum | J19: Abubeker Sadiq Santala | K19: 9.35617007 | L19: 42.4760383 | M19: Yes | P19: Host community/families | R19: 2017-09-16 | S19: Unknown | T19: Yes | U19: Public/Government | X19: Yes | Y19: 1 | Z19: Yes | AA19: Muhyadin Shakir | AB19: Xxxx | AC19: Yes | AD19: Government | AF19: DRM Office | AG19: Zeyidan Hassen | AH19: 0920435255 | AI19: Yes | AJ19: Yes | AK19: Yes | AL19: Yes | AM19: Yes | AN19: No | AO19: Yes | AP19: Yes | AQ19: Somali | AR19: Fafan | AS19: Jijiga | AT19: Different kebeles | AU19: Somali | AV19: Fafan | AW19: Aw-bare | AX19: Different kebeles | AY19: 37 | AZ19: 15 | BA19: 15 | BB19: 15 | BC19: 37 | BD19: 2 | BE19: 84 | BF19: 20 | BG19: 15 | BH19: 9 | BI19: 39 | BJ19: 0 | BK19: 83 | BL19: 167 | BM19: 0 | BN19: 0 | BO19: 8 | BP19: 0 | BQ19: 0 | BR19: 0 | BS19: 0 | BT19: 3 | BU19: 0 | BV19: 1 | BW19: 42994 | BX19: 42998 | BZ19: No | CA19: accessibility lack of food house damaged destroyed lack of security safety no livelihood | CB19: None | CC19: None | CD19: None | CE19: > 75% | CF19: None | CG19: On-site (> 20 minutes) | CH19: Protected wells (hand pumps/motorized boreholes) | CL19: < 5 liters | CO19: No toilets | CQ19: No | CT19: No | CU19: No waste disposal system | CW19: Yes | CY19: Yes, Offsite | CZ19: No | DA19: Food Assistance | DC19: No | DD19: No | DE19: No | DF19: None | DH19: None | DJ19: None | DL19: Yes | DN19: On-site (< 3 km) | DO19: Government | DQ19: No | DR19: No | DV19: None | DX19: 0 | DY19: No | DZ19: Within the month | EA19: No | EB19: No | EC19: No | EE19: No | EF19: No | EI19: None | EJ19: No | EK19: None | EL19: No | EM19: None | EN19: No | EO19: 0 | EP19: 0 | EQ19: No | ES19: No | EU19: No | EV19: No lighting | EW19: Families/Friends | EY19: access to services distribution shelter relief assistance | EZ19: No | FA19: None | FB19: Yes | FC19: Emergency shelter kits | FD19: Kitchen sets | FE19: Bedding sets | FF19: No | FG19: Conflict | FH19: During 2017 | FI19: 1 | FJ19: 0 | FK19: 0 | FL19: Yes | FM19: Onsite | FN19: 1-2km
A20: AM119 | B20: Achita Afra Endbazend | C20: 14 | D20: 2018-11-04 | E20: Delseber Zerihun | F20: Male | G20: Amhara | H20: West Gojam | I20: Sekela | J20: Achaita Afra Endbazend | K20: 10.8456826 | L20: 37.15983702 | M20: Yes | P20: Host community/families | R20: 2009-09-28 | S20: Unknown | T20: Yes | U20: Public/Government | X20: No | AC20: Yes | AD20: Government | AF20: Kebele administration | AG20: Getachew Mose | AH20: 0928544180 | AI20: Yes | AJ20: No | AK20: No | AL20: Yes | AM20: No | AN20: No | AO20: No | AP20: Yes | AQ20: Amhara | AR20: West Gonder | AS20: Quara | AT20: Mahrsh | AU20: Beneshangul Gumu | AV20: Kemashi | AW20: Bio Jiganifado | AX20: Dedesa | AY20: 101 | AZ20: 25 | BA20: 71 | BB20: 0 | BC20: 101 | BD20: 0 | BE20: 197 | BF20: 25 | BG20: 76 | BH20: 5 | BI20: 106 | BJ20: 5 | BK20: 217 | BL20: 414 | BM20: 0 | BN20: 29 | BO20: 17 | BP20: 0 | BQ20: 0 | BR20: 0 | BS20: 9 | BT20: 6 | BU20: 0 | BV20: 9 | BW20: 40084 | BX20: 43063 | BZ20: Yes | CA20: accessibility lack of food house damaged destroyed lack of security safety no livelihood | CB20: None | CC20: None | CD20: None | CE20: > 75% | CF20: < 25% | CG20: On-site (> 20 minutes) | CH20: Protected wells (hand pumps/motorized boreholes) | CL20: 5-10 liters | CM20: Suspended solids | CO20: Good (Hygienic) | CP20: 100 | CQ20: No | CS20: No | CT20: No | CU20: No waste disposal system | CW20: Yes | CY20: No | CZ20: Yes | DA20: Other | DB20: Daily labour | DC20: No | DD20: No | DE20: No | DF20: Malaria | DH20: Other | DI20: Typhoid | DJ20: Diarrhea | DL20: Yes | DN20: On-site (< 3 km) | DO20: Government | DQ20: Yes | DR20: No | DV20: Daily Laborer | DX20: 50 | DY20: No | EA20: No | EB20: No | EC20: No | EE20: Yes | EF20: No | EG20: Police/Militia | EI20: None | EJ20: No | EK20: None | EL20: No | EM20: None | EN20: No | EO20: 0 | EP20: 0 | EQ20: Yes | ES20: Yes | EU20: Yes | EV20: Yes, there is lighting but it is NOT adequate | EW20: Local Leader | EY20: access to services distribution registration shelter relief assistance | EZ20: No | FA20: None | FB20: Yes | FC20: Emergency shelter kits | FD20: Kitchen sets | FE20: Bedding sets | FF20: No | FG20: Conflict | FH20: Before 2017 | FI20: 2 | FJ20: 0 | FK20: 0 | FL20: Yes | FM20: Onsite | FN20: 1-2km
A21: SO689 | B21: Adaade | C21: 14 | D21: 2018-11-07 | E21: Hassen Mohamed | F21: Male | G21: Somali | H21: Fafan | I21: Gursum | J21: Adaade | K21: 9.312333537 | L21: 42.52814215 | M21: Yes | P21: Host community/families | R21: 2018-05-29 | S21: Unknown | T21: Yes | U21: Public/Government | X21: Yes | Y21: 2 | Z21: Yes | AA21: Mahamed Qorleh | AB21: XXXX | AC21: Yes | AD21: Government | AF21: Adaade kebele Administration | AG21: Ahmed Mohamed | AH21: 0927914649 | AI21: Yes | AJ21: Yes | AK21: Yes | AL21: Yes | AM21: Yes | AN21: Yes | AO21: Yes | AP21: Yes | AQ21: Somali | AR21: Fafan | AS21: Tuliguled | AT21: Gabogabo | AU21: Oromia | AV21: East Harerge | AW21: Babile | AX21: 01 kebele | AY21: 397 | AZ21: 258 | BA21: 318 | BB21: 159 | BC21: 357 | BD21: 79 | BE21: 1171 | BF21: 238 | BG21: 357 | BH21: 119 | BI21: 377 | BJ21: 119 | BK21: 1210 | BL21: 2381 | BM21: 5 | BN21: 79 | BO21: 108 | BP21: 4 | BQ21: 5 | BR21: 0 | BS21: 1 | BT21: 1 | BU21: 1 | BV21: 1 | BW21: 43249 | BX21: 43403 | BZ21: No | CA21: accessibility lack of food house damaged destroyed lack of security safety no livelihood | CB21: None | CC21: 25-50 % | CD21: None | CE21: None | CF21: None | CG21: Off-site (> 20 minutes) | CH21: Surface water sources (ponds/canals/river/lake/birkat) | CL21: 5-10 liters | CM21: Suspended solids | CO21: No toilets | CQ21: No | CT21: No | CU21: Unknown | CW21: Yes | CY21: Yes, On Site | CZ21: Yes | DA21: Food Assistance | DC21: Yes | DD21: Yes | DE21: Yes | DF21: Malaria | DH21: UTI | DJ21: Pneumonia | DL21: Yes | DN21: On-site (< 3 km) | DO21: Government | DQ21: Yes | DR21: No | DV21: Agro-Pastoralism | DX21: 0 | DY21: No | DZ21: > 3 months ago | EA21: No | EB21: No | EC21: No | EE21: Yes | EF21: No | EG21: Police/Militia | EI21: None | EJ21: No | EK21: None | EL21: No | EM21: None | EN21: No | EO21: 0 | EP21: 0 | EQ21: No | ES21: Yes | EU21: Yes | EV21: No lighting | EW21: Site Management | EY21: access to services distribution shelter safety and security how to get information relief assistance situation in origin | EZ21: No | FA21: None | FB21: Yes | FC21: Emergency shelter kits | FD21: Bedding sets | FE21: Kitchen sets | FF21: Yes | FG21: Conflict | FH21: In 2018 | FI21: 0 | FJ21: 0 | FK21: 0 | FL21: Yes | FM21: Onsite | FN21: 1-2km
A22: OR545 | B22: Adaba Town | C22: 14 | D22: 2018-11-23 | E22: Gifto wakessa | F22: Female | G22: Oromia | H22: West Arsi | I22: Adaba | J22: 02 kebele | K22: 7.00731857 | L22: 39.39310595 | M22: Yes | P22: Spontaneous camp/site | R22: 2017-09-21 | S22: Unknown | T22: Yes | U22: Public/Government | X22: Yes | Y22: 0 | Z22: Yes | AA22: Abdulkadir Husen | AB22: 09 22 05 89 98 | AC22: Yes | AD22: Government | AF22: ADABA DRM OFFICE | AG22: Tahir Bekar | AH22: 09 13 01 53 37 | AI22: Yes | AJ22: Yes | AK22: Yes | AL22: Yes | AM22: Yes | AN22: No | AO22: Yes | AP22: Yes | AQ22: Somali | AR22: Fafan | AS22: Jijiga | AT22: 08 kebele | AY22: 106 | AZ22: 24 | BA22: 27 | BB22: 10 | BC22: 89 | BD22: 0 | BE22: 150 | BF22: 29 | BG22: 18 | BH22: 2 | BI22: 99 | BJ22: 0 | BK22: 148 | BL22: 298 | BM22: 0 | BN22: 20 | BO22: 25 | BP22: 0 | BQ22: 0 | BR22: 0 | BS22: 0 | BT22: 2 | BU22: 0 | BV22: 3 | BW22: 42999 | BZ22: No | CA22: lack of food lack of security safety no livelihood | CB22: None | CC22: < 25% | CD22: > 75% | CE22: None | CF22: > 75% | CG22: On-site (< 20 minutes) | CH22: Water taps from piped network | CL22: < 5 liters | CO22: Not so good (not hygienic) | CP22: 4 | CQ22: No | CS22: No | CT22: No | CU22: No waste disposal system | CW22: Yes | CY22: Yes, On Site | CZ22: Yes | DA22: Food Assistance | DC22: No | DD22: No | DE22: No | DF22: Pneumonia | DH22: Diarrhea | DJ22: None | DL22: Yes | DN22: On-site (< 3 km) | DO22: Government | DQ22: Yes | DR22: No | DV22: Daily Laborer | DX22: 0 | DY22: No | DZ22: Within the month | EA22: No | EB22: No | EC22: No | EE22: Yes | EF22: No | EG22: Local authorities | EI22: None | EJ22: No | EK22: None | EL22: No | EM22: None | EN22: No | EO22: 0 | EP22: 0 | EQ22: Yes | ES22: Yes | EU22: Yes | EV22: Yes, there is lighting but it is NOT adequate | EW22: Authorities | EY22: distribution registration shelter | EZ22: No | FA22: None | FB22: Yes | FC22: Emergency shelter kits | FD22: Bedding sets | FE22: Hygiene kits | FF22: Unknown | FG22: Conflict | FH22: During 2017 | FI22: 0 | FJ22: 0 | FK22: 0 | FL22: Yes | FM22: Onsite | FN22: < 1km
A23: SO119 | B23: Adad Jiko | C23: 14 | D23: 2018-11-21 | E23: Abass Ali Osman | F23: Male | G23: Somali | H23: Liben | I23: Filtu | J23: Jaygacad | K23: 4.906343185 | L23: 40.82613752 | M23: Yes | P23: Spontaneous camp/site | R23: 2012-04-14 | S23: Unknown | T23: Yes | U23: Public/Government | X23: Yes | Y23: 1 | Z23: Yes | AA23: Ibrahim Mohamed | AB23: XXXX | AC23: Yes | AD23: Government | AF23: Kabale Adminstration | AG23: Ibrahim Ahmed | AH23: XXXX | AI23: No | AJ23: Yes | AK23: Yes | AL23: Yes | AM23: Yes | AN23: Yes | AO23: Yes | AP23: Yes | AQ23: Somali | AR23: Dawa | AS23: Mubarak | AT23: Galgalo | AU23: Somali | AV23: Dawa | AW23: Mubarak | AX23: Hayguda | AY23: 196 | AZ23: 167 | BA23: 108 | BB23: 118 | BC23: 127 | BD23: 98 | BE23: 618 | BF23: 127 | BG23: 98 | BH23: 98 | BI23: 147 | BJ23: 98 | BK23: 568 | BL23: 1186 | BM23: 1 | BN23: 12 | BO23: 25 | BP23: 3 | BQ23: 2 | BR23: 0 | BS23: 0 | BT23: 0 | BU23: 0 | BV23: 0 | BW23: 41013 | BX23: 41086 | BZ23: No | CA23: accessibility lack of food house damaged destroyed no livelihood basic infrastructures damage | CB23: None | CC23: > 75% | CD23: None | CE23: None | CF23: None | CG23: On-site (< 20 minutes) | CH23: Surface water sources (ponds/canals/river/lake/birkat) | CL23: 5-10 liters | CO23: No toilets | CQ23: No | CT23: No | CU23: No waste disposal system | CW23: Yes | CY23: No | CZ23: No | DA23: Host Community Donation | DC23: No | DD23: No | DE23: No | DF23: Malaria | DH23: Pneumonia | DJ23: Diarrhea | DL23: No | DR23: Yes | DS23: < 1km | DT23: < 25% | DU23: Onsite | DV23: Pastoralism | DX23: 2 | DY23: No | EA23: No | EB23: Yes > 75% | EC23: No | EE23: Yes | EF23: No | EG23: Self organized | EI23: None | EJ23: No | EK23: None | EL23: No | EM23: None | EN23: No | EO23: 0 | EP23: 0 | EQ23: No | ES23: Yes | EU23: Yes | EV23: No lighting | EW23: Authorities | EY23: access to services shelter relief assistance | EZ23: No | FA23: < 25% | FB23: Yes | FC23: Emergency shelter kits | FD23: Kitchen sets | FE23: Bedding sets | FF23: Yes | FG23: Conflict | FH23: Before 2017 | FI23: 0 | FJ23: 0 | FK23: 0 | FL23: No
A24: SO363 | B24: Adadle town | C24: 14 | D24: 2018-11-19 | E24: Mohamud Abdi | F24: Male | G24: Somali | H24: Shabelle | I24: Adadle | J24: Bohol Hagare | K24: 5.795390303 | L24: 43.54125274 | M24: Yes | P24: Spontaneous camp/site | R24: 2017-01-05 | S24: Unknown | T24: Yes | U24: Public/Government | X24: Yes | Y24: 2 | Z24: Yes | AA24: Kemil denan keynan | AB24: 0915650490 | AC24: Yes | AD24: Government | AF24: Bohol Hagare | AG24: Kamil danan kaynan | AH24: 0915650490 | AI24: Yes | AJ24: Yes | AK24: Yes | AL24: Yes | AM24: Yes | AN24: Yes | AO24: Yes | AP24: Yes | AQ24: Somali | AR24: Shabelle | AS24: Adadle | AT24: Ilaanle | AU24: Somali | AV24: Shabelle | AW24: Adadle | AX24: Garba jabiye | AY24: 985 | AZ24: 542 | BA24: 887 | BB24: 394 | BC24: 690 | BD24: 246 | BE24: 2759 | BF24: 690 | BG24: 887 | BH24: 394 | BI24: 739 | BJ24: 296 | BK24: 3006 | BL24: 5765 | BM24: 0 | BN24: 180 | BO24: 250 | BP24: 36 | BQ24: 25 | BR24: 0 | BS24: 21 | BT24: 23 | BU24: 0 | BV24: 12 | BW24: 42740 | BX24: 42880 | BZ24: No | CA24: accessibility lack of food no livelihood | CB24: None | CC24: 25-50 % | CD24: None | CE24: None | CF24: None | CG24: Off-site (> 20 minutes) | CH24: Water truck | CL24: 5-10 liters | CM24: Taste | CO24: Good (Hygienic) | CP24: 24 | CQ24: Yes | CS24: Yes | CT24: No | CU24: Burning | CW24: Yes | CY24: Yes, Offsite | CZ24: Yes | DA24: Food Assistance | DC24: Yes | DD24: No | DE24: No | DF24: UTI | DH24: Malaria | DJ24: Pneumonia | DL24: Yes | DN24: Off-site (< 3 km) | DO24: Government | DQ24: No | DR24: Yes | DS24: < 1km | DT24: 25-50 % | DU24: Onsite | DV24: Pastoralism | DX24: 0 | DY24: No | DZ24: Last month | EA24: No | EB24: No | EC24: No | EE24: Yes | EF24: No | EG24: Police/Militia | EI24: None | EJ24: No | EK24: None | EL24: No | EM24: None | EN24: No | EO24: 0 | EP24: 0 | EQ24: No | ES24: Yes | EU24: Yes | EV24: No lighting | EW24: Site Management | EY24: access to services distribution shelter relief assistance | EZ24: No | FA24: None | FB24: Yes | FC24: Emergency shelter kits | FD24: Kitchen sets | FE24: Bedding sets | FF24: Yes | FG24: Drought | FH24: During 2017 | FI24: 0 | FJ24: 0 | FK24: 0 | FL24: Yes | FM24: Offsite | FN24: 1-2km
A25: AF197 | B25: Adakuwa | C25: 14 | D25: 2018-11-08 | E25: Ahmed Abdella | F25: Male | G25: Afar | H25: Kilbati (Zone 2) | I25: Dalul | J25: Adakuwa | K25: 14.20900717 | L25: 39.91633006 | M25: Yes | P25: Host community/families | R25: 2016-04-16 | S25: Unknown | T25: Yes | U25: Public/Government | X25: Yes | Y25: 1 | Z25: Yes | AA25: Ali Mohammed | AB25: 0938165689 | AC25: Yes | AD25: Government | AF25: Kebele Administration | AG25: Ali Ebrahim | AH25: 0938123246 | AI25: No | AJ25: Yes | AK25: No | AL25: Yes | AM25: Yes | AN25: No | AO25: No | AP25: Yes | AQ25: Afar | AR25: Kilbati (Zone 2) | AS25: Dalul | AT25: Adakuwa | AY25: 70 | AZ25: 35 | BA25: 46 | BB25: 35 | BC25: 67 | BD25: 18 | BE25: 201 | BF25: 32 | BG25: 46 | BH25: 14 | BI25: 74 | BJ25: 11 | BK25: 177 | BL25: 378 | BM25: 0 | BN25: 15 | BO25: 18 | BP25: 0 | BQ25: 2 | BR25: 0 | BS25: 0 | BT25: 5 | BU25: 0 | BV25: 2 | BW25: 42476 | BX25: 42493 | BZ25: No | CA25: accessibility lack of food no livelihood | CB25: None | CC25: > 75% | CD25: None | CE25: None | CF25: None | CG25: On-site (< 20 minutes) | CH25: Water taps from piped network | CL25: 5-10 liters | CO25: No toilets | CQ25: No | CT25: No | CU25: No waste disposal system | CW25: Yes | CY25: Yes, On Site | CZ25: Yes | DA25: Food Assistance | DC25: Yes | DD25: No | DE25: No | DF25: Diarrhea | DH25: Pneumonia | DJ25: Scabies | DL25: Yes | DN25: On-site (< 3 km) | DO25: Government | DQ25: Yes | DR25: No | DV25: Pastoralism | DX25: 60 | DY25: No | DZ25: Last month | EA25: Yes | EB25: No | EC25: No | EE25: Yes | EF25: No | EG25: Police/Militia | EI25: None | EJ25: No | EK25: None | EL25: No | EM25: None | EN25: No | EO25: 0 | EP25: 0 | EQ25: Yes | ES25: Yes | EU25: Yes | EV25: No lighting | EW25: Families/Friends | EY25: access to services distribution safety and security how to get information | EZ25: No | FA25: None | FB25: Yes | FC25: Kitchen sets | FD25: Bedding sets | FE25: Hygiene kits | FF25: Yes | FG25: Flash Flood | FH25: Before 2017 | FI25: 0 | FJ25: 0 | FK25: 0 | FL25: Yes | FM25: Onsite | FN25: < 1km
A26: OR727 | B26: Adale Town | C26: 14 | D26: 2018-11-22 | E26: Melaku Alemu | F26: Male | G26: Oromia | H26: Arsi | I26: Amigna | J26: Adele 01 kebele | K26: 7.79052049 | L26: 39.91204382 | M26: Yes | P26: Planned camp/site | R26: 2017-09-18 | S26: Unknown | T26: Yes | U26: Public/Government | X26: Yes | Y26: 0 | Z26: Yes | AA26: Husen Aman | AB26: 0915848474 | AC26: Yes | AD26: Government | AF26: Amigna Woreda Disaster Resk Menagement Office | AG26: Temesgen Amensisa | AH26: 0921086809 | AI26: Yes | AJ26: Yes | AK26: Yes | AL26: Yes | AM26: Yes | AN26: No | AO26: Yes | AP26: Yes | AQ26: Somali | AR26: Fafan | AS26: Jijiga | AT26: 06 | AU26: Somali | AV26: Fafan | AW26: Jijiga | AX26: 12 | AY26: 41 | AZ26: 10 | BA26: 16 | BB26: 5 | BC26: 38 | BD26: 0 | BE26: 69 | BF26: 10 | BG26: 20 | BH26: 4 | BI26: 26 | BJ26: 0 | BK26: 60 | BL26: 129 | BM26: 0 | BN26: 6 | BO26: 14 | BP26: 0 | BQ26: 1 | BR26: 0 | BS26: 0 | BT26: 5 | BU26: 0 | BV26: 1 | BW26: 42996 | BX26: 43138 | BZ26: No | CA26: Lack of safety/security | CB26: None | CC26: None | CD26: 25-50 % | CE26: None | CF26: > 75% | CG26: On-site (< 20 minutes) | CH26: Water taps from piped network | CL26: 5-10 liters | CO26: Not so good (not hygienic) | CP26: 15 | CQ26: No | CS26: No | CT26: No | CU26: No waste disposal system | CW26: No | CY26: Yes, On Site | CZ26: Yes | DA26: Food Assistance | DC26: No | DD26: No | DE26: No | DF26: None | DH26: None | DJ26: None | DL26: Yes | DN26: On-site (< 3 km) | DO26: Government | DQ26: Yes | DR26: No | DV26: Other | DW26: Construction | DX26: 0 | DY26: No | DZ26: Last month | EA26: No | EB26: No | EC26: No | EE26: Yes | EF26: No | EG26: Police/Militia | EI26: None | EJ26: No | EK26: None | EL26: No | EM26: None | EN26: No | EO26: 0 | EP26: 0 | EQ26: Yes | ES26: Yes | EU26: Yes | EV26: Yes, there is lighting and it is adequate | EW26: Site Management | EY26: access to services distribution shelter how to get information relief assistance | EZ26: No | FA26: > 75% | FB26: Yes | FC26: Emergency shelter kits | FD26: Bedding sets | FE26: Kitchen sets | FF26: No | FG26: Conflict | FH26: During 2017 | FI26: 0 | FJ26: 0 | FK26: 0 | FL26: Yes | FM26: Onsite | FN26: < 1km
A27: AM188 | B27: Addis Zemen Town | C27: 14 | D27: 2018-11-29 | E27: Hiwot Chekole | F27: Male | G27: Amhara | H27: South Gonder | I27: Libo Kemkem | J27: Kebele 01 | K27: 12.12430291 | L27: 37.78357897 | M27: Yes | P27: Host community/families | R27: 2017-07-07 | S27: Unknown | T27: Yes | U27: Public/Government | X27: No | AC27: Yes | AD27: Government | AF27: Kebele 01 Adminstration | AG27: Gebrehiwot Adugna | AH27: 0918007693 | AI27: Yes | AJ27: Yes | AK27: Yes | AL27: Yes | AM27: Yes | AN27: No | AO27: Yes | AP27: Yes | AQ27: Oromia | AR27: Bunno Bedele | AS27: Mako | AT27: Kebele 01 | AU27: Somali | AV27: Fafan | AW27: Jigjiga City Administration | AX27: Kebele 06 | AY27: 25 | AZ27: 5 | BA27: 4 | BB27: 0 | BC27: 20 | BD27: 0 | BE27: 29 | BF27: 1 | BG27: 5 | BH27: 1 | BI27: 6 | BJ27: 0 | BK27: 13 | BL27: 42 | BM27: 0 | BN27: 0 | BO27: 2 | BP27: 0 | BQ27: 0 | BR27: 0 | BS27: 0 | BT27: 5 | BU27: 0 | BV27: 14 | BW27: 42923 | BX27: 43429 | BZ27: No | CA27: Lack of safety/security | CB27: None | CC27: None | CD27: None | CE27: 25-50 % | CF27: > 75% | CG27: On-site (> 20 minutes) | CH27: Water taps from piped network | CL27: 5-10 liters | CO27: Not so good (not hygienic) | CP27: 0 | CQ27: No | CS27: No | CT27: No | CU27: Burning | CW27: No | CY27: No | CZ27: Yes | DA27: Other | DB27: Working daily labour | DC27: No | DD27: No | DE27: No | DF27: Malaria | DH27: None | DJ27: None | DL27: Yes | DN27: On-site (< 3 km) | DO27: Government | DQ27: Yes | DR27: No | DV27: Daily Laborer | DX27: 50 | DY27: No | EA27: No | EB27: No | EC27: No | EE27: Yes | EF27: No | EG27: Police/Militia | EI27: None | EJ27: No | EK27: None | EL27: No | EM27: None | EN27: No | EO27: 0 | EP27: 0 | EQ27: Yes | ES27: Yes | EU27: Yes | EV27: No lighting | EW27: Families/Friends | EY27: distribution relief assistance | EZ27: No | FA27: None | FB27: None | FC27: Bedding sets | FD27: Kitchen sets | FE27: Hygiene kits | FF27: No | FG27: Conflict | FH27: During 2017 | FI27: 0 | FJ27: 0 | FK27: 0 | FL27: Yes | FM27: Onsite | FN27: < 1km
A28: OR434 | B28: Adea | C28: 13 | D28: 2018-09-22 | E28: Roba Betero | F28: Male | G28: Oromia | H28: West Guji | I28: Galana | J28: Bore | K28: 5.980148036 | L28: 37.97129541 | M28: Yes | P28: Dispersed Settlement | R28: 2017-07-24 | S28: Unknown | T28: Yes | U28: Public/Government | X28: No | AC28: Yes | AD28: Government | AF28: Woreda DRM office | AG28: Nuguse Jarso | AH28: 0916634598 | AI28: No | AJ28: Yes | AK28: Yes | AL28: Yes | AM28: Yes | AN28: Yes | AO28: Yes | AP28: Yes | AQ28: Oromia | AR28: West Guji | AS28: Galana | AT28: Bore (Tulumo ) | AU28: Oromia | AV28: West Guji | AW28: Galana | AX28: Bore(Dorane) | AY28: 320 | AZ28: 336 | BA28: 448 | BB28: 144 | BC28: 448 | BD28: 128 | BE28: 1504 | BF28: 288 | BG28: 400 | BH28: 144 | BI28: 400 | BJ28: 112 | BK28: 1344 | BL28: 2848 | BM28: 0 | BN28: 81 | BO28: 53 | BP28: 7 | BQ28: 0 | BR28: 0 | BS28: 0 | BT28: 5 | BU28: 0 | BV28: 0 | BW28: 42940 | BX28: 43083 | BZ28: No | CA28: accessibility lack of food house damaged destroyed lack of security safety no livelihood | CB28: None | CC28: < 25% | CD28: None | CE28: 25-50 % | CF28: None | CG28: On-site (> 20 minutes) | CH28: Surface water sources (ponds/canals/river/lake/birkat) | CL28: < 5 liters | CO28: Not so good (not hygienic) | CP28: 0 | CQ28: No | CS28: No | CT28: No | CU28: No waste disposal system | CW28: Yes | CY28: Yes, On Site | CZ28: Yes | DA28: Cultivated/Sale of Livestock | DC28: No | DD28: No | DE28: No | DF28: Malaria | DH28: Pneumonia | DJ28: None | DL28: Yes | DN28: Off-site (> 3 km) | DO28: Government | DQ28: No | DR28: No | DV28: Agro-Pastoralism | DX28: 25 | DY28: No | DZ28: > 3 months ago | EA28: Yes | EB28: Yes < 25% | EC28: No | EE28: Yes | EF28: No | EG28: Local authorities | EI28: None | EJ28: No | EK28: None | EL28: No | EM28: None | EN28: No | EO28: 0 | EP28: 0 | EQ28: No | ES28: No | EU28: No | EV28: No lighting | EW28: Local Leader | EY28: access to services distribution shelter safety and security relief assistance situation in origin | EZ28: No | FA28: 25-50 % | FB28: Yes | FC28: Emergency shelter kits | FD28: Bedding sets | FE28: Kitchen sets | FF28: Yes | FG28: Conflict | FH28: During 2017 | FI28: 1 | FJ28: 0 | FK28: 0 | FL28: Yes | FM28: Onsite | FN28: 1-2km
A29: TG121 | B29: Adebay | C29: 14 | D29: 2018-11-14 | E29: Mulugeta Shishay | F29: Male | G29: Tigray | H29: Western | I29: Kafta Humera | J29: Adebay | K29: 14.20477037 | L29: 36.75818064 | M29: Yes | P29: Host community/families | R29: 2016-08-19 | S29: Unknown | T29: Yes | U29: Public/Government | X29: Yes | Y29: 1 | Z29: Yes | AA29: Meseret Teklu | AB29: 0921590970 | AC29: Yes | AD29: Government | AF29: Woreda of Labour and Social Affair | AG29: Samrawit Tegegne | AH29: 0914771995 | AI29: Yes | AJ29: Yes | AK29: Yes | AL29: Yes | AM29: Yes | AN29: Yes | AO29: Yes | AP29: Yes | AQ29: Amhara | AR29: West Gonder | AS29: Metema | AT29: Different Kebeles | AU29: Amhara | AV29: Central Gonder | AW29: Gonder Zuria | AX29: Different Kebeles | AY29: 28 | AZ29: 2 | BA29: 7 | BB29: 4 | BC29: 15 | BD29: 2 | BE29: 30 | BF29: 2 | BG29: 1 | BH29: 2 | BI29: 9 | BJ29: 1 | BK29: 15 | BL29: 45 | BM29: 0 | BN29: 2 | BO29: 5 | BP29: 0 | BQ29: 2 | BR29: 0 | BS29: 3 | BT29: 7 | BU29: 0 | BV29: 6 | BW29: 42601 | BX29: 43365 | BZ29: No | CA29: accessibility lack of food house damaged destroyed lack of security safety no livelihood | CB29: None | CC29: None | CD29: None | CE29: 25-50 % | CF29: < 25% | CG29: On-site (< 20 minutes) | CH29: Surface water sources (ponds/canals/river/lake/birkat) | CL29: < 5 liters | CO29: Not so good (not hygienic) | CP29: 19 | CQ29: No | CS29: No | CT29: No | CU29: Garbage pit | CW29: Yes | CY29: Yes, On Site | CZ29: Yes | DA29: Other | DB29: Daily Labourer | DC29: Yes | DD29: No | DE29: No | DF29: Malaria | DH29: Diarrhea | DJ29: Pneumonia | DL29: Yes | DN29: On-site (< 3 km) | DO29: Government | DQ29: Yes | DR29: No | DV29: Daily Laborer | DX29: 6 | DY29: No | DZ29: Irregular | EA29: No | EB29: No | EC29: No | EE29: Yes | EF29: No | EG29: Police/Militia | EI29: None | EJ29: No | EK29: Psychological/Emotional abuse | EL29: No | EM29: child psycho distress child labor | EN29: No | EO29: 0 | EP29: 0 | EQ29: Yes | ES29: Yes | EU29: Yes | EV29: Yes, there is lighting but it is NOT adequate | EW29: Authorities | EY29: access to services distribution shelter safety and security how to get information relief assistance situation in origin | EZ29: No | FA29: < 25% | FB29: Yes | FC29: Emergency shelter kits | FD29: Kitchen sets | FE29: Bedding sets | FF29: Yes | FG29: Conflict | FH29: Before 2017 | FI29: 0 | FJ29: 0 | FK29: 0 | FL29: Yes | FM29: Onsite | FN29: 1-2km
A30: SO651 | B30: Adeley | C30: 13 | D30: 2018-09-17 | E30: Wali Awale muhumed | F30: Male | G30: Somali | H30: Liben | I30: Guradamole | J30: Adeley | K30: 6.5381233 | L30: 40.34964419 | M30: Yes | P30: Spontaneous camp/site | R30: 2017-09-20 | S30: Unknown | T30: Yes | U30: Public/Government | X30: Yes | Y30: 1 | Z30: Yes | AA30: Ibrahim malin aden | AB30: XXXX | AC30: Yes | AD30: Government | AF30: Adeley | AG30: Jamale jamai Elmi | AH30: XXXX | AI30: Yes | AJ30: Yes | AK30: Yes | AL30: Yes | AM30: Yes | AN30: Yes | AO30: Yes | AP30: Yes | AQ30: Oromia | AR30: Bale | AS30: Berbere | AT30: Sirima | AU30: Somali | AV30: Liben | AW30: Guradamole | AX30: Hariri dhaba | AY30: 626 | AZ30: 250 | BA30: 470 | BB30: 282 | BC30: 532 | BD30: 313 | BE30: 1847 | BF30: 313 | BG30: 344 | BH30: 532 | BI30: 563 | BJ30: 188 | BK30: 1940 | BL30: 3787 | BM30: 0 | BN30: 59 | BO30: 106 | BP30: 0 | BQ30: 6 | BR30: 0 | BS30: 0 | BT30: 3 | BU30: 2 | BV30: 10 | BW30: 42998 | BX30: 43139 | BZ30: No | CA30: accessibility lack of food house damaged destroyed lack of security safety no livelihood | CB30: None | CC30: < 25% | CD30: None | CE30: < 25% | CF30: None | CG30: On-site (> 20 minutes) | CH30: Surface water sources (ponds/canals/river/lake/birkat) | CL30: 5-10 liters | CM30: Suspended solids | CO30: No toilets | CQ30: No | CT30: No | CU30: No waste disposal system | CW30: Yes | CY30: Yes, On Site | CZ30: Yes | DA30: Food Assistance | DC30: No | DD30: No | DE30: No | DF30: Malaria | DH30: Diarrhea | DJ30: Pneumonia | DL30: Yes | DN30: On-site (< 3 km) | DO30: Government | DQ30: Yes | DR30: No | DV30: Agro-Pastoralism | DX30: 0 | DY30: No | DZ30: Last month | EA30: No | EB30: No | EC30: No | EE30: Yes | EF30: No | EG30: Community leaders | EI30: None | EJ30: No | EK30: None | EL30: No | EM30: None | EN30: No | EO30: 0 | EP30: 0 | EQ30: No | ES30: Yes | EU30: Yes | EV30: No lighting | EW30: Local Leader | EY30: access to services distribution registration shelter relief assistance | EZ30: No | FA30: None | FB30: Yes | FC30: Emergency shelter kits | FD30: Bedding sets | FE30: Kitchen sets | FF30: Yes | FG30: Conflict | FH30: During 2017 | FI30: 0 | FJ30: 0 | FK30: 0 | FL30: Yes | FM30: Offsite | FN30: 3-5km
A31: AF191 | B31: Adgura | C31: 14 | D31: 2018-11-26 | E31: Azeb Admasu | F31: Female | G31: Afar | H31: Gabi (Zone 3) | I31: Gewane | J31: Briforo | K31: 10.04476496 | L31: 40.60795111 | M31: Yes | P31: Spontaneous camp/site | R31: 2015-08-25 | S31: Unknown | T31: Yes | U31: Public/Government | X31: Yes | Y31: 0 | Z31: Yes | AA31: Esa Ahmed | AB31: 0916612066 | AC31: Yes | AD31: Government | AF31: Briforo kebele administration | AG31: Esa Ahmed | AH31: XXXX | AI31: Yes | AJ31: Yes | AK31: Yes | AL31: Yes | AM31: Yes | AN31: No | AO31: Yes | AP31: Yes | AQ31: Afar | AR31: Gabi (Zone 3) | AS31: Gewane | AT31: Briforo | AY31: 600 | AZ31: 360 | BA31: 300 | BB31: 270 | BC31: 630 | BD31: 60 | BE31: 1620 | BF31: 330 | BG31: 330 | BH31: 240 | BI31: 600 | BJ31: 30 | BK31: 1530 | BL31: 3150 | BM31: 0 | BN31: 0 | BO31: 0 | BP31: 0 | BQ31: 0 | BR31: 0 | BS31: 0 | BT31: 0 | BU31: 0 | BV31: 0 | BW31: 42241 | BX31: 42250 | BZ31: No | CA31: accessibility lack of food no livelihood basic infrastructures damage | CB31: None | CC31: > 75% | CD31: None | CE31: None | CF31: None | CG31: On-site (< 20 minutes) | CH31: Water truck | CL31: 5-10 liters | CM31: Suspended solids | CO31: No toilets | CQ31: No | CT31: No | CU31: No waste disposal system | CW31: Yes | CY31: Yes, Offsite | CZ31: Yes | DA31: Food Assistance | DC31: Yes | DD31: Yes | DE31: Yes | DF31: Malaria | DH31: Pneumonia | DJ31: Diarrhea | DL31: Yes | DN31: Off-site (> 3 km) | DO31: Government | DQ31: Yes | DR31: No | DV31: Pastoralism | DX31: 0 | DY31: No | DZ31: Last month | EA31: Yes | EB31: No | EC31: No | EE31: Yes | EF31: No | EG31: Police/Militia | EI31: None | EJ31: No | EK31: None | EL31: No | EM31: None | EN31: No | EO31: 0 | EP31: 0 | EQ31: Yes | ES31: Yes | EU31: Yes | EV31: No lighting | EW31: Site Management | EY31: access to services relief assistance | EZ31: No | FA31: > 75% | FB31: Yes | FC31: None | FD31: None | FE31: None | FF31: Yes | FG31: Flash Flood | FH31: Before 2017 | FI31: 0 | FJ31: 0 | FK31: 0 | FL31: Yes | FM31: Offsite | FN31: 3-5km
A32: TG166 | B32: Adi Gudem | C32: 14 | D32: 2018-11-19 | E32: Asmelash Gebrehiwt | F32: Male | G32: Tigray | H32: South East | I32: Hintalo Wejirat | J32: Adi-Gudem Town | K32: 13.25063314 | L32: 39.51625576 | M32: Yes | P32: Host community/families | R32: 2016-08-08 | S32: Unknown | T32: Yes | U32: Public/Government | X32: No | AC32: Yes | AD32: Government | AF32: Office of Labor and Social Affairs | AG32: Nigisti Teka | AH32: 0914587654 | AI32: Yes | AJ32: Yes | AK32: Yes | AL32: Yes | AM32: Yes | AN32: Yes | AO32: Yes | AP32: Yes | AQ32: Oromia | AR32: Bunno Bedele | AS32: Chora | AT32: Different Kebelles | AU32: Oromia | AV32: East Wellega | AW32: Gida Ayana | AX32: Different Kebelles | AY32: 387 | AZ32: 52 | BA32: 105 | BB32: 16 | BC32: 280 | BD32: 10 | BE32: 463 | BF32: 39 | BG32: 36 | BH32: 8 | BI32: 170 | BJ32: 5 | BK32: 258 | BL32: 721 | BM32: 0 | BN32: 9 | BO32: 22 | BP32: 0 | BQ32: 2 | BR32: 0 | BS32: 15 | BT32: 6 | BU32: 0 | BV32: 24 | BW32: 42590 | BX32: 43409 | BZ32: No | CA32: house damaged destroyed lack of security safety no livelihood | CB32: None | CC32: None | CD32: None | CE32: < 25% | CF32: > 75% | CG32: On-site (< 20 minutes) | CH32: Water taps from piped network | CL32: < 5 liters | CO32: Not so good (not hygienic) | CP32: 62 | CQ32: No | CS32: No | CT32: No | CU32: Garbage pit | CW32: Yes | CY32: Yes, On Site | CZ32: Yes | DA32: Other | DB32: Daily Labor | DC32: Yes | DD32: No | DE32: No | DF32: Pneumonia | DH32: Other | DI32: Acute Upper Respiratory Tract Infection | DJ32: Scabies | DL32: Yes | DN32: On-site (< 3 km) | DO32: Government | DQ32: No | DR32: No | DV32: Daily Laborer | DX32: 3 | DY32: No | DZ32: Irregular | EA32: No | EB32: No | EC32: Yes | ED32: Abroad | EE32: Yes | EF32: No | EG32: Police/Militia | EI32: None | EJ32: No | EK32: denial of resources psycho emotional abuse | EL32: No | EM32: child psycho distress children separated | EN32: No | EO32: 0 | EP32: 0 | EQ32: Yes | ES32: Yes | EU32: Yes | EV32: Yes, there is lighting but it is NOT adequate | EW32: Authorities | EY32: access to services distribution shelter relief assistance situation in origin | EZ32: No | FA32: None | FB32: Yes | FC32: Bedding sets | FD32: Kitchen sets | FE32: Emergency shelter kits | FF32: Yes | FG32: Conflict | FH32: Before 2017 | FI32: 0 | FJ32: 0 | FK32: 0 | FL32: Yes | FM32: Onsite | FN32: < 1km
A33: TG169 | B33: Adi-Abo Golja | C33: 14 | D33: 2018-11-16 | E33: Daniel Abraham | F33: Male | G33: Tigray | H33: Southern | I33: Raya Alamata | J33: Limat | K33: 12.35174758 | L33: 39.5829601 | M33: Yes | P33: Host community/families | R33: 2017-10-17 | S33: Unknown | T33: Yes | U33: Public/Government | X33: No | AC33: Yes | AD33: Government | AF33: Office of Agriculture and Rural Development | AG33: Shambel Melku | AH33: 0941368134 | AI33: Yes | AJ33: Yes | AK33: Yes | AL33: Yes | AM33: Yes | AN33: Yes | AO33: Yes | AP33: Yes | AQ33: Oromia | AR33: Ilubabor | AS33: Dorani | AT33: Different Kebeles | AU33: Oromia | AV33: Kelem Wellega | AW33: Dale Sadi | AX33: Different Kebeles | AY33: 141 | AZ33: 14 | BA33: 60 | BB33: 14 | BC33: 139 | BD33: 20 | BE33: 247 | BF33: 31 | BG33: 53 | BH33: 29 | BI33: 102 | BJ33: 16 | BK33: 231 | BL33: 478 | BM33: 0 | BN33: 2 | BO33: 6 | BP33: 0 | BQ33: 2 | BR33: 0 | BS33: 9 | BT33: 2 | BU33: 0 | BV33: 16 | BW33: 43025 | BX33: 43406 | BZ33: No | CA33: house damaged destroyed lack of security safety no livelihood | CB33: None | CC33: None | CD33: None | CE33: < 25% | CF33: 25-50 % | CG33: On-site (< 20 minutes) | CH33: Protected wells (hand pumps/motorized boreholes) | CL33: < 5 liters | CM33: Taste | CO33: No toilets | CQ33: No | CT33: No | CU33: No waste disposal system | CW33: Yes | CY33: Yes, Offsite | CZ33: Yes | DA33: Other | DB33: Daily labor | DC33: Yes | DD33: No | DE33: No | DF33: Malaria | DH33: Pneumonia | DJ33: Scabies | DL33: Yes | DN33: On-site (< 3 km) | DO33: Government | DQ33: No | DR33: No | DV33: Daily Laborer | DX33: 3 | DY33: No | DZ33: Irregular | EA33: No | EB33: No | EC33: Yes | ED33: Abroad | EE33: Yes | EF33: Yes | EG33: Police/Militia | EI33: None | EJ33: No | EK33: denial of resources psycho emotional abuse | EL33: No | EM33: child psycho distress children separated | EN33: No | EO33: 0 | EP33: 0 | EQ33: Yes | ES33: Yes | EU33: Yes | EV33: Yes, there is lighting but it is NOT adequate | EW33: Authorities | EY33: access to services distribution shelter how to get information relief assistance situation in origin | EZ33: No | FA33: None | FB33: Yes | FC33: Bedding sets | FD33: Kitchen sets | FE33: Emergency shelter kits | FF33: Yes | FG33: Conflict | FH33: During 2017 | FI33: 1 | FJ33: 0 | FK33: 0 | FL33: Yes | FM33: Onsite | FN33: < 1km
A34: TG202 | B34: Adi-Bidera | C34: 14 | D34: 2018-11-11 | E34: Daniel Abraham | F34: Male | G34: Tigray | H34: Southern | I34: Raya Azebo | J34: Mechare | K34: 12.76986479 | L34: 39.8057515 | M34: Yes | P34: Host community/families | R34: 2018-09-08 | S34: Unknown | T34: Yes | U34: Public/Government | X34: No | AC34: Yes | AD34: Government | AF34: Office of kebele Admininstration | AG34: Kiros Michaelay | AH34: 0914618625 | AI34: Yes | AJ34: Yes | AK34: Yes | AL34: Yes | AM34: Yes | AN34: Yes | AO34: Yes | AP34: Yes | AQ34: Oromia | AR34: Jimma | AS34: Goma | AT34: Different Kebeles | AU34: Oromia | AV34: Ilubabor | AW34: Badele Zuria | AX34: Different Kebeles | AY34: 63 | AZ34: 8 | BA34: 14 | BB34: 4 | BC34: 33 | BD34: 6 | BE34: 65 | BF34: 4 | BG34: 9 | BH34: 9 | BI34: 23 | BJ34: 3 | BK34: 48 | BL34: 113 | BM34: 0 | BN34: 0 | BO34: 4 | BP34: 0 | BQ34: 1 | BR34: 0 | BS34: 2 | BT34: 0 | BU34: 0 | BV34: 0 | BW34: 43351 | BX34: 43406 | BZ34: No | CA34: house damaged destroyed lack of security safety no livelihood | CB34: None | CC34: None | CD34: None | CE34: < 25% | CF34: 25-50 % | CG34: On-site (< 20 minutes) | CH34: Protected wells (hand pumps/motorized boreholes) | CL34: < 5 liters | CO34: No toilets | CQ34: No | CT34: No | CU34: No waste disposal system | CW34: Yes | CY34: Yes, Offsite | CZ34: Yes | DA34: Other | DB34: Daily labor | DC34: Yes | DD34: No | DE34: No | DF34: Malaria | DH34: Other | DI34: Acute Upper Respiratory Tract Infection | DJ34: Scabies | DL34: Yes | DN34: On-site (< 3 km) | DO34: Government | DQ34: No | DR34: No | DV34: Daily Laborer | DX34: 2 | DY34: No | DZ34: Irregular | EA34: No | EB34: No | EC34: Yes | ED34: Abroad | EE34: Yes | EF34: No | EG34: Police/Militia | EI34: None | EJ34: No | EK34: denial of resources psycho emotional abuse | EL34: No | EM34: child psycho distress children separated | EN34: No | EO34: 0 | EP34: 0 | EQ34: Yes | ES34: Yes | EU34: Yes | EV34: Yes, there is lighting but it is NOT adequate | EW34: Authorities | EY34: access to services distribution shelter how to get information relief assistance situation in origin | EZ34: No | FA34: None | FB34: Yes | FC34: Bedding sets | FD34: Kitchen sets | FE34: Emergency shelter kits | FF34: Yes | FG34: Conflict | FH34: In 2018 | FI34: 1 | FJ34: 0 | FK34: 0 | FL34: Yes | FM34: Onsite | FN34: < 1km
A35: TG124 | B35: Adi-daero Town | C35: 14 | D35: 2018-11-07 | E35: Mulugeta Shishay | F35: Male | G35: Tigray | H35: North Western | I35: Laelay Adiyabo | J35: Adidaero | K35: 14.3124753 | L35: 38.17557691 | M35: Yes | P35: Host community/families | R35: 2016-08-07 | S35: Unknown | T35: Yes | U35: Public/Government | X35: Yes | Y35: 1 | Z35: Yes | AA35: Fesseha Gerezghier | AB35: 0918721892 | AC35: Yes | AD35: Government | AF35: Woreda of Labour and Social Affair | AG35: Tadelech Girmay | AH35: 0914192935 | AI35: Yes | AJ35: Yes | AK35: Yes | AL35: Yes | AM35: Yes | AN35: Yes | AO35: Yes | AP35: Yes | AQ35: Amhara | AR35: West Gonder | AS35: Metema | AT35: Different Kebeles | AU35: Amhara | AV35: Central Gonder | AW35: Gonder Zuria | AX35: Different Kebeles | AY35: 215 | AZ35: 24 | BA35: 27 | BB35: 11 | BC35: 124 | BD35: 3 | BE35: 189 | BF35: 18 | BG35: 22 | BH35: 8 | BI35: 91 | BJ35: 1 | BK35: 140 | BL35: 329 | BM35: 0 | BN35: 5 | BO35: 11 | BP35: 0 | BQ35: 2 | BR35: 0 | BS35: 3 | BT35: 39 | BU35: 0 | BV35: 56 | BW35: 42589 | BX35: 43379 | BZ35: No | CA35: lack of food house damaged destroyed lack of security safety no livelihood | CB35: None | CC35: None | CD35: None | CE35: 25-50 % | CF35: < 25% | CG35: On-site (< 20 minutes) | CH35: Surface water sources (ponds/canals/river/lake/birkat) | CL35: < 5 liters | CO35: Not so good (not hygienic) | CP35: 57 | CQ35: No | CS35: No | CT35: No | CU35: Garbage pit | CW35: Yes | CY35: Yes, On Site | CZ35: Yes | DA35: Other | DB35: Daily Labourer | DC35: Yes | DD35: No | DE35: No | DF35: Malaria | DH35: Diarrhea | DJ35: Pneumonia | DL35: Yes | DN35: On-site (< 3 km) | DO35: Government | DQ35: Yes | DR35: No | DV35: Daily Laborer | DX35: 5 | DY35: No | DZ35: Irregular | EA35: No | EB35: No | EC35: No | EE35: Yes | EF35: No | EG35: Police/Militia | EI35: None | EJ35: No | EK35: Psychological/Emotional abuse | EL35: No | EM35: child psycho distress child labor | EN35: No | EO35: 0 | EP35: 0 | EQ35: Yes | ES35: Yes | EU35: Yes | EV35: Yes, there is lighting but it is NOT adequate | EW35: Authorities | EY35: access to services distribution shelter safety and security how to get information relief assistance situation in origin | EZ35: No | FA35: < 25% | FB35: Yes | FC35: Emergency shelter kits | FD35: Kitchen sets | FE35: Bedding sets | FF35: Yes | FG35: Conflict | FH35: Before 2017 | FI35: 3 | FJ35: 0 | FK35: 0 | FL35: Yes | FM35: Onsite | FN35: 1-2km
A36: TG187 | B36: Adi-Deki Agera | C36: 14 | D36: 2018-11-23 | E36: Asmelash Gebrehiwet | F36: Male | G36: Tigray | H36: South East | I36: Enderta | J36: Debre Maerinet | K36: 13.38525617 | L36: 39.43192363 | M36: Yes | P36: Host community/families | R36: 2018-03-15 | S36: Unknown | T36: Yes | U36: Public/Government | X36: No | AC36: Yes | AD36: Government | AF36: Office of Kebelle Administration | AG36: Desta Gebregziabher | AH36: 0925257280 | AI36: Yes | AJ36: Yes | AK36: Yes | AL36: Yes | AM36: Yes | AN36: Yes | AO36: Yes | AP36: Yes | AQ36: Oromia | AR36: East Wellega | AS36: Guto Gida | AT36: Different Kebelles | AU36: Oromia | AV36: Bunno Bedele | AW36: Chora | AX36: Different Kebelles | AY36: 27 | AZ36: 7 | BA36: 10 | BB36: 3 | BC36: 34 | BD36: 3 | BE36: 57 | BF36: 4 | BG36: 8 | BH36: 2 | BI36: 24 | BJ36: 2 | BK36: 40 | BL36: 97 | BM36: 0 | BN36: 0 | BO36: 3 | BP36: 3 | BQ36: 1 | BR36: 0 | BS36: 3 | BT36: 1 | BU36: 0 | BV36: 2 | BW36: 43174 | BX36: 43409 | BZ36: No | CA36: house damaged destroyed lack of security safety no livelihood | CB36: None | CC36: None | CD36: None | CE36: > 75% | CF36: None | CG36: On-site (< 20 minutes) | CH36: Protected wells (hand pumps/motorized boreholes) | CL36: 5-10 liters | CO36: No toilets | CQ36: No | CT36: No | CU36: No waste disposal system | CW36: Yes | CY36: Yes, Offsite | CZ36: Yes | DA36: Other | DB36: Daily Labor | DC36: Yes | DD36: No | DE36: No | DF36: Pneumonia | DH36: Other | DI36: Acute Upper Respiratory Tract Infection | DJ36: Scabies | DL36: Yes | DN36: On-site (< 3 km) | DO36: Government | DQ36: No | DR36: No | DV36: Daily Laborer | DX36: 2 | DY36: No | DZ36: Irregular | EA36: No | EB36: No | EC36: Yes | ED36: Abroad | EE36: Yes | EF36: No | EG36: Police/Militia | EI36: None | EJ36: No | EK36: denial of resources psycho emotional abuse | EL36: No | EM36: child psycho distress children separated | EN36: No | EO36: 0 | EP36: 0 | EQ36: Yes | ES36: Yes | EU36: Yes | EV36: No lighting | EW36: Authorities | EY36: access to services distribution shelter relief assistance situation in origin | EZ36: No | FA36: None | FB36: Yes | FC36: Bedding sets | FD36: Kitchen sets | FE36: Emergency shelter kits | FF36: Yes | FG36: Conflict | FH36: In 2018 | FI36: 3 | FJ36: 0 | FK36: 0 | FL36: Yes | FM36: Onsite | FN36: < 1km
A37: TG122 | B37: Adi-Fitaw | C37: 14 | D37: 2018-11-04 | E37: Henok welay | F37: Male | G37: Tigray | H37: Central | I37: Mereb Leke | J37: Adi-Fitaw | K37: 14.46381614 | L37: 38.95965072 | M37: Yes | P37: Host community/families | R37: 2015-04-23 | S37: Unknown | T37: No, no vehicular access | U37: Public/Government | X37: No | AC37: Yes | AD37: Government | AF37: Kebelle Administration | AG37: Beyene Teklay | AH37: 0914845802 | AI37: Yes | AJ37: Yes | AK37: Yes | AL37: Yes | AM37: Yes | AN37: Yes | AO37: Yes | AP37: Yes | AQ37: Tigray | AR37: Central | AS37: Mereb Leke | AT37: Adi-Fitaw | AY37: 54 | AZ37: 10 | BA37: 37 | BB37: 2 | BC37: 71 | BD37: 13 | BE37: 133 | BF37: 11 | BG37: 14 | BH37: 14 | BI37: 76 | BJ37: 14 | BK37: 129 | BL37: 262 | BM37: 3 | BN37: 16 | BO37: 18 | BP37: 2 | BQ37: 3 | BR37: 0 | BS37: 7 | BT37: 15 | BU37: 0 | BV37: 9 | BW37: 42117 | BX37: 42263 | BZ37: No | CA37: accessibility lack of food house damaged destroyed no livelihood basic infrastructures damage | CB37: None | CC37: None | CD37: None | CE37: > 75% | CF37: None | CG37: Off-site (< 20 minutes) | CH37: Surface water sources (ponds/canals/river/lake/birkat) | CL37: < 5 liters | CM37: Suspended solids | CO37: Not so good (not hygienic) | CP37: 8 | CQ37: No | CS37: No | CT37: No | CU37: No waste disposal system | CW37: Yes | CY37: No | CZ37: No | DA37: Other | DB37: Daily Labour | DC37: Yes | DD37: No | DE37: Yes | DF37: Malaria | DH37: Diarrhea | DJ37: Pneumonia | DL37: Yes | DN37: On-site (> 3 km) | DO37: Government | DQ37: No | DR37: No | DV37: Daily Laborer | DX37: 10 | DY37: No | EA37: Yes | EB37: No | EC37: Yes | ED37: Both | EE37: Yes | EF37: Yes | EG37: Military | EI37: theft robbery physical assault | EJ37: No | EK37: physical assault denial of resources psycho emotional abuse | EL37: No | EM37: child physical abuse child psycho distress child labor | EN37: No | EO37: 0 | EP37: 0 | EQ37: Yes | ES37: No | EU37: No | EV37: No lighting | EW37: Local Leader | EY37: access to services distribution shelter how to get information relief assistance | EZ37: No | FA37: < 25% | FB37: Yes | FC37: Kitchen sets | FD37: Emergency shelter kits | FE37: Bedding sets | FF37: Yes | FG37: Conflict | FH37: Before 2017 | FI37: 2 | FJ37: 0 | FK37: 0 | FL37: Yes | FM37: Onsite | FN37: 6-10km
A38: TG123 | B38: Adi-Gebat | C38: 14 | D38: 2018-11-07 | E38: Henok welay | F38: Male | G38: Tigray | H38: Central | I38: Mereb Leke | J38: Adi-Gebat | K38: 14.32340653 | L38: 38.51563074 | M38: Yes | P38: Host community/families | R38: 2015-04-23 | S38: Unknown | T38: No, no vehicular access | U38: Public/Government | X38: No | AC38: Yes | AD38: Government | AF38: Kebelle Administration | AG38: Fshatsen Arefayne | AH38: 0962603933 | AI38: Yes | AJ38: Yes | AK38: Yes | AL38: Yes | AM38: Yes | AN38: Yes | AO38: Yes | AP38: Yes | AQ38: Tigray | AR38: Central | AS38: Mereb Leke | AT38: Adi-Gebat | AY38: 45 | AZ38: 9 | BA38: 14 | BB38: 30 | BC38: 48 | BD38: 11 | BE38: 112 | BF38: 7 | BG38: 13 | BH38: 18 | BI38: 53 | BJ38: 12 | BK38: 103 | BL38: 215 | BM38: 1 | BN38: 8 | BO38: 12 | BP38: 2 | BQ38: 5 | BR38: 0 | BS38: 0 | BT38: 5 | BU38: 0 | BV38: 20 | BW38: 42117 | BX38: 42629 | BZ38: No | CA38: accessibility lack of food house damaged destroyed lack of security safety no livelihood basic infrastructures damage | CB38: None | CC38: None | CD38: None | CE38: > 75% | CF38: None | CG38: Off-site (> 20 minutes) | CH38: Surface water sources (ponds/canals/river/lake/birkat) | CL38: < 5 liters | CM38: Suspended solids | CO38: Not so good (not hygienic) | CP38: 5 | CQ38: No | CS38: No | CT38: No | CU38: No waste disposal system | CW38: Yes | CY38: No | CZ38: No | DA38: Other | DB38: Daily Labour | DC38: Yes | DD38: No | DE38: Yes | DF38: Malaria | DH38: Pneumonia | DJ38: Diarrhea | DL38: Yes | DN38: On-site (> 3 km) | DO38: Government | DQ38: No | DR38: No | DV38: Daily Laborer | DX38: 10 | DY38: No | EA38: Yes | EB38: No | EC38: Yes | ED38: Within Ethiopia | EE38: Yes | EF38: Yes | EG38: Military | EI38: theft robbery physical assault | EJ38: No | EK38: physical assault denial of resources psycho emotional abuse | EL38: No | EM38: child physical abuse child psycho distress child labor | EN38: No | EO38: 0 | EP38: 0 | EQ38: Yes | ES38: No | EU38: No | EV38: No lighting | EW38: Local Leader | EY38: access to services distribution shelter safety and security how to get information relief assistance situation in origin | EZ38: No | FA38: < 25% | FB38: Yes | FC38: Kitchen sets | FD38: Emergency shelter kits | FE38: Bedding sets | FF38: Yes | FG38: Conflict | FH38: Before 2017 | FI38: 1 | FJ38: 0 | FK38: 0 | FL38: Yes | FM38: Onsite | FN38: 6-10km
A39: TG170 | B39: Adi-Golo | C39: 14 | D39: 2018-11-08 | E39: Asmelash Gebrehiwet | F39: Male | G39: Tigray | H39: Southern | I39: Raya Azebo | J39: Bagie Delwo | K39: 12.58919735 | L39: 39.70210532 | M39: Yes | P39: Host community/families | R39: 2018-03-16 | S39: Unknown | T39: Yes | U39: Public/Government | X39: No | AC39: Yes | AD39: Government | AF39: Office of Kebelle Administration | AG39: Afera Abate | AH39: 0933608842 | AI39: Yes | AJ39: Yes | AK39: Yes | AL39: Yes | AM39: Yes | AN39: Yes | AO39: Yes | AP39: Yes | AQ39: Oromia | AR39: Jimma | AS39: Chora | AT39: Different Kebelles | AU39: Oromia | AV39: Bunno Bedele | AW39: Chora | AX39: Different Kebelles | AY39: 118 | AZ39: 12 | BA39: 29 | BB39: 18 | BC39: 53 | BD39: 9 | BE39: 121 | BF39: 9 | BG39: 12 | BH39: 12 | BI39: 49 | BJ39: 4 | BK39: 86 | BL39: 207 | BM39: 0 | BN39: 4 | BO39: 6 | BP39: 0 | BQ39: 0 | BR39: 0 | BS39: 5 | BT39: 2 | BU39: 0 | BV39: 6 | BW39: 43175 | BX39: 43406 | BZ39: No | CA39: lack of security safety no livelihood | CB39: None | CC39: None | CD39: None | CE39: > 75% | CF39: None | CG39: Off-site (> 20 minutes) | CH39: Unprotected wells (open wells) | CL39: < 5 liters | CM39: Odor/smell | CO39: No toilets | CQ39: No | CT39: No | CU39: No waste disposal system | CW39: Yes | CY39: Yes, Offsite | CZ39: Yes | DA39: Other | DB39: Daily Labor | DC39: No | DD39: No | DE39: No | DF39: Malaria | DH39: Other | DI39: Acuit for Feverile Illness | DJ39: Scabies | DL39: Yes | DN39: On-site (< 3 km) | DO39: Government | DQ39: No | DR39: No | DV39: Daily Laborer | DX39: 3 | DY39: No | DZ39: Irregular | EA39: No | EB39: No | EC39: Yes | ED39: Abroad | EE39: Yes | EF39: No | EG39: Police/Militia | EI39: None | EJ39: No | EK39: denial of resources psycho emotional abuse | EL39: No | EM39: child psycho distress children separated | EN39: No | EO39: 0 | EP39: 0 | EQ39: Yes | ES39: Yes | EU39: Yes | EV39: No lighting | EW39: Authorities | EY39: access to services distribution shelter relief assistance situation in origin | EZ39: No | FA39: None | FB39: Yes | FC39: Bedding sets | FD39: Kitchen sets | FE39: Emergency shelter kits | FF39: Yes | FG39: Conflict | FH39: In 2018 | FI39: 0 | FJ39: 0 | FK39: 0 | FL39: Yes | FM39: Onsite | FN39: < 1km
A40: TG113 | B40: Adi-grat Town | C40: 14 | D40: 2018-11-01 | E40: Gebrehiwot Berhe | F40: Male | G40: Tigray | H40: Eastern | I40: Adigrat Town | J40: Adi-grat Town | K40: 14.27858471 | L40: 39.45564531 | M40: Yes | P40: Host community/families | R40: 2016-07-17 | S40: Unknown | T40: Yes | U40: Public/Government | X40: Yes | Y40: 0 | Z40: Yes | AA40: Hadgu Kidane | AB40: 0918785119 | AC40: Yes | AD40: Government | AF40: Woreda Labor and Social Affair | AG40: Alem Beyene | AH40: 0914091897 | AI40: Yes | AJ40: Yes | AK40: Yes | AL40: Yes | AM40: Yes | AN40: Yes | AO40: Yes | AP40: Yes | AQ40: Amhara | AR40: Central Gonder | AS40: Gonder Zuria | AT40: Different kebelle | AU40: Oromia | AV40: West Arsi | AW40: Shashemene Zuria | AX40: Different kebelle | AY40: 1325 | AZ40: 87 | BA40: 108 | BB40: 90 | BC40: 963 | BD40: 9 | BE40: 1257 | BF40: 79 | BG40: 115 | BH40: 94 | BI40: 539 | BJ40: 8 | BK40: 835 | BL40: 2092 | BM40: 0 | BN40: 49 | BO40: 59 | BP40: 4 | BQ40: 11 | BR40: 0 | BS40: 9 | BT40: 48 | BU40: 0 | BV40: 412 | BW40: 42568 | BX40: 43403 | BZ40: No | CA40: accessibility lack of food house damaged destroyed lack of security safety no livelihood basic infrastructures damage | CB40: None | CC40: None | CD40: None | CE40: 25-50 % | CF40: None | CG40: On-site (< 20 minutes) | CH40: Surface water sources (ponds/canals/river/lake/birkat) | CL40: < 5 liters | CM40: Odor/smell | CO40: Not so good (not hygienic) | CP40: 301 | CQ40: No | CS40: No | CT40: No | CU40: Garbage pit | CW40: Yes | CY40: Yes, On Site | CZ40: Yes | DA40: Other | DB40: Daily Labor | DC40: No | DD40: No | DE40: No | DF40: UTI | DH40: Pneumonia | DJ40: Scabies | DL40: Yes | DN40: On-site (< 3 km) | DO40: Government | DQ40: Yes | DR40: No | DV40: Daily Laborer | DX40: 2 | DY40: No | DZ40: Last month | EA40: No | EB40: No | EC40: Yes | ED40: Both | EE40: Yes | EF40: Yes | EG40: Police/Militia | EI40: alcohol drug friction host comm theft robbery | EJ40: No | EK40: Psychological/Emotional abuse | EL40: No | EM40: child physical abuse child psycho distress child labor child abduction children separated | EN40: No | EO40: 0 | EP40: 0 | EQ40: Yes | ES40: Yes | EU40: Yes | EV40: Yes, there is lighting but it is NOT adequate | EW40: Local Leader | EY40: access to services distribution shelter safety and security how to get information relief assistance other | EZ40: Yes | FA40: None | FB40: Yes | FC40: Emergency shelter kits | FD40: Kitchen sets | FE40: Bedding sets | FF40: Yes | FG40: Conflict | FH40: Before 2017 | FI40: 0 | FJ40: 1 | FK40: 0 | FL40: Yes | FM40: Onsite | FN40: 1-2km
A41: TG101 | B41: Adi-Hagos Tsegay | C41: 14 | D41: 2018-11-15 | E41: Asmelash Gebrehiwot | F41: Male | G41: Tigray | H41: Southern | I41: Raya Alamata | J41: Limat | K41: 12.3700238 | L41: 39.60342601 | M41: Yes | P41: Host community/families | R41: 2017-08-16 | S41: Unknown | T41: Yes | U41: Public/Government | X41: Yes | Y41: 4 | Z41: Yes | AA41: Abera Belay | AB41: 0935368535 | AC41: Yes | AD41: Government | AF41: Office of Agriculture and Rural Development | AG41: Shambel Melku | AH41: 0941368134 | AI41: Yes | AJ41: Yes | AK41: Yes | AL41: Yes | AM41: Yes | AN41: Yes | AO41: Yes | AP41: Yes | AQ41: Tigray | AR41: Southern | AS41: Raya Alamata | AT41: Limat | AY41: 29 | AZ41: 16 | BA41: 13 | BB41: 11 | BC41: 8 | BD41: 7 | BE41: 55 | BF41: 14 | BG41: 18 | BH41: 9 | BI41: 9 | BJ41: 4 | BK41: 54 | BL41: 109 | BM41: 0 | BN41: 1 | BO41: 6 | BP41: 3 | BQ41: 2 | BR41: 0 | BS41: 2 | BT41: 0 | BU41: 0 | BV41: 0 | BW41: 42963 | BX41: 42983 | BZ41: Yes | CA41: house damaged destroyed lack of security safety no livelihood | CB41: None | CC41: None | CD41: None | CE41: > 75% | CF41: None | CG41: On-site (< 20 minutes) | CH41: Protected wells (hand pumps/motorized boreholes) | CL41: 10-15 liters | CO41: No toilets | CQ41: No | CT41: No | CU41: No waste disposal system | CW41: Yes | CY41: Yes, Offsite | CZ41: Yes | DA41: Cultivated/Sale of Livestock | DC41: Yes | DD41: Yes | DE41: Yes | DF41: Malaria | DH41: Other | DI41: Acute Upper Respiratory Tract Infection | DJ41: Pneumonia | DL41: Yes | DN41: On-site (> 3 km) | DO41: Government | DQ41: No | DR41: No | DV41: Farming | DX41: 26 | DY41: Yes | DZ41: Irregular | EA41: Yes | EB41: Yes 25-50% | EC41: Yes | ED41: Abroad | EE41: Yes | EF41: Yes | EG41: Police/Militia | EI41: alcohol drug theft robbery | EJ41: No | EK41: denial of resources psycho emotional abuse | EL41: No | EM41: child psycho distress child labor | EN41: No | EO41: 0 | EP41: 0 | EQ41: Yes | ES41: No | EU41: No | EV41: No lighting | EW41: Authorities | EY41: access to services distribution shelter relief assistance | EZ41: No | FA41: None | FB41: Yes | FC41: Bedding sets | FD41: Kitchen sets | FE41: Emergency shelter kits | FF41: Yes | FG41: Seasonal Flood | FH41: During 2017 | FI41: 2 | FJ41: 0 | FK41: 0 | FL41: Yes | FM41: Onsite | FN41: < 1km
A42: TG157 | B42: Adi-Haki | C42: 14 | D42: 2018-11-26 | E42: Daniel Abraham | F42: Male | G42: Tigray | H42: Mekelle | I42: Adihaki Sub City | J42: Adi Haki | K42: 13.47920018 | L42: 39.45697835 | M42: Yes | P42: Host community/families | R42: 2016-08-27 | S42: Unknown | T42: Yes | U42: Public/Government | X42: Yes | Y42: 1 | Z42: Yes | AA42: Dejen Gebregziabher | AB42: 0918771120 | AC42: Yes | AD42: Government | AF42: Office of Labor and Social Affairs | AG42: Gebrecherkos Gebretsadik | AH42: 0914749173 | AI42: Yes | AJ42: Yes | AK42: Yes | AL42: Yes | AM42: Yes | AN42: Yes | AO42: Yes | AP42: Yes | AQ42: Oromia | AR42: West Arsi | AS42: Shashemene Zuria | AT42: Different Kebelles | AU42: Oromia | AV42: Finfinne Special Zone | AW42: Walemera | AX42: Different Kebelles | AY42: 1208 | AZ42: 129 | BA42: 392 | BB42: 198 | BC42: 858 | BD42: 22 | BE42: 1599 | BF42: 165 | BG42: 363 | BH42: 185 | BI42: 443 | BJ42: 14 | BK42: 1170 | BL42: 2769 | BM42: 0 | BN42: 18 | BO42: 32 | BP42: 0 | BQ42: 4 | BR42: 0 | BS42: 22 | BT42: 23 | BU42: 0 | BV42: 156 | BW42: 42609 | BX42: 43414 | BZ42: No | CA42: house damaged destroyed lack of security safety no livelihood | CB42: None | CC42: None | CD42: None | CE42: < 25% | CF42: > 75% | CG42: On-site (< 20 minutes) | CH42: Water taps from piped network | CL42: < 5 liters | CO42: Not so good (not hygienic) | CP42: 114 | CQ42: No | CS42: No | CT42: No | CU42: Garbage pit | CW42: Yes | CY42: Yes, On Site | CZ42: Yes | DA42: Other | DB42: Daily Labor | DC42: Yes | DD42: No | DE42: No | DF42: Pneumonia | DH42: Scabies | DJ42: Other | DK42: Acute Upper Respiratory Tract Infection | DL42: Yes | DN42: Off-site (< 3 km) | DO42: Government | DQ42: No | DR42: No | DV42: Daily Laborer | DX42: 3 | DY42: No | DZ42: Irregular | EA42: No | EB42: No | EC42: Yes | ED42: Abroad | EE42: Yes | EF42: No | EG42: Police/Militia | EI42: None | EJ42: No | EK42: denial of resources psycho emotional abuse | EL42: No | EM42: child psycho distress children separated | EN42: No | EO42: 0 | EP42: 0 | EQ42: Yes | ES42: Yes | EU42: Yes | EV42: Yes, there is lighting and it is adequate | EW42: Authorities | EY42: access to services distribution shelter relief assistance situation in origin | EZ42: No | FA42: None | FB42: Yes | FC42: Bedding sets | FD42: Kitchen sets | FE42: Emergency shelter kits | FF42: Yes | FG42: Conflict | FH42: Before 2017 | FI42: 0 | FJ42: 0 | FK42: 0 | FL42: Yes | FM42: Onsite | FN42: < 1km
A43: TG252 | B43: Adi-Keyh | C43: 14 | D43: 2018-11-18 | E43: Asmelash Gebrehiwet | F43: Male | G43: Tigray | H43: South East | I43: Hintalo Wejirat | J43: Adi-Keyh | K43: 13.01260032 | L43: 39.6669586 | M43: Yes | P43: Host community/families | R43: 2018-09-18 | S43: Unknown | T43: Yes | U43: Public/Government | X43: No | AC43: Yes | AD43: Government | AF43: Office of Kebele Administration | AG43: Abraha Medhin | AH43: 0932203467 | AI43: Yes | AJ43: Yes | AK43: Yes | AL43: Yes | AM43: Yes | AN43: Yes | AO43: Yes | AP43: Yes | AQ43: Oromia | AR43: Bunno Bedele | AS43: Chora | AT43: Different Kebelles | AU43: Oromia | AV43: Ilubabor | AW43: Hurumu | AX43: Different Kebelles | AY43: 49 | AZ43: 8 | BA43: 14 | BB43: 2 | BC43: 38 | BD43: 5 | BE43: 67 | BF43: 5 | BG43: 6 | BH43: 2 | BI43: 26 | BJ43: 2 | BK43: 41 | BL43: 108 | BM43: 0 | BN43: 1 | BO43: 1 | BP43: 0 | BQ43: 0 | BR43: 0 | BS43: 4 | BT43: 0 | BU43: 0 | BV43: 1 | BW43: 43361 | BX43: 43405 | BZ43: No | CA43: house damaged destroyed lack of security safety no livelihood | CB43: None | CC43: None | CD43: None | CE43: < 25% | CF43: None | CG43: Off-site (> 20 minutes) | CH43: Protected wells (hand pumps/motorized boreholes) | CL43: < 5 liters | CM43: Taste | CO43: No toilets | CQ43: No | CT43: No | CU43: No waste disposal system | CW43: Yes | CY43: Yes, Offsite | CZ43: Yes | DA43: Other | DB43: Daily Labor | DC43: Yes | DD43: No | DE43: No | DF43: Scabies | DH43: Pneumonia | DJ43: Diarrhea | DL43: Yes | DN43: On-site (< 3 km) | DO43: Government | DQ43: No | DR43: No | DV43: Daily Laborer | DX43: 3 | DY43: No | DZ43: Irregular | EA43: No | EB43: No | EC43: Yes | ED43: Abroad | EE43: Yes | EF43: No | EG43: Police/Militia | EI43: None | EJ43: No | EK43: denial of resources psycho emotional abuse | EL43: No | EM43: child psycho distress children separated | EN43: No | EO43: 0 | EP43: 0 | EQ43: Yes | ES43: Yes | EU43: Yes | EV43: No lighting | EW43: Authorities | EY43: access to services distribution relief assistance situation in origin | EZ43: No | FA43: None | FB43: Yes | FC43: Bedding sets | FD43: Kitchen sets | FE43: Emergency shelter kits | FF43: Yes | FG43: Conflict | FH43: In 2018 | FI43: 1 | FJ43: 0 | FK43: 0 | FL43: Yes | FM43: Onsite | FN43: < 1km
A44: TG102 | B44: Adi-Kutu | C44: 14 | D44: 2018-11-22 | E44: Genet Berhane | F44: Female | G44: Tigray | H44: Central | I44: Ahferom | J44: Hoya Medeb | K44: 14.55336257 | L44: 39.21676779 | M44: Yes | P44: Host community/families | R44: 2015-04-06 | S44: Unknown | T44: Yes | U44: Public/Government | X44: Yes | Y44: 0 | Z44: Yes | AA44: Desta Gebru | AB44: 0915512142 | AC44: Yes | AD44: Government | AF44: Woreda of Labour and Social Affair | AG44: Genet Alemseged | AH44: 0914763118 | AI44: Yes | AJ44: Yes | AK44: Yes | AL44: Yes | AM44: Yes | AN44: Yes | AO44: Yes | AP44: Yes | AQ44: Tigray | AR44: Central | AS44: Ahferom | AT44: Hoya Medeb | AX44: XXXX | AY44: 611 | AZ44: 329 | BA44: 359 | BB44: 288 | BC44: 387 | BD44: 186 | BE44: 1549 | BF44: 412 | BG44: 561 | BH44: 402 | BI44: 545 | BJ44: 234 | BK44: 2154 | BL44: 3703 | BM44: 0 | BN44: 17 | BO44: 112 | BP44: 0 | BQ44: 3 | BR44: 0 | BS44: 17 | BT44: 39 | BU44: 0 | BV44: 57 | BW44: 42100 | BX44: 42475 | BZ44: No | CA44: accessibility lack of food house damaged destroyed lack of security safety no livelihood basic infrastructures damage | CB44: None | CC44: None | CD44: None | CE44: 51-75 % | CF44: None | CG44: On-site (< 20 minutes) | CH44: Surface water sources (ponds/canals/river/lake/birkat) | CL44: < 5 liters | CO44: Not so good (not hygienic) | CP44: 0 | CQ44: No | CS44: No | CT44: No | CU44: No waste disposal system | CW44: Yes | CY44: No | CZ44: Yes | DA44: Other | DB44: Daily Labourer | DC44: Yes | DD44: No | DE44: No | DF44: Malaria | DH44: Diarrhea | DJ44: Pneumonia | DL44: Yes | DN44: Off-site (> 3 km) | DO44: Government | DQ44: Yes | DR44: No | DV44: Daily Laborer | DX44: 9 | DY44: No | EA44: No | EB44: No | EC44: No | EE44: No | EF44: Yes | EI44: Armed conflict | EJ44: No | EK44: Psychological/Emotional abuse | EL44: No | EM44: child psycho distress child labor | EN44: No | EO44: 0 | EP44: 0 | EQ44: Yes | ES44: Yes | EU44: Yes | EV44: No lighting | EW44: Authorities | EY44: access to services distribution shelter safety and security how to get information relief assistance situation in origin | EZ44: No | FA44: None | FB44: Yes | FC44: Emergency shelter kits | FD44: Kitchen sets | FE44: Bedding sets | FF44: Yes | FG44: Conflict | FH44: Before 2017 | FI44: 4 | FJ44: 0 | FK44: 0 | FL44: Yes | FM44: Offsite | FN44: > 10km
A45: TG199 | B45: Adi-Nebried Town | C45: 14 | D45: 2018-11-06 | E45: Mulugeta Shishay | F45: Male | G45: Tigray | H45: North Western | I45: Laelay Adiyabo | J45: Adi-Nebried | K45: 14.4177009 | L45: 38.18708402 | M45: Yes | P45: Host community/families | R45: 2018-09-08 | S45: Unknown | T45: Yes | U45: Public/Government | X45: Yes | Y45: 1 | Z45: Yes | AA45: Shishay Solomon | AB45: 0914435601 | AC45: Yes | AD45: Government | AF45: Woreda of Labour and Social Affair | AG45: Tadelech Girmay | AH45: 0914192935 | AI45: Yes | AJ45: Yes | AK45: Yes | AL45: Yes | AM45: Yes | AN45: Yes | AO45: Yes | AP45: Yes | AQ45: Amhara | AR45: Oromia | AS45: Bati | AT45: Different Kebeles | AU45: Somali | AV45: Fafan | AW45: Jijiga | AX45: Different Kebeles | AY45: 59 | AZ45: 1 | BA45: 3 | BB45: 6 | BC45: 50 | BD45: 2 | BE45: 62 | BF45: 2 | BG45: 3 | BH45: 9 | BI45: 22 | BJ45: 0 | BK45: 36 | BL45: 98 | BM45: 0 | BN45: 3 | BO45: 5 | BP45: 0 | BQ45: 0 | BR45: 0 | BS45: 0 | BT45: 13 | BU45: 0 | BV45: 15 | BW45: 43351 | BX45: 43408 | BZ45: No | CA45: lack of food house damaged destroyed lack of security safety no livelihood | CB45: None | CC45: None | CD45: None | CE45: 25-50 % | CF45: < 25% | CG45: On-site (< 20 minutes) | CH45: Surface water sources (ponds/canals/river/lake/birkat) | CL45: < 5 liters | CO45: Not so good (not hygienic) | CP45: 21 | CQ45: No | CS45: No | CT45: No | CU45: Garbage pit | CW45: Yes | CY45: Yes, On Site | CZ45: Yes | DA45: Other | DB45: Daily Labourer | DC45: Yes | DD45: No | DE45: No | DF45: Malaria | DH45: Diarrhea | DJ45: Pneumonia | DL45: Yes | DN45: On-site (< 3 km) | DO45: Government | DQ45: Yes | DR45: No | DV45: Daily Laborer | DX45: 1 | DY45: No | DZ45: Irregular | EA45: No | EB45: No | EC45: No | EE45: Yes | EF45: No | EG45: Police/Militia | EI45: None | EJ45: No | EK45: Psychological/Emotional abuse | EL45: No | EM45: child psycho distress child labor | EN45: No | EO45: 0 | EP45: 0 | EQ45: Yes | ES45: Yes | EU45: Yes | EV45: Yes, there is lighting but it is NOT adequate | EW45: Authorities | EY45: access to services distribution shelter safety and security how to get information relief assistance situation in origin | EZ45: No | FA45: < 25% | FB45: Yes | FC45: Emergency shelter kits | FD45: Kitchen sets | FE45: Bedding sets | FF45: Yes | FG45: Conflict | FH45: In 2018 | FI45: 2 | FJ45: 0 | FK45: 0 | FL45: Yes | FM45: Onsite | FN45: 1-2km
A46: TG215 | B46: Adis Alem | C46: 14 | D46: 2018-11-09 | E46: Gebrehiwot Berhe | F46: Male | G46: Tigray | H46: Eastern | I46: Gulomekeda | J46: Adis Alem | K46: 14.47432598 | L46: 39.38793331 | M46: Yes | P46: Host community/families | R46: 2018-09-15 | S46: Unknown | T46: No, no vehicular access | U46: Public/Government | X46: No | AC46: Yes | AD46: Government | AF46: Kebelle Administration | AG46: Gebrehiwot Tsegay | AH46: 0914266460 | AI46: Yes | AJ46: Yes | AK46: Yes | AL46: Yes | AM46: Yes | AN46: Yes | AO46: Yes | AP46: Yes | AQ46: Oromia | AR46: East Shewa | AS46: Adama | AT46: Different kebelle | AU46: Somali | AV46: Fafan | AW46: Jijiga | AX46: Different kebelle | AY46: 59 | AZ46: 8 | BA46: 7 | BB46: 0 | BC46: 51 | BD46: 0 | BE46: 66 | BF46: 4 | BG46: 4 | BH46: 0 | BI46: 20 | BJ46: 0 | BK46: 28 | BL46: 94 | BM46: 0 | BN46: 2 | BO46: 3 | BP46: 0 | BQ46: 0 | BR46: 0 | BS46: 0 | BT46: 4 | BU46: 0 | BV46: 17 | BW46: 43358 | BX46: 43405 | BZ46: No | CA46: accessibility lack of food house damaged destroyed lack of security safety no livelihood basic infrastructures damage | CB46: None | CC46: None | CD46: None | CE46: > 75% | CF46: None | CG46: On-site (> 20 minutes) | CH46: Surface water sources (ponds/canals/river/lake/birkat) | CL46: < 5 liters | CM46: Suspended solids | CO46: No toilets | CQ46: No | CT46: No | CU46: No waste disposal system | CW46: Yes | CY46: Yes, Offsite | CZ46: No | DA46: Other | DB46: Daily Labor | DC46: No | DD46: No | DE46: No | DF46: Diarrhea | DH46: UTI | DJ46: Scabies | DL46: Yes | DN46: On-site (< 3 km) | DO46: Government | DQ46: No | DR46: No | DV46: Daily Laborer | DX46: 0 | DY46: No | DZ46: Last month | EA46: No | EB46: No | EC46: Yes | ED46: Both | EE46: Yes | EF46: Yes | EG46: Police/Militia | EI46: Friction with host community | EJ46: No | EK46: Psychological/Emotional abuse | EL46: No | EM46: child physical abuse child psycho distress child labor | EN46: No | EO46: 0 | EP46: 0 | EQ46: Yes | ES46: Yes | EU46: Yes | EV46: No lighting | EW46: Local Leader | EY46: access to services distribution shelter safety and security how to get information relief assistance other | EZ46: Yes | FA46: None | FB46: Yes | FC46: Emergency shelter kits | FD46: Kitchen sets | FE46: Bedding sets | FF46: Yes | FG46: Conflict | FH46: In 2018 | FI46: 1 | FJ46: 1 | FK46: 0 | FL46: Yes | FM46: Onsite | FN46: 3-5km
A47: TG216 | B47: Adis Tesfa | C47: 14 | D47: 2018-11-07 | E47: Gebrehiwot Berhe | F47: Male | G47: Tigray | H47: Eastern | I47: Gulomekeda | J47: Adis Tesfa | K47: 14.46167366 | L47: 39.36084624 | M47: Yes | P47: Host community/families | R47: 2018-09-15 | S47: Unknown | T47: Yes | U47: Public/Government | X47: Yes | Y47: 2 | Z47: Yes | AA47: Alembrhan Gebrehiwot | AB47: 0942806317 | AC47: Yes | AD47: Government | AF47: Kebelle Administration | AG47: Gezae Mael | AH47: 0912299890 | AI47: Yes | AJ47: Yes | AK47: Yes | AL47: Yes | AM47: Yes | AN47: Yes | AO47: Yes | AP47: Yes | AQ47: Oromia | AR47: East Shewa | AS47: Adama | AT47: Different kebelle | AU47: Somali | AV47: Fafan | AW47: Jijiga | AX47: Different kebelle | AY47: 237 | AZ47: 25 | BA47: 24 | BB47: 9 | BC47: 209 | BD47: 2 | BE47: 269 | BF47: 29 | BG47: 25 | BH47: 6 | BI47: 116 | BJ47: 1 | BK47: 177 | BL47: 446 | BM47: 0 | BN47: 7 | BO47: 35 | BP47: 0 | BQ47: 0 | BR47: 0 | BS47: 0 | BT47: 13 | BU47: 0 | BV47: 39 | BW47: 43358 | BX47: 43405 | BZ47: No | CA47: accessibility lack of food house damaged destroyed lack of security safety no livelihood basic infrastructures damage | CB47: None | CC47: None | CD47: None | CE47: > 75% | CF47: < 25% | CG47: Off-site (> 20 minutes) | CH47: Surface water sources (ponds/canals/river/lake/birkat) | CL47: < 5 liters | CM47: Suspended solids | CO47: Not so good (not hygienic) | CP47: 7 | CQ47: No | CS47: No | CT47: No | CU47: No waste disposal system | CW47: Yes | CY47: Yes, Offsite | CZ47: No | DA47: Other | DB47: Daily Labor | DC47: Yes | DD47: No | DE47: No | DF47: Scabies | DH47: Other | DI47: Acute Trachoma Disease | DJ47: Other | DK47: Cough and Stress | DL47: Yes | DN47: On-site (> 3 km) | DO47: Other | DP47: Ethiopian Military force | DQ47: No | DR47: No | DV47: Daily Laborer | DX47: 0 | DY47: No | DZ47: Irregular | EA47: No | EB47: No | EC47: Yes | ED47: Both | EE47: Yes | EF47: Yes | EG47: Police/Militia | EI47: friction host comm rbc | EJ47: No | EK47: Psychological/Emotional abuse | EL47: No | EM47: child physical abuse child psycho distress child labor children separated | EN47: No | EO47: 0 | EP47: 0 | EQ47: Yes | ES47: Yes | EU47: Yes | EV47: No lighting | EW47: Local Leader | EY47: access to services distribution shelter safety and security how to get information relief assistance other | EZ47: Yes | FA47: None | FB47: Yes | FC47: Emergency shelter kits | FD47: Bedding sets | FE47: Kitchen sets | FF47: Yes | FG47: Conflict | FH47: In 2018 | FI47: 0 | FJ47: 0 | FK47: 0 | FL47: Yes | FM47: Onsite | FN47: 3-5km
A48: TG257 | B48: Adi-Shihu | C48: 14 | D48: 2018-11-08 | E48: Asmelash Gebrehiwot | F48: Male | G48: Tigray | H48: Southern | I48: Imba Alaje | J48: Adi-Shihu | K48: 12.93478023 | L48: 39.51706634 | M48: Yes | P48: Host community/families | R48: 2018-09-03 | S48: Unknown | T48: Yes | U48: Public/Government | X48: No | AC48: No | AI48: Yes | AJ48: Yes | AK48: Yes | AL48: Yes | AM48: Yes | AN48: Yes | AO48: Yes | AP48: Yes | AQ48: Somali | AR48: Fafan | AS48: Jijiga | AT48: Different Kebelles | AU48: Oromia | AV48: Bunno Bedele | AW48: Gechi | AX48: Different Kebelles | AY48: 82 | AZ48: 7 | BA48: 12 | BB48: 3 | BC48: 46 | BD48: 5 | BE48: 73 | BF48: 5 | BG48: 7 | BH48: 3 | BI48: 28 | BJ48: 2 | BK48: 45 | BL48: 118 | BM48: 0 | BN48: 1 | BO48: 15 | BP48: 0 | BQ48: 0 | BR48: 0 | BS48: 0 | BT48: 5 | BU48: 0 | BV48: 35 | BW48: 43346 | BX48: 43406 | BZ48: No | CA48: lack of security safety no livelihood | CB48: None | CC48: None | CD48: None | CE48: > 75% | CF48: 51-75 % | CG48: On-site (< 20 minutes) | CH48: Water taps from piped network | CL48: 10-15 liters | CO48: Not so good (not hygienic) | CP48: 15 | CQ48: No | CS48: No | CT48: No | CU48: Garbage pit | CW48: Yes | CY48: Yes, On Site | CZ48: Yes | DA48: Other | DB48: Daily Labor | DC48: Yes | DD48: No | DE48: No | DF48: Scabies | DH48: Pneumonia | DJ48: Measles | DL48: Yes | DN48: On-site (< 3 km) | DO48: Government | DQ48: Yes | DR48: No | DV48: Daily Laborer | DX48: 3 | DY48: No | DZ48: Irregular | EA48: No | EB48: No | EC48: Yes | ED48: Abroad | EE48: Yes | EF48: No | EG48: Police/Militia | EI48: None | EJ48: No | EK48: denial of resources psycho emotional abuse | EL48: No | EM48: child psycho distress children separated | EN48: No | EO48: 0 | EP48: 0 | EQ48: Yes | ES48: Yes | EU48: Yes | EV48: Yes, there is lighting and it is adequate | EW48: Authorities | EY48: access to services distribution shelter relief assistance situation in origin | EZ48: No | FA48: None | FB48: Yes | FC48: Bedding sets | FD48: Kitchen sets | FE48: Emergency shelter kits | FF48: Yes | FG48: Conflict | FH48: In 2018 | FI48: 0 | FJ48: 0 | FK48: 0 | FL48: Yes | FM48: Onsite | FN48: < 1km
A49: TG125 | B49: Adi-shimbruh | C49: 14 | D49: 2018-11-08 | E49: Henok welay | F49: Male | G49: Tigray | H49: Central | I49: Mereb Leke | J49: Adi-shimbruh | K49: 14.34229383 | L49: 38.59928085 | M49: Yes | P49: Host community/families | R49: 2015-04-23 | S49: Unknown | T49: No, no vehicular access | U49: Public/Government | X49: No | AC49: Yes | AD49: Government | AF49: Kebelle Administration | AG49: Yared Kiros | AH49: 0914415196 | AI49: Yes | AJ49: Yes | AK49: Yes | AL49: Yes | AM49: Yes | AN49: Yes | AO49: Yes | AP49: Yes | AQ49: Tigray | AR49: Central | AS49: Mereb Leke | AT49: Adi-shimbruh | AY49: 56 | AZ49: 6 | BA49: 22 | BB49: 35 | BC49: 40 | BD49: 3 | BE49: 106 | BF49: 9 | BG49: 29 | BH49: 38 | BI49: 13 | BJ49: 0 | BK49: 89 | BL49: 195 | BM49: 0 | BN49: 3 | BO49: 11 | BP49: 3 | BQ49: 1 | BR49: 0 | BS49: 2 | BT49: 8 | BU49: 0 | BV49: 5 | BW49: 42117 | BX49: 42636 | BZ49: No | CA49: accessibility lack of food house damaged destroyed lack of security safety no livelihood basic infrastructures damage | CB49: None | CC49: None | CD49: None | CE49: > 75% | CF49: None | CG49: Off-site (< 20 minutes) | CH49: Surface water sources (ponds/canals/river/lake/birkat) | CL49: < 5 liters | CM49: Suspended solids | CO49: Not so good (not hygienic) | CP49: 8 | CQ49: No | CS49: No | CT49: No | CU49: No waste disposal system | CW49: Yes | CY49: No | CZ49: No | DA49: Other | DB49: Daily Labour | DC49: Yes | DD49: No | DE49: Yes | DF49: Malaria | DH49: Diarrhea | DJ49: Pneumonia | DL49: Yes | DN49: On-site (> 3 km) | DO49: Government | DQ49: No | DR49: No | DV49: Daily Laborer | DX49: 8 | DY49: No | EA49: Yes | EB49: No | EC49: Yes | ED49: Abroad | EE49: Yes | EF49: Yes | EG49: Military | EI49: theft robbery physical assault | EJ49: No | EK49: physical assault denial of resources psycho emotional abuse | EL49: No | EM49: child physical abuse child psycho distress child labor | EN49: No | EO49: 0 | EP49: 0 | EQ49: Yes | ES49: No | EU49: No | EV49: No lighting | EW49: Local Leader | EY49: access to services distribution shelter safety and security how to get information relief assistance situation in origin | EZ49: No | FA49: < 25% | FB49: Yes | FC49: Kitchen sets | FD49: Emergency shelter kits | FE49: Bedding sets | FF49: Yes | FG49: Conflict | FH49: Before 2017 | FI49: 2 | FJ49: 0 | FK49: 0 | FL49: Yes | FM49: Onsite | FN49: 6-10km
A50: TG126 | B50: Adwa Town | C50: 14 | D50: 2018-11-30 | E50: Genet Berhane | F50: Female | G50: Tigray | H50: Central | I50: Adwa | J50: Adwa Town | K50: 14.16404795 | L50: 38.89618784 | M50: Yes | P50: Host community/families | R50: 2016-08-16 | S50: Unknown | T50: Yes | U50: Public/Government | X50: Yes | Y50: 1 | Z50: Yes | AA50: Tekeste Hadush | AB50: 0913438832 | AC50: Yes | AD50: Government | AF50: Genet Teklu | AG50: Woreda of Labour and Social Affair | AH50: 0914275501 | AI50: Yes | AJ50: Yes | AK50: Yes | AL50: Yes | AM50: Yes | AN50: Yes | AO50: Yes | AP50: Yes | AQ50: Amhara | AR50: West Gonder | AS50: Metema | AT50: Different Kebeles | AU50: Amhara | AV50: Central Gonder | AW50: Gonder Zuria | AX50: Different Kebeles | AY50: 1884 | AZ50: 53 | BA50: 69 | BB50: 44 | BC50: 1369 | BD50: 34 | BE50: 1569 | BF50: 77 | BG50: 101 | BH50: 39 | BI50: 1215 | BJ50: 17 | BK50: 1449 | BL50: 3018 | BM50: 57 | BN50: 0 | BO50: 67 | BP50: 0 | BQ50: 85 | BR50: 0 | BS50: 156 | BT50: 255 | BU50: 0 | BV50: 399 | BW50: 42598 | BX50: 43429 | BZ50: No | CA50: accessibility lack of food house damaged destroyed lack of security safety no livelihood basic infrastructures damage | CB50: None | CC50: None | CD50: None | CE50: 25-50 % | CF50: 51-75 % | CG50: On-site (< 20 minutes) | CH50: Surface water sources (ponds/canals/river/lake/birkat) | CL50: < 5 liters | CO50: Not so good (not hygienic) | CP50: 425 | CQ50: No | CS50: No | CT50: No | CU50: Garbage pit | CW50: No | CY50: Yes, On Site | CZ50: Yes | DA50: Other | DB50: Daily Labourer | DC50: Yes | DD50: No | DE50: No | DF50: Pneumonia | DH50: Malaria | DJ50: UTI | DL50: Yes | DN50: On-site (> 3 km) | DO50: Government | DQ50: Yes | DR50: No | DV50: Daily Laborer | DX50: 7 | DY50: No | DZ50: Irregular | EA50: No | EB50: No | EC50: No | EE50: Yes | EF50: No | EG50: Police/Militia | EI50: None | EJ50: No | EK50: Psychological/Emotional abuse | EL50: No | EM50: child psycho distress child labor | EN50: No | EO50: 0 | EP50: 0 | EQ50: Yes | ES50: Yes | EU50: Yes | EV50: Yes, there is lighting but it is NOT adequate | EW50: Authorities | EY50: access to services distribution shelter safety and security how to get information relief assistance | EZ50: No | FA50: < 25% | FB50: Yes | FC50: Emergency shelter kits | FD50: Kitchen sets | FE50: Hygiene kits | FF50: No | FG50: Conflict | FH50: Before 2017 | FI50: 6 | FJ50: 0 | FK50: 0 | FL50: Yes | FM50: Onsite | FN50: 1-2km
A51: SO347 | B51: Afar Irdood | C51: 14 | D51: 2018-11-06 | E51: Mahamed Abdikarin Ali | F51: Male | G51: Somali | H51: Doolo | I51: Boh | J51: Afar irdood | K51: 7.527539373 | L51: 46.85684472 | M51: Yes | P51: Spontaneous camp/site | R51: 2017-01-04 | S51: Unknown | T51: Yes | U51: Public/Government | X51: Yes | Y51: 2 | Z51: Yes | AA51: Shuke jama nur | AB51: XXXX | AC51: Yes | AD51: Government | AF51: Afar irdood kebele Administration | AG51: Abdi kafi nur | AH51: XXXX | AI51: Yes | AJ51: Yes | AK51: Yes | AL51: Yes | AM51: Yes | AN51: Yes | AO51: Yes | AP51: Yes | AQ51: Somali | AR51: Doolo | AS51: Boh | AT51: Qoryo dhig | AU51: Somali | AV51: Doolo | AW51: Boh | AX51: Hareri | AY51: 259 | AZ51: 207 | BA51: 233 | BB51: 142 | BC51: 259 | BD51: 52 | BE51: 893 | BF51: 117 | BG51: 168 | BH51: 65 | BI51: 259 | BJ51: 52 | BK51: 661 | BL51: 1554 | BM51: 0 | BN51: 32 | BO51: 51 | BP51: 5 | BQ51: 9 | BR51: 0 | BS51: 7 | BT51: 20 | BU51: 2 | BV51: 3 | BW51: 42739 | BX51: 42954 | BZ51: No | CA51: accessibility lack of food house damaged destroyed no livelihood | CB51: None | CC51: 25-50 % | CD51: None | CE51: None | CF51: None | CG51: Off-site (< 20 minutes) | CH51: Surface water sources (ponds/canals/river/lake/birkat) | CL51: 5-10 liters | CM51: Suspended solids | CO51: Good (Hygienic) | CP51: 30 | CQ51: Yes | CS51: No | CT51: No | CU51: Garbage pit | CW51: Yes | CY51: Yes, On Site | CZ51: Yes | DA51: Food Assistance | DC51: No | DD51: No | DE51: No | DF51: Pneumonia | DH51: UTI | DJ51: Malaria | DL51: Yes | DN51: On-site (< 3 km) | DO51: Government | DQ51: No | DR51: No | DV51: Pastoralism | DX51: 0 | DY51: No | DZ51: Within the month | EA51: Yes | EB51: Yes 51-75% | EC51: No | EE51: Yes | EF51: No | EG51: None | EI51: None | EJ51: No | EK51: None | EL51: No | EM51: None | EN51: No | EO51: 0 | EP51: 0 | EQ51: No | ES51: Yes | EU51: Yes | EV51: No lighting | EW51: Site Management | EY51: access to services distribution registration shelter | EZ51: No | FA51: < 25% | FB51: Yes | FC51: Emergency shelter kits | FD51: Kitchen sets | FE51: Mosquito nets | FF51: Yes | FG51: Drought | FH51: During 2017 | FI51: 0 | FJ51: 0 | FK51: 0 | FL51: Yes | FM51: Offsite | FN51: 1-2km
A52: SO246 | B52: Afase | C52: 14 | D52: 2018-11-11 | E52: Ahmed Jama Ege | F52: Male | G52: Somali | H52: Siti | I52: Miesso | J52: Afase | K52: 9.69992338 | L52: 40.76332683 | M52: Yes | P52: Spontaneous camp/site | R52: 2015-02-01 | S52: Unknown | T52: Yes | U52: Public/Government | X52: Yes | Y52: 2 | Z52: Yes | AA52: Rooble Eye Farah | AB52: XXXX | AC52: Yes | AD52: Government | AF52: Afase | AG52: Mohamed Ahmed Jama | AH52: 0228243204 | AI52: Yes | AJ52: Yes | AK52: Yes | AL52: Yes | AM52: Yes | AN52: Yes | AO52: Yes | AP52: Yes | AQ52: Somali | AR52: Siti | AS52: Miesso | AT52: Beer | AU52: Somali | AV52: Siti | AW52: Miesso | AX52: Garanug | AY52: 236 | AZ52: 153 | BA52: 177 | BB52: 118 | BC52: 236 | BD52: 47 | BE52: 731 | BF52: 189 | BG52: 165 | BH52: 71 | BI52: 224 | BJ52: 35 | BK52: 684 | BL52: 1415 | BM52: 0 | BN52: 54 | BO52: 44 | BP52: 3 | BQ52: 2 | BR52: 0 | BS52: 0 | BT52: 21 | BU52: 0 | BV52: 3 | BW52: 42036 | BX52: 42428 | BZ52: No | CA52: accessibility lack of food house damaged destroyed lack of security safety no livelihood | CB52: None | CC52: 51-75 % | CD52: None | CE52: None | CF52: None | CG52: On-site (< 20 minutes) | CH52: Protected wells (hand pumps/motorized boreholes) | CL52: 5-10 liters | CO52: No toilets | CQ52: No | CT52: No | CU52: Burning | CW52: Yes | CY52: Yes, On Site | CZ52: Yes | DA52: Cash Assistance | DC52: Yes | DD52: No | DE52: No | DF52: Malaria | DH52: Pneumonia | DJ52: Other | DK52: Comman Cold | DL52: Yes | DN52: On-site (< 3 km) | DO52: Government | DQ52: Yes | DR52: No | DV52: Pastoralism | DX52: 0 | DY52: No | DZ52: > 3 months ago | EA52: Yes | EB52: Yes 25-50% | EC52: No | EE52: Yes | EF52: No | EG52: Local authorities | EI52: None | EJ52: No | EK52: None | EL52: No | EM52: None | EN52: No | EO52: 0 | EP52: 0 | EQ52: No | ES52: Yes | EU52: Yes | EV52: No lighting | EW52: Site Management | EY52: access to services distribution registration shelter | EZ52: No | FA52: < 25% | FB52: Yes | FC52: Emergency shelter kits | FD52: Kitchen sets | FE52: Bedding sets | FF52: Yes | FG52: Drought | FH52: Before 2017 | FI52: 3 | FJ52: 0 | FK52: 0 | FL52: Yes | FM52: Onsite | FN52: < 1km
A53: SO467 | B53: Afdam Town | C53: 14 | D53: 2018-11-09 | E53: Abdikadir mohamed | F53: Male | G53: Somali | H53: Siti | I53: Afdem | J53: 02 kebele | K53: 9.474333657 | L53: 40.99822238 | M53: Yes | P53: Spontaneous camp/site | R53: 2016-01-09 | S53: Unknown | T53: Yes | U53: Public/Government | X53: Yes | Y53: 2 | Z53: Yes | AA53: Gaye Darar Farah | AB53: XXXX | AC53: Yes | AD53: Government | AF53: Afdam Town | AG53: Ahmed yousef ways | AH53: 0928127730 | AI53: Yes | AJ53: Yes | AK53: Yes | AL53: Yes | AM53: Yes | AN53: Yes | AO53: Yes | AP53: Yes | AQ53: Somali | AR53: Siti | AS53: Afdem | AT53: Daladi | AU53: Somali | AV53: Siti | AW53: Afdem | AX53: Todabashub | AY53: 189 | AZ53: 151 | BA53: 151 | BB53: 85 | BC53: 189 | BD53: 19 | BE53: 595 | BF53: 95 | BG53: 151 | BH53: 95 | BI53: 170 | BJ53: 28 | BK53: 539 | BL53: 1134 | BM53: 0 | BN53: 42 | BO53: 37 | BP53: 4 | BQ53: 4 | BR53: 0 | BS53: 0 | BT53: 22 | BU53: 0 | BV53: 2 | BW53: 42378 | BX53: 42665 | BZ53: No | CA53: accessibility lack of food house damaged destroyed no livelihood | CB53: None | CC53: 51-75 % | CD53: None | CE53: None | CF53: None | CG53: On-site (< 20 minutes) | CH53: Water taps from piped network | CL53: 5-10 liters | CO53: No toilets | CQ53: No | CT53: No | CU53: Burning | CW53: Yes | CY53: Yes, On Site | CZ53: Yes | DA53: Cash Assistance | DC53: Yes | DD53: No | DE53: No | DF53: Pneumonia | DH53: UTI | DJ53: Malaria | DL53: Yes | DN53: On-site (< 3 km) | DO53: Government | DQ53: Yes | DR53: No | DV53: Pastoralism | DX53: 0 | DY53: No | DZ53: > 3 months ago | EA53: Yes | EB53: Yes 25-50% | EC53: No | EE53: Yes | EF53: No | EG53: Local authorities | EI53: None | EJ53: No | EK53: None | EL53: No | EM53: None | EN53: No | EO53: 0 | EP53: 0 | EQ53: No | ES53: Yes | EU53: Yes | EV53: No lighting | EW53: Site Management | EY53: access to services distribution registration shelter | EZ53: No | FA53: < 25% | FB53: Yes | FC53: Emergency shelter kits | FD53: Kitchen sets | FE53: Bedding sets | FF53: Yes | FG53: Drought | FH53: Before 2017 | FI53: 0 | FJ53: 0 | FK53: 0 | FL53: Yes | FM53: Offsite | FN53: 3-5km
A54: SO688 | B54: Afgoye | C54: 14 | D54: 2018-11-16 | E54: Abass Ali Osman | F54: Male | G54: Somali | H54: Liben | I54: Deka Seftu | J54: Haysuftu | K54: 5.202407654 | L54: 40.03466515 | M54: Yes | P54: Spontaneous camp/site | R54: 2018-06-05 | S54: Unknown | T54: Yes | U54: Public/Government | X54: Yes | Y54: 1 | Z54: Yes | AA54: Sarura Hasan Muse | AB54: XXXX | AC54: Yes | AD54: Government | AF54: Kabale Adminstration | AG54: Ahmed Dhaqane | AH54: 0913760962 | AI54: No | AJ54: Yes | AK54: Yes | AL54: Yes | AM54: Yes | AN54: Yes | AO54: Yes | AP54: Yes | AQ54: Oromia | AR54: Guji | AS54: Negele City Administration | AT54: Bururi | AU54: Oromia | AV54: Guji | AW54: Goro Dola | AX54: Burquti | AY54: 121 | AZ54: 91 | BA54: 73 | BB54: 54 | BC54: 73 | BD54: 73 | BE54: 364 | BF54: 73 | BG54: 73 | BH54: 61 | BI54: 97 | BJ54: 67 | BK54: 371 | BL54: 735 | BM54: 0 | BN54: 32 | BO54: 52 | BP54: 3 | BQ54: 4 | BR54: 0 | BS54: 1 | BT54: 0 | BU54: 0 | BV54: 0 | BW54: 43256 | BX54: 43419 | BZ54: No | CA54: accessibility lack of food house damaged destroyed lack of security safety | CB54: None | CC54: > 75% | CD54: None | CE54: None | CF54: None | CG54: Off-site (> 20 minutes) | CH54: Surface water sources (ponds/canals/river/lake/birkat) | CL54: 5-10 liters | CO54: No toilets | CQ54: No | CT54: No | CU54: No waste disposal system | CW54: Yes | CY54: No | CZ54: No | DA54: Food Assistance | DC54: No | DD54: No | DE54: No | DF54: Malaria | DH54: Pneumonia | DJ54: Diarrhea | DL54: Yes | DN54: Off-site (> 3 km) | DO54: Government | DQ54: No | DR54: No | DV54: Pastoralism | DX54: 0 | DY54: No | EA54: No | EB54: No | EC54: No | EE54: Yes | EF54: No | EG54: Local authorities | EI54: None | EJ54: No | EK54: None | EL54: No | EM54: None | EN54: No | EO54: 0 | EP54: 0 | EQ54: No | ES54: Yes | EU54: Yes | EV54: No lighting | EW54: Local Leader | EY54: access to services shelter how to get information | EZ54: No | FA54: < 25% | FB54: Yes | FC54: Kitchen sets | FD54: Emergency shelter kits | FE54: Hygiene kits | FF54: Yes | FG54: Conflict | FH54: In 2018 | FI54: 0 | FJ54: 0 | FK54: 0 | FL54: Yes | FM54: Offsite | FN54: 3-5km
A55: SO626 | B55: Afgoye | C55: 13 | D55: 2018-09-20 | E55: Wali Awale muhumed | F55: Male | G55: Somali | H55: Liben | I55: Goro Baqaqsa | J55: Afgoye | K55: 6.321275889 | L55: 41.20757899 | M55: Yes | P55: Spontaneous camp/site | R55: 2017-09-22 | S55: Unknown | T55: Yes | U55: Public/Government | X55: Yes | Y55: 1 | Z55: Yes | AA55: Ibrahin noor Ahmed | AB55: XXXX | AC55: Yes | AD55: Government | AF55: Afgoye kebele | AG55: Wali Farah Omar | AH55: 0906911844 | AI55: Yes | AJ55: Yes | AK55: Yes | AL55: Yes | AM55: Yes | AN55: Yes | AO55: Yes | AP55: Yes | AQ55: Oromia | AR55: Bale | AS55: Berbere | AT55: Dugdadu | AU55: Oromia | AV55: Bale | AW55: Ginir | AX55: Barorey | AY55: 416 | AZ55: 229 | BA55: 229 | BB55: 229 | BC55: 291 | BD55: 208 | BE55: 1186 | BF55: 270 | BG55: 312 | BH55: 187 | BI55: 416 | BJ55: 166 | BK55: 1351 | BL55: 2537 | BM55: 0 | BN55: 42 | BO55: 127 | BP55: 4 | BQ55: 0 | BR55: 0 | BS55: 0 | BT55: 8 | BU55: 2 | BV55: 4 | BW55: 43000 | BX55: 43089 | BZ55: No | CA55: accessibility lack of food house damaged destroyed no livelihood | CB55: None | CC55: < 25% | CD55: None | CE55: 25-50 % | CF55: None | CG55: Off-site (> 20 minutes) | CH55: Surface water sources (ponds/canals/river/lake/birkat) | CL55: < 5 liters | CM55: Suspended solids | CO55: No toilets | CQ55: No | CT55: No | CU55: No waste disposal system | CW55: Yes | CY55: Yes, On Site | CZ55: No | DA55: Food Assistance | DC55: No | DD55: No | DE55: No | DF55: Pneumonia | DH55: Diarrhea | DJ55: Malaria | DL55: Yes | DN55: On-site (< 3 km) | DO55: Government | DQ55: Yes | DR55: No | DV55: Agro-Pastoralism | DX55: 0 | DY55: No | DZ55: Last month | EA55: No | EB55: No | EC55: No | EE55: Yes | EF55: No | EG55: Community leaders | EI55: None | EJ55: No | EK55: None | EL55: No | EM55: None | EN55: No | EO55: 0 | EP55: 0 | EQ55: No | ES55: Yes | EU55: Yes | EV55: No lighting | EW55: Local Leader | EY55: access to services distribution registration shelter relief assistance | EZ55: No | FA55: None | FB55: Yes | FC55: Emergency shelter kits | FD55: Kitchen sets | FE55: Bedding sets | FF55: Yes | FG55: Conflict | FH55: During 2017 | FI55: 0 | FJ55: 0 | FK55: 0 | FL55: Yes | FM55: Onsite | FN55: < 1km
A56: TG255 | B56: Agamat | C56: 14 | D56: 2018-11-06 | E56: Teklu Kidanu | F56: Male | G56: Tigray | H56: Southern | I56: Endamehoni | J56: Mekan | K56: 12.75093628 | L56: 39.52553883 | M56: Yes | P56: Host community/families | R56: 2018-09-03 | S56: Unknown | T56: Yes | U56: Public/Government | X56: No | AC56: Yes | AD56: Government | AF56: Office of kebele Admininstration | AG56: Darge Nigus | AH56: 0925068656 | AI56: Yes | AJ56: Yes | AK56: Yes | AL56: Yes | AM56: Yes | AN56: Yes | AO56: Yes | AP56: Yes | AQ56: Oromia | AR56: Bunno Bedele | AS56: Bedele Town | AT56: Different Kebeles | AU56: Oromia | AV56: Bunno Bedele | AW56: Gechi | AX56: Different Kebeles | AY56: 21 | AZ56: 3 | BA56: 14 | BB56: 2 | BC56: 28 | BD56: 1 | BE56: 48 | BF56: 3 | BG56: 7 | BH56: 1 | BI56: 16 | BJ56: 3 | BK56: 30 | BL56: 78 | BM56: 0 | BN56: 0 | BO56: 4 | BP56: 0 | BQ56: 2 | BR56: 0 | BS56: 4 | BT56: 0 | BU56: 0 | BV56: 6 | BW56: 43346 | BX56: 43407 | BZ56: No | CA56: house damaged destroyed lack of security safety no livelihood | CB56: None | CC56: None | CD56: None | CE56: > 75% | CF56: 25-50 % | CG56: On-site (< 20 minutes) | CH56: Protected wells (hand pumps/motorized boreholes) | CL56: 5-10 liters | CO56: No toilets | CQ56: No | CT56: No | CU56: No waste disposal system | CW56: Yes | CY56: Yes, Offsite | CZ56: Yes | DA56: Other | DB56: Daily labor | DC56: Yes | DD56: No | DE56: No | DF56: Scabies | DH56: Pneumonia | DJ56: Other | DK56: Eye infections | DL56: Yes | DN56: Off-site (> 3 km) | DO56: Government | DQ56: No | DR56: No | DV56: Daily Laborer | DX56: 2 | DY56: No | DZ56: Irregular | EA56: No | EB56: No | EC56: Yes | ED56: Abroad | EE56: Yes | EF56: No | EG56: Police/Militia | EI56: None | EJ56: No | EK56: denial of resources psycho emotional abuse | EL56: No | EM56: child psycho distress children separated | EN56: No | EO56: 0 | EP56: 0 | EQ56: Yes | ES56: Yes | EU56: Yes | EV56: Yes, there is lighting but it is NOT adequate | EW56: Authorities | EY56: access to services distribution registration shelter how to get information relief assistance situation in origin | EZ56: No | FA56: None | FB56: Yes | FC56: Bedding sets | FD56: Kitchen sets | FE56: Emergency shelter kits | FF56: Yes | FG56: Conflict | FH56: In 2018 | FI56: 4 | FJ56: 0 | FK56: 0 | FL56: Yes | FM56: Onsite | FN56: < 1km
A57: OR1047 | B57: Agarfa Town | C57: 14 | D57: 2018-11-22 | E57: Getachew Tola | F57: Male | G57: Oromia | H57: Bale | I57: Agarfa | J57: Agarfa town | K57: 7.26865052 | L57: 39.82320978 | M57: Yes | P57: Host community/families | R57: 2018-02-16 | S57: Unknown | T57: Yes | U57: Public/Government | X57: Yes | Y57: 2 | Z57: Yes | AA57: Alemu Dido | AB57: XXXX | AC57: Yes | AD57: Government | AF57: Disaster Risk Management office of Agarfa woreda | AG57: Ahimed Abdi | AH57: 0904752282 | AI57: No | AJ57: Yes | AK57: Yes | AL57: Yes | AM57: Yes | AN57: Yes | AO57: Yes | AP57: Yes | AQ57: Somali | AR57: Fafan | AS57: Jijiga | AT57: 01 kebele | AY57: 36 | AZ57: 14 | BA57: 11 | BB57: 41 | BC57: 33 | BD57: 2 | BE57: 101 | BF57: 16 | BG57: 9 | BH57: 21 | BI57: 48 | BJ57: 1 | BK57: 95 | BL57: 196 | BM57: 0 | BN57: 26 | BO57: 17 | BP57: 3 | BQ57: 6 | BR57: 0 | BS57: 1 | BT57: 2 | BU57: 0 | BV57: 4 | BW57: 43147 | BX57: 43378 | BZ57: Yes | CA57: accessibility lack of food house damaged destroyed lack of security safety basic infrastructures damage | CB57: None | CC57: None | CD57: None | CE57: 25-50 % | CF57: 25-50 % | CG57: On-site (> 20 minutes) | CH57: Water taps from piped network | CL57: < 5 liters | CM57: Odor/smell | CO57: Not so good (not hygienic) | CP57: 6 | CQ57: No | CS57: Yes | CT57: No | CU57: Burning | CW57: No | CY57: Yes, On Site | CZ57: Yes | DA57: Food Assistance | DC57: No | DD57: No | DE57: No | DF57: Diarrhea | DH57: Pneumonia | DJ57: Malaria | DL57: Yes | DN57: On-site (< 3 km) | DO57: Government | DQ57: No | DR57: No | DV57: Agro-Pastoralism | DX57: 24 | DY57: No | DZ57: Irregular | EA57: No | EB57: No | EC57: No | EE57: Yes | EF57: No | EG57: Police/Militia | EI57: None | EJ57: No | EK57: None | EL57: No | EM57: None | EN57: No | EO57: 0 | EP57: 0 | EQ57: No | ES57: No | EU57: No | EV57: Yes, there is lighting but it is NOT adequate | EW57: Mobile Phone | EY57: access to services distribution registration shelter safety and security how to get information relief assistance situation in origin | EZ57: No | FA57: None | FB57: Yes | FC57: Emergency shelter kits | FD57: Hygiene kits | FE57: Kitchen sets | FF57: No | FG57: Conflict | FH57: In 2018 | FI57: 2 | FJ57: 0 | FK57: 0 | FL57: Yes | FM57: Onsite | FN57: 1-2km
A58: OR743 | B58: Agricultural Office | C58: 14 | D58: 2018-11-09 | E58: Tewodros Asfaw | F58: Male | G58: Oromia | H58: East Harerge | I58: Goro Gutu | J58: Kebele 01 | K58: 9.37490897 | L58: 41.36620117 | M58: Yes | P58: Collective Center | R58: 2017-09-15 | S58: Unknown | T58: Yes | U58: Public/Government | X58: Yes | Y58: 1 | Z58: Yes | AA58: Umer Hasen | AB58: 0915176521 | AC58: Yes | AD58: Government | AF58: Woreda DRM Office | AG58: Jabir Mume | AH58: 0982605779 | AI58: No | AJ58: Yes | AK58: Yes | AL58: Yes | AM58: Yes | AN58: Yes | AO58: Yes | AP58: Yes | AQ58: Somali | AR58: Fafan | AS58: Jijiga | AT58: Different Kebeles | AU58: Somali | AV58: Siti | AW58: Gota-Biki | AX58: Different Kebeles | AY58: 131 | AZ58: 46 | BA58: 46 | BB58: 72 | BC58: 124 | BD58: 7 | BE58: 295 | BF58: 52 | BG58: 59 | BH58: 85 | BI58: 131 | BJ58: 7 | BK58: 334 | BL58: 629 | BM58: 0 | BN58: 7 | BO58: 15 | BP58: 0 | BQ58: 0 | BR58: 0 | BS58: 0 | BT58: 5 | BU58: 0 | BV58: 4 | BW58: 42993 | BX58: 43268 | BZ58: No | CA58: house damaged destroyed lack of security safety basic infrastructures damage | CB58: None | CC58: None | CD58: > 75% | CE58: None | CF58: 51-75 % | CG58: On-site (< 20 minutes) | CH58: Surface water sources (ponds/canals/river/lake/birkat) | CL58: < 5 liters | CM58: Other | CN58: The main problem of drinking water is full of lichens | CO58: Not so good (not hygienic) | CP58: 1 | CQ58: No | CS58: No | CT58: No | CU58: No waste disposal system | CW58: Yes | CY58: Yes, Offsite | CZ58: No | DA58: Food Assistance | DC58: No | DD58: No | DE58: No | DF58: Pneumonia | DH58: Diarrhea | DJ58: None | DL58: Yes | DN58: Off-site (< 3 km) | DO58: Government | DQ58: Yes | DR58: No | DV58: None | DX58: 0 | DY58: No | DZ58: Last month | EA58: No | EB58: No | EC58: No | EE58: Yes | EF58: Yes | EG58: Self organized | EI58: Friction among site residents | EJ58: No | EK58: None | EL58: No | EM58: None | EN58: No | EO58: 0 | EP58: 0 | EQ58: Yes | ES58: No | EU58: No | EV58: Yes, there is lighting but it is NOT adequate | EW58: Radio/News | EY58: access to services distribution shelter | EZ58: No | FA58: None | FB58: Yes | FC58: Emergency shelter kits | FD58: Bedding sets | FE58: Kitchen sets | FF58: No | FG58: Conflict | FH58: During 2017 | FI58: 0 | FJ58: 0 | FK58: 0 | FL58: Yes | FM58: Offsite | FN58: 1-2km
A59: TG192 | B59: Agulae | C59: 14 | D59: 2018-11-25 | E59: Gebrehiwot Berhe | F59: Male | G59: Tigray | H59: Eastern | I59: Kelete Awelallo | J59: Agulae | K59: 13.697076 | L59: 39.58683186 | M59: Yes | P59: Host community/families | R59: 2016-07-20 | S59: Unknown | T59: Yes | U59: Public/Government | X59: Yes | Y59: 0 | Z59: Yes | AA59: Aregawi Belay | AB59: 0911828235 | AC59: Yes | AD59: Government | AF59: Woreda Labor and Social Affair | AG59: Hadush Aregawi | AH59: 0914491508 | AI59: Yes | AJ59: Yes | AK59: Yes | AL59: Yes | AM59: Yes | AN59: Yes | AO59: Yes | AP59: Yes | AQ59: Oromia | AR59: Ilubabor | AS59: Yayu | AT59: Different kebelle | AU59: Amhara | AV59: Oromia | AW59: Bati | AX59: Different kebelle | AY59: 87 | AZ59: 11 | BA59: 26 | BB59: 7 | BC59: 58 | BD59: 3 | BE59: 105 | BF59: 5 | BG59: 14 | BH59: 3 | BI59: 41 | BJ59: 0 | BK59: 63 | BL59: 168 | BM59: 0 | BN59: 4 | BO59: 9 | BP59: 3 | BQ59: 4 | BR59: 0 | BS59: 3 | BT59: 1 | BU59: 0 | BV59: 11 | BW59: 42571 | BX59: 43429 | BZ59: No | CA59: accessibility lack of food house damaged destroyed lack of security safety no livelihood basic infrastructures damage | CB59: None | CC59: None | CD59: None | CE59: 25-50 % | CF59: < 25% | CG59: On-site (< 20 minutes) | CH59: Surface water sources (ponds/canals/river/lake/birkat) | CL59: < 5 liters | CM59: Suspended solids | CO59: Not so good (not hygienic) | CP59: 17 | CQ59: No | CS59: No | CT59: No | CU59: No waste disposal system | CW59: Yes | CY59: Yes, On Site | CZ59: Yes | DA59: Other | DB59: Daily Labor | DC59: No | DD59: No | DE59: No | DF59: Other | DG59: Acute Trachoma disease | DH59: Diarrhea | DJ59: Malaria | DL59: Yes | DN59: On-site (< 3 km) | DO59: Government | DQ59: No | DR59: No | DV59: Daily Laborer | DX59: 0 | DY59: No | DZ59: Irregular | EA59: No | EB59: No | EC59: Yes | ED59: Both | EE59: Yes | EF59: Yes | EG59: Police/Militia | EI59: alcohol drug friction host comm theft robbery rbc | EJ59: No | EK59: Psychological/Emotional abuse | EL59: No | EM59: child physical abuse child psycho distress child labor children separated | EN59: No | EO59: 0 | EP59: 0 | EQ59: Yes | ES59: Yes | EU59: Yes | EV59: Yes, there is lighting but it is NOT adequate | EW59: Local Leader | EY59: access to services distribution shelter safety and security how to get information relief assistance other | EZ59: Yes | FA59: None | FB59: Yes | FC59: Emergency shelter kits | FD59: Kitchen sets | FE59: Bedding sets | FF59: Yes | FG59: Conflict | FH59: Before 2017 | FI59: 0 | FJ59: 0 | FK59: 0 | FL59: Yes | FM59: Onsite | FN59: 1-2km
A60: SO135 | B60: Ahad | C60: 14 | D60: 2018-11-25 | E60: Abass Ali Osman | F60: Male | G60: Somali | H60: Liben | I60: Filtu | J60: Haydimtu | K60: 5.110770381 | L60: 40.41061757 | M60: Yes | P60: Spontaneous camp/site | R60: 2012-04-10 | S60: Unknown | T60: Yes | U60: Public/Government | X60: Yes | Y60: 1 | Z60: Yes | AA60: Dhaqan Hussein Mallin | AB60: XXXX | AC60: Yes | AD60: Government | AF60: Kabale Adminstration | AG60: Abshir Ali Mahmud | AH60: 0965439671 | AI60: No | AJ60: Yes | AK60: Yes | AL60: Yes | AM60: Yes | AN60: Yes | AO60: Yes | AP60: Yes | AQ60: Somali | AR60: Dawa | AS60: Mubarak | AT60: Halobir | AU60: Somali | AV60: Dawa | AW60: Mubarak | AX60: Harabali | AY60: 306 | AZ60: 230 | BA60: 153 | BB60: 168 | BC60: 168 | BD60: 153 | BE60: 872 | BF60: 199 | BG60: 184 | BH60: 153 | BI60: 230 | BJ60: 214 | BK60: 980 | BL60: 1852 | BM60: 0 | BN60: 12 | BO60: 19 | BP60: 3 | BQ60: 2 | BR60: 0 | BS60: 3 | BT60: 4 | BU60: 0 | BV60: 1 | BW60: 41009 | BX60: 41049 | BZ60: No | CA60: accessibility lack of food house damaged destroyed no livelihood | CB60: None | CC60: > 75% | CD60: None | CE60: None | CF60: None | CG60: On-site (< 20 minutes) | CH60: Surface water sources (ponds/canals/river/lake/birkat) | CL60: 10-15 liters | CO60: No toilets | CQ60: No | CT60: No | CU60: No waste disposal system | CW60: Yes | CY60: No | CZ60: No | DA60: Food Assistance | DC60: No | DD60: No | DE60: No | DF60: Malaria | DH60: Pneumonia | DJ60: Diarrhea | DL60: No | DR60: Yes | DS60: < 1km | DT60: < 25% | DU60: Onsite | DV60: Pastoralism | DX60: 0 | DY60: No | EA60: Yes | EB60: Yes > 75% | EC60: No | EE60: Yes | EF60: No | EG60: Local authorities | EI60: None | EJ60: No | EK60: None | EL60: No | EM60: None | EN60: No | EO60: 0 | EP60: 0 | EQ60: No | ES60: Yes | EU60: Yes | EV60: No lighting | EW60: Local Leader | EY60: access to services safety and security relief assistance | EZ60: No | FA60: < 25% | FB60: Yes | FC60: Emergency shelter kits | FD60: Kitchen sets | FE60: Bedding sets | FF60: Yes | FG60: Conflict | FH60: Before 2017 | FI60: 0 | FJ60: 0 | FK60: 0 | FL60: No
A61: OR816 | B61: Ahmed Imam | C61: 14 | D61: 2018-11-05 | E61: Dagnu Solomon | F61: Male | G61: Oromia | H61: East Harerge | I61: Jarso | J61: Gara Abdulla | K61: 9.46808826 | L61: 42.22625157 | M61: Yes | P61: Host community/families | R61: 2017-09-12 | S61: Unknown | T61: Yes | U61: Public/Government | X61: Yes | Y61: 4 | Z61: Yes | AA61: Meymuna Umero | AB61: 0972408450 | AC61: Yes | AD61: Government | AF61: Woreda DRM Office | AG61: Daniel Mamuye | AH61: 0930179773 | AI61: No | AJ61: Yes | AK61: Yes | AL61: Yes | AM61: Yes | AN61: No | AO61: Yes | AP61: Yes | AQ61: Somali | AR61: Fafan | AS61: Jijiga | AT61: 05 | AU61: Somali | AV61: Fafan | AW61: Tog-Wajale | AX61: 02 | AY61: 600 | AZ61: 270 | BA61: 330 | BB61: 120 | BC61: 600 | BD61: 120 | BE61: 1440 | BF61: 210 | BG61: 390 | BH61: 180 | BI61: 660 | BJ61: 30 | BK61: 1470 | BL61: 2910 | BM61: 0 | BN61: 10 | BO61: 30 | BP61: 0 | BQ61: 1 | BR61: 0 | BS61: 2 | BT61: 35 | BU61: 0 | BV61: 23 | BW61: 42990 | BZ61: Unknown | CA61: lack of food house damaged destroyed lack of security safety no livelihood | CB61: None | CC61: None | CD61: None | CE61: > 75% | CF61: None | CG61: On-site (< 20 minutes) | CH61: Protected springs | CL61: 5-10 liters | CM61: Taste | CO61: No toilets | CQ61: No | CT61: No | CU61: No waste disposal system | CW61: Yes | CY61: Yes, Offsite | CZ61: No | DA61: Food Assistance | DC61: No | DD61: No | DE61: No | DF61: Scabies | DH61: Diarrhea | DJ61: Other | DK61: Coughing | DL61: Yes | DN61: Off-site (> 3 km) | DO61: Government | DQ61: No | DR61: No | DV61: None | DX61: 0 | DY61: No | DZ61: Within the month | EA61: No | EB61: No | EC61: No | EE61: No | EF61: No | EI61: None | EJ61: No | EK61: None | EL61: No | EM61: None | EN61: No | EO61: 0 | EP61: 0 | EQ61: No | ES61: Yes | EU61: Yes | EV61: No lighting | EW61: Site Management | EY61: distribution registration shelter safety and security situation in origin | EZ61: No | FA61: None | FB61: Yes | FC61: Emergency shelter kits | FD61: Bedding sets | FE61: Kitchen sets | FF61: Yes | FG61: Conflict | FH61: During 2017 | FI61: 0 | FJ61: 2 | FK61: 0 | FL61: Yes | FM61: Onsite | FN61: 1-2km
A62: SO300 | B62: Ahmed yahas | C62: 14 | D62: 2018-11-27 | E62: Dekow Muktar | F62: Male | G62: Somali | H62: Liben | I62: Filtu | J62: Arrasame | K62: 4.844707972 | L62: 40.5503439 | M62: Yes | P62: Spontaneous camp/site | R62: 2012-04-14 | S62: Unknown | T62: Yes | U62: Public/Government | X62: Yes | Y62: 1 | Z62: Yes | AA62: Fatuma adawe | AB62: XXXX | AC62: Yes | AD62: Government | AF62: Kebele Adminstration | AG62: Dekow sabriye | AH62: XXXX | AI62: No | AJ62: Yes | AK62: Yes | AL62: Yes | AM62: Yes | AN62: Yes | AO62: Yes | AP62: Yes | AQ62: Somali | AR62: Dawa | AS62: Mubarak | AT62: Harabali | AU62: Somali | AV62: Dawa | AW62: Mubarak | AX62: Hayguda | AY62: 219 | AZ62: 153 | BA62: 110 | BB62: 120 | BC62: 120 | BD62: 110 | BE62: 613 | BF62: 153 | BG62: 120 | BH62: 131 | BI62: 175 | BJ62: 131 | BK62: 710 | BL62: 1323 | BM62: 0 | BN62: 35 | BO62: 15 | BP62: 7 | BQ62: 9 | BR62: 0 | BS62: 5 | BT62: 0 | BU62: 0 | BV62: 0 | BW62: 41013 | BX62: 41044 | BZ62: No | CA62: accessibility lack of food house damaged destroyed no livelihood | CB62: None | CC62: > 75% | CD62: None | CE62: None | CF62: None | CG62: On-site (< 20 minutes) | CH62: Surface water sources (ponds/canals/river/lake/birkat) | CL62: > 15 liters | CO62: No toilets | CQ62: No | CT62: No | CU62: No waste disposal system | CW62: Yes | CY62: No | CZ62: No | DA62: Host Community Donation | DC62: No | DD62: No | DE62: No | DF62: Malaria | DH62: Pneumonia | DJ62: Diarrhea | DL62: No | DR62: No | DV62: Pastoralism | DX62: 0 | DY62: No | EA62: Yes | EB62: Yes > 75% | EC62: No | EE62: Yes | EF62: No | EG62: Local authorities | EI62: None | EJ62: No | EK62: None | EL62: No | EM62: None | EN62: No | EO62: 0 | EP62: 0 | EQ62: No | ES62: No | EU62: Yes | EV62: No lighting | EW62: Local Leader | EY62: access to services shelter how to get information relief assistance | EZ62: No | FA62: < 25% | FB62: Yes | FC62: Emergency shelter kits | FD62: Kitchen sets | FE62: Bedding sets | FF62: Yes | FG62: Conflict | FH62: Before 2017 | FI62: 0 | FJ62: 0 | FK62: 0 | FL62: No
A63: OR1122 | B63: Alaltuu | C63: 14 | D63: 2018-11-19 | E63: Yonatan Wube | F63: Male | G63: Oromia | H63: West Wellega | I63: Mana Sibu | J63: Alaltuu gombi | K63: 9.893145391 | L63: 35.13941934 | M63: Yes | P63: Collective Center | R63: 2018-10-07 | S63: Unknown | T63: Yes | U63: Public/Government | X63: Yes | Y63: 0 | Z63: Yes | AA63: Roba Senbete | AB63: 0931640620 | AC63: Yes | AD63: Government | AF63: Alaltuu gobi kebele Administration | AG63: Tesefaye Senbeto | AH63: 0917078133 | AI63: Yes | AJ63: Yes | AK63: Yes | AL63: Yes | AM63: Yes | AN63: Yes | AO63: Yes | AP63: Yes | AQ63: Beneshangul Gumu | AR63: Asosa | AS63: Bilidigilu | AT63: Daleti | AU63: Beneshangul Gumu | AV63: Asosa | AW63: Bilidigilu | AX63: Buchi | AY63: 242 | AZ63: 133 | BA63: 254 | BB63: 97 | BC63: 254 | BD63: 12 | BE63: 750 | BF63: 145 | BG63: 169 | BH63: 61 | BI63: 242 | BJ63: 24 | BK63: 641 | BL63: 1391 | BM63: 0 | BN63: 28 | BO63: 140 | BP63: 7 | BQ63: 4 | BR63: 0 | BS63: 3 | BT63: 23 | BU63: 2 | BV63: 6 | BW63: 43380 | BX63: 43383 | BY63: Nearest Village | BZ63: Yes | CB63: None | CC63: < 25% | CD63: < 25% | CE63: < 25% | CF63: None | CG63: On-site (< 20 minutes) | CH63: Unprotected wells (open wells) | CL63: > 15 liters | CM63: Taste | CO63: Not so good (not hygienic) | CP63: 8 | CQ63: No | CS63: No | CT63: No | CU63: No waste disposal system | CW63: Yes | CY63: Yes, On Site | CZ63: Yes | DA63: Food Assistance | DC63: No | DD63: Yes | DE63: Yes | DF63: Other | DG63: TV | DH63: Malaria | DJ63: Diarrhea | DL63: Yes | DN63: On-site (< 3 km) | DO63: Government | DQ63: Yes | DR63: No | DV63: Other | DW63: Food Assistance | DX63: 0 | DY63: No | DZ63: Within the month | EA63: No | EB63: No | EC63: No | EE63: Yes | EF63: No | EG63: Police/Militia | EI63: None | EJ63: No | EK63: None | EL63: No | EM63: None | EN63: No | EO63: 0 | EP63: 0 | EQ63: Yes | ES63: No | EU63: No | EV63: No lighting | EW63: Local Leader | EY63: access to services distribution shelter safety and security how to get information relief assistance situation in origin | EZ63: No | FA63: None | FB63: Yes | FC63: Emergency shelter kits | FD63: Bedding sets | FE63: Kitchen sets | FF63: No | FG63: Conflict | FH63: In 2018 | FI63: 0 | FJ63: 0 | FK63: 0 | FL63: Yes | FM63: Offsite | FN63: < 1km
A64: TG114 | B64: Alamata Town | C64: 14 | D64: 2018-11-17 | E64: Asmelash Gebrehiwot | F64: Male | G64: Tigray | H64: Southern | I64: Alamata | J64: Alamata Town | K64: 12.41430831 | L64: 39.5582414 | M64: Yes | P64: Host community/families | R64: 2016-08-17 | S64: Unknown | T64: Yes | U64: Public/Government | X64: Yes | Y64: 4 | Z64: Yes | AA64: Amare Alemayehu | AB64: 0917358742 | AC64: Yes | AD64: Government | AF64: Office of labor and social Affairs | AG64: Tsega Gebremariam | AH64: 0935363535 | AI64: Yes | AJ64: Yes | AK64: Yes | AL64: Yes | AM64: Yes | AN64: Yes | AO64: Yes | AP64: Yes | AQ64: Oromia | AR64: Kelem Wellega | AS64: Dale Sadi | AT64: Different Kebeles | AU64: Amhara | AV64: North Wollo | AW64: Kobo | AX64: Different Kebeles | AY64: 628 | AZ64: 62 | BA64: 386 | BB64: 39 | BC64: 275 | BD64: 32 | BE64: 794 | BF64: 53 | BG64: 174 | BH64: 43 | BI64: 162 | BJ64: 26 | BK64: 458 | BL64: 1252 | BM64: 0 | BN64: 8 | BO64: 35 | BP64: 3 | BQ64: 6 | BR64: 0 | BS64: 8 | BT64: 42 | BU64: 0 | BV64: 92 | BW64: 42599 | BX64: 43407 | BZ64: No | CA64: house damaged destroyed lack of security safety no livelihood | CB64: None | CC64: None | CD64: None | CE64: < 25% | CF64: > 75% | CG64: On-site (< 20 minutes) | CH64: Water taps from piped network | CL64: 10-15 liters | CO64: Not so good (not hygienic) | CP64: 122 | CQ64: No | CS64: No | CT64: No | CU64: Garbage pit | CW64: Yes | CY64: Yes, On Site | CZ64: Yes | DA64: Other | DB64: Daily labor | DC64: Yes | DD64: No | DE64: No | DF64: Malaria | DH64: Pneumonia | DJ64: Other | DK64: Acute Upper Respiratory Tract Infection | DL64: Yes | DN64: On-site (< 3 km) | DO64: Government | DQ64: No | DR64: No | DV64: Daily Laborer | DX64: 4 | DY64: No | DZ64: Irregular | EA64: No | EB64: No | EC64: Yes | ED64: Abroad | EE64: Yes | EF64: No | EG64: Police/Militia | EI64: None | EJ64: No | EK64: denial of resources psycho emotional abuse | EL64: No | EM64: child psycho distress children separated | EN64: No | EO64: 0 | EP64: 0 | EQ64: Yes | ES64: Yes | EU64: Yes | EV64: Yes, there is lighting and it is adequate | EW64: Authorities | EY64: access to services distribution shelter how to get information relief assistance situation in origin | EZ64: No | FA64: None | FB64: Yes | FC64: Bedding sets | FD64: Kitchen sets | FE64: Emergency shelter kits | FF64: Yes | FG64: Conflict | FH64: Before 2017 | FI64: 0 | FJ64: 0 | FK64: 0 | FL64: Yes | FM64: Onsite | FN64: < 1km
A65: SO449 | B65: Alan | C65: 14 | D65: 2018-11-23 | E65: Wali Awale Muhumed | F65: Male | G65: Somali | H65: Afder | I65: Dolobay | J65: Alan | K65: 4.547590541 | L65: 42.31452147 | M65: Yes | P65: Spontaneous camp/site | R65: 2017-01-10 | S65: Unknown | T65: Yes | U65: Public/Government | X65: Yes | Y65: 1 | Z65: Yes | AA65: Mahad Muhumed Abdi | AB65: XXXX | AC65: Yes | AD65: Government | AF65: Alan kebele | AG65: Abdullahi Sheik Mohammed | AH65: 0932601831 | AI65: Yes | AJ65: Yes | AK65: Yes | AL65: Yes | AM65: Yes | AN65: Yes | AO65: Yes | AP65: Yes | AQ65: Somali | AR65: Afder | AS65: Dolobay | AT65: Alan | AU65: Somali | AV65: Afder | AW65: Dolobay | AX65: Roowrow | AY65: 603 | AZ65: 271 | BA65: 332 | BB65: 271 | BC65: 513 | BD65: 241 | BE65: 1628 | BF65: 302 | BG65: 422 | BH65: 332 | BI65: 543 | BJ65: 241 | BK65: 1840 | BL65: 3468 | BM65: 0 | BN65: 43 | BO65: 73 | BP65: 3 | BQ65: 0 | BR65: 0 | BS65: 0 | BT65: 6 | BU65: 0 | BV65: 4 | BW65: 42745 | BX65: 42957 | BZ65: No | CA65: accessibility lack of food no livelihood | CB65: None | CC65: 51-75 % | CD65: None | CE65: < 25% | CF65: None | CG65: On-site (> 20 minutes) | CH65: Surface water sources (ponds/canals/river/lake/birkat) | CL65: 5-10 liters | CM65: Taste | CO65: No toilets | CQ65: No | CT65: No | CU65: No waste disposal system | CW65: Yes | CY65: Yes, On Site | CZ65: Yes | DA65: Food Assistance | DC65: Yes | DD65: Yes | DE65: Yes | DF65: Pneumonia | DH65: Diarrhea | DJ65: Malaria | DL65: Yes | DN65: On-site (< 3 km) | DO65: Government | DQ65: Yes | DR65: No | DV65: Pastoralism | DX65: 0 | DY65: No | DZ65: Last month | EA65: No | EB65: No | EC65: No | EE65: Yes | EF65: No | EG65: Community leaders | EI65: None | EJ65: No | EK65: None | EL65: No | EM65: None | EN65: No | EO65: 0 | EP65: 0 | EQ65: No | ES65: Yes | EU65: Yes | EV65: No lighting | EW65: Local Leader | EY65: access to services distribution registration shelter relief assistance | EZ65: No | FA65: 25-50 % | FB65: Yes | FC65: Emergency shelter kits | FD65: Kitchen sets | FE65: Bedding sets | FF65: Yes | FG65: Drought | FH65: During 2017 | FI65: 1 | FJ65: 0 | FK65: 0 | FL65: Yes | FM65: Onsite | FN65: < 1km
A66: OR448 | B66: Albula Lencha | C66: 14 | D66: 2018-11-12 | E66: Gifto wakessa | F66: Female | G66: Oromia | H66: West Arsi | I66: Shalla | J66: Albula Lancha | K66: 7.35173526 | L66: 38.32031513 | M66: Yes | P66: Host community/families | R66: 2017-07-03 | S66: Unknown | T66: Yes | U66: Public/Government | X66: Yes | Y66: 0 | Z66: Yes | AA66: Tibesso bekata | AB66: 09 78 80 19 36 | AC66: Yes | AD66: Government | AF66: SHALLA DRM OFFICE | AG66: Fikadu Chala | AH66: 0916002372 | AI66: Yes | AJ66: Yes | AK66: Yes | AL66: Yes | AM66: Yes | AN66: No | AO66: Yes | AP66: Yes | AQ66: Oromia | AR66: West Arsi | AS66: Shalla | AT66: Albula Lencha | AY66: 20 | AZ66: 18 | BA66: 25 | BB66: 8 | BC66: 37 | BD66: 7 | BE66: 95 | BF66: 20 | BG66: 23 | BH66: 6 | BI66: 37 | BJ66: 5 | BK66: 91 | BL66: 186 | BM66: 0 | BN66: 11 | BO66: 9 | BP66: 0 | BQ66: 0 | BR66: 0 | BS66: 4 | BT66: 3 | BU66: 0 | BV66: 1 | BW66: 42919 | BZ66: No | CA66: lack of food house damaged destroyed no livelihood | CB66: None | CC66: < 25% | CD66: None | CE66: > 75% | CF66: Unknown | CG66: On-site (< 20 minutes) | CH66: Protected wells (hand pumps/motorized boreholes) | CL66: < 5 liters | CM66: Taste | CO66: Not so good (not hygienic) | CP66: 3 | CQ66: No | CS66: No | CT66: No | CU66: No waste disposal system | CW66: Yes | CY66: Yes, Offsite | CZ66: No | DA66: Food Assistance | DC66: Yes | DD66: Yes | DE66: Yes | DF66: Malaria | DH66: Pneumonia | DJ66: Diarrhea | DL66: Yes | DN66: Off-site (< 3 km) | DO66: Government | DQ66: Yes | DR66: No | DV66: Farming | DX66: 50 | DY66: Yes | DZ66: Within the month | EA66: Yes | EB66: Yes > 75% | EC66: No | EE66: Yes | EF66: No | EG66: Local authorities | EI66: None | EJ66: No | EK66: None | EL66: No | EM66: None | EN66: No | EO66: 0 | EP66: 0 | EQ66: Yes | ES66: Yes | EU66: Yes | EV66: No lighting | EW66: Authorities | EY66: distribution registration shelter | EZ66: No | FA66: None | FB66: Yes | FC66: Emergency shelter kits | FD66: Bedding sets | FE66: Hygiene kits | FF66: Yes | FG66: Seasonal Flood | FH66: During 2017 | FI66: 2 | FJ66: 0 | FK66: 0 | FL66: Yes | FM66: Onsite | FN66: 1-2km
A67: OR817 | B67: Ale | C67: 14 | D67: 2018-11-05 | E67: Dagnu Solomon | F67: Male | G67: Oromia | H67: East Harerge | I67: Jarso | J67: Ale | K67: 9.52734983 | L67: 42.3224852 | M67: Yes | P67: Host community/families | R67: 2017-09-12 | S67: Unknown | T67: Yes | U67: Public/Government | X67: Yes | Y67: 3 | Z67: Yes | AA67: Ziyad Mehamed | AB67: 0939595751 | AC67: Yes | AD67: Government | AF67: Woreda DRM Office | AG67: Daniel Mamuye | AH67: 0930179773 | AI67: No | AJ67: Yes | AK67: Yes | AL67: Yes | AM67: Yes | AN67: No | AO67: Yes | AP67: Yes | AQ67: Somali | AR67: Fafan | AS67: Jijiga | AT67: 7 | AU67: Somali | AV67: Fafan | AW67: Tog-Wajale | AX67: 02 | AY67: 512 | AZ67: 230 | BA67: 282 | BB67: 154 | BC67: 512 | BD67: 77 | BE67: 1255 | BF67: 179 | BG67: 358 | BH67: 154 | BI67: 512 | BJ67: 0 | BK67: 1203 | BL67: 2458 | BM67: 0 | BN67: 15 | BO67: 24 | BP67: 0 | BQ67: 2 | BR67: 0 | BS67: 1 | BT67: 20 | BU67: 0 | BV67: 25 | BW67: 42990 | BZ67: No | CA67: lack of food house damaged destroyed lack of security safety no livelihood | CB67: None | CC67: None | CD67: None | CE67: > 75% | CF67: None | CG67: On-site (< 20 minutes) | CH67: Protected wells (hand pumps/motorized boreholes) | CL67: 5-10 liters | CM67: Taste | CO67: No toilets | CQ67: No | CT67: No | CU67: No waste disposal system | CW67: Yes | CY67: Yes, On Site | CZ67: Yes | DA67: Food Assistance | DC67: No | DD67: No | DE67: No | DF67: Diarrhea | DH67: Malaria | DJ67: Scabies | DL67: Yes | DN67: Off-site (> 3 km) | DO67: Government | DQ67: No | DR67: No | DV67: None | DX67: 0 | DY67: No | DZ67: Within the month | EA67: No | EB67: No | EC67: No | EE67: No | EF67: No | EI67: None | EJ67: No | EK67: None | EL67: No | EM67: None | EN67: No | EO67: 0 | EP67: 0 | EQ67: No | ES67: Yes | EU67: Yes | EV67: No lighting | EW67: Site Management | EY67: distribution registration shelter safety and security relief assistance situation in origin | EZ67: No | FA67: None | FB67: Yes | FC67: Emergency shelter kits | FD67: Bedding sets | FE67: Kitchen sets | FF67: Yes | FG67: Conflict | FH67: During 2017 | FI67: 4 | FJ67: 0 | FK67: 0 | FL67: Yes | FM67: Onsite | FN67: 1-2km
A68: SO470 | B68: Aleen | C68: 14 | D68: 2018-11-09 | E68: Ali Abdi | F68: Male | G68: Somali | H68: Korahe | I68: Shilabo | J68: Aleen | K68: 6.275209383 | L68: 45.14024965 | M68: Yes | P68: Spontaneous camp/site | R68: 2017-01-01 | S68: Unknown | T68: Yes | U68: Public/Government | X68: Yes | Y68: 1 | Z68: Yes | AA68: Abdi Daud | AB68: 0972310174 | AC68: Yes | AD68: Government | AF68: Aleen | AG68: Biimo Hassan Abdile | AH68: 0961725174 | AI68: Yes | AJ68: Yes | AK68: Yes | AL68: Yes | AM68: Yes | AN68: Yes | AO68: Yes | AP68: Yes | AQ68: Somali | AR68: Korahe | AS68: Shilabo | AT68: Aleen | AU68: Somali | AV68: Korahe | AW68: Shilabo | AX68: Aleen | AY68: 131 | AZ68: 59 | BA68: 151 | BB68: 85 | BC68: 138 | BD68: 13 | BE68: 446 | BF68: 59 | BG68: 98 | BH68: 66 | BI68: 144 | BJ68: 7 | BK68: 374 | BL68: 820 | BM68: 0 | BN68: 29 | BO68: 57 | BP68: 6 | BQ68: 3 | BR68: 0 | BS68: 4 | BT68: 1 | BU68: 1 | BV68: 1 | BW68: 42736 | BX68: 43048 | BZ68: No | CA68: accessibility lack of food house damaged destroyed no livelihood | CB68: None | CC68: 25-50 % | CD68: None | CE68: None | CF68: None | CG68: On-site (< 20 minutes) | CH68: Protected wells (hand pumps/motorized boreholes) | CL68: < 5 liters | CO68: No toilets | CQ68: No | CT68: No | CU68: Burning | CW68: Yes | CY68: Yes, On Site | CZ68: Yes | DA68: Food Assistance | DC68: Yes | DD68: Yes | DE68: Yes | DF68: Pneumonia | DH68: Malaria | DJ68: Injury | DL68: Yes | DN68: On-site (< 3 km) | DO68: Government | DQ68: Yes | DR68: No | DV68: Pastoralism | DX68: 0 | DY68: No | DZ68: Last month | EA68: No | EB68: Yes > 75% | EC68: No | EE68: Yes | EF68: No | EG68: Police/Militia | EI68: None | EJ68: No | EK68: None | EL68: No | EM68: None | EN68: No | EO68: 0 | EP68: 0 | EQ68: No | ES68: Yes | EU68: Yes | EV68: No lighting | EW68: Authorities | EY68: access to services distribution shelter relief assistance | EZ68: No | FA68: None | FB68: Yes | FC68: Emergency shelter kits | FD68: Bedding sets | FE68: Kitchen sets | FF68: Yes | FG68: Drought | FH68: During 2017 | FI68: 1 | FJ68: 0 | FK68: 0 | FL68: Yes | FM68: Onsite | FN68: < 1km
A69: AF169 | B69: Alheena | C69: 14 | D69: 2018-11-12 | E69: Kuchim Gashaw | F69: Male | G69: Afar | H69: Kilbati (Zone 2) | I69: Koneba | J69: Alheena | K69: 13.89887121 | L69: 39.88331689 | M69: Yes | P69: Host community/families | R69: 2016-06-08 | S69: Unknown | T69: Yes | U69: Public/Government | X69: Yes | Y69: 1 | Z69: Yes | AA69: Edris Abdella | AB69: XXXX | AC69: Yes | AD69: Government | AF69: Kebele Administration | AG69: Ali Yusuf | AH69: XXXX | AI69: No | AJ69: Yes | AK69: No | AL69: Yes | AM69: Yes | AN69: No | AO69: No | AP69: Yes | AQ69: Afar | AR69: Kilbati (Zone 2) | AS69: Koneba | AT69: Aleheena | AY69: 89 | AZ69: 36 | BA69: 58 | BB69: 40 | BC69: 89 | BD69: 31 | BE69: 254 | BF69: 40 | BG69: 45 | BH69: 18 | BI69: 93 | BJ69: 18 | BK69: 214 | BL69: 468 | BM69: 0 | BN69: 16 | BO69: 13 | BP69: 0 | BQ69: 1 | BR69: 0 | BS69: 0 | BT69: 5 | BU69: 0 | BV69: 2 | BW69: 42529 | BX69: 43128 | BZ69: No | CA69: accessibility lack of food no livelihood | CB69: None | CC69: > 75% | CD69: None | CE69: None | CF69: None | CG69: Off-site (> 20 minutes) | CH69: Protected wells (hand pumps/motorized boreholes) | CL69: < 5 liters | CM69: Suspended solids | CO69: No toilets | CQ69: No | CT69: No | CU69: No waste disposal system | CW69: Yes | CY69: Yes, Offsite | CZ69: Yes | DA69: Food Assistance | DC69: Yes | DD69: No | DE69: No | DF69: Diarrhea | DH69: Malaria | DJ69: Other | DK69: Common Cold | DL69: Yes | DN69: Off-site (> 3 km) | DO69: Government | DQ69: Yes | DR69: No | DV69: Pastoralism | DX69: 65 | DY69: No | DZ69: Last month | EA69: Yes | EB69: No | EC69: No | EE69: Yes | EF69: No | EG69: Police/Militia | EI69: None | EJ69: No | EK69: None | EL69: No | EM69: None | EN69: No | EO69: 0 | EP69: 0 | EQ69: Yes | ES69: Yes | EU69: Yes | EV69: No lighting | EW69: Families/Friends | EY69: access to services distribution how to get information relief assistance | EZ69: No | FA69: None | FB69: Yes | FC69: Kitchen sets | FD69: Bedding sets | FE69: Hygiene kits | FF69: Yes | FG69: Drought | FH69: Before 2017 | FI69: 1 | FJ69: 0 | FK69: 0 | FL69: Yes | FM69: Offsite | FN69: 1-2km
A70: SO415 | B70: Ali Bare | C70: 14 | D70: 2018-11-17 | E70: Mahamed Abdikarin Ali | F70: Male | G70: Somali | H70: Doolo | I70: Danot | J70: Ali Bare | K70: 7.500471066 | L70: 45.48998777 | M70: Yes | P70: Host community/families | R70: 2017-01-07 | S70: Unknown | T70: Yes | U70: Public/Government | X70: Yes | Y70: 2 | Z70: Yes | AA70: Mahamed Idan Hasan | AB70: 0902615221 | AC70: Yes | AD70: Government | AF70: Ali Bare administration | AG70: Dahir Abdi isman | AH70: 0942692319 | AI70: Yes | AJ70: Yes | AK70: Yes | AL70: Yes | AM70: Yes | AN70: Yes | AO70: Yes | AP70: Yes | AQ70: Somali | AR70: Doolo | AS70: Danot | AT70: Rule dafle | AU70: Somali | AV70: Doolo | AW70: Danot | AX70: Lanqayrta | AY70: 75 | AZ70: 64 | BA70: 45 | BB70: 45 | BC70: 75 | BD70: 23 | BE70: 252 | BF70: 41 | BG70: 38 | BH70: 26 | BI70: 75 | BJ70: 15 | BK70: 195 | BL70: 447 | BM70: 0 | BN70: 18 | BO70: 23 | BP70: 2 | BQ70: 3 | BR70: 0 | BS70: 2 | BT70: 5 | BU70: 2 | BV70: 0 | BW70: 42742 | BX70: 42907 | BZ70: No | CA70: accessibility lack of food no livelihood | CB70: None | CC70: 25-50 % | CD70: None | CE70: None | CF70: None | CG70: On-site (> 20 minutes) | CH70: Surface water sources (ponds/canals/river/lake/birkat) | CL70: 5-10 liters | CM70: Suspended solids | CO70: No toilets | CQ70: No | CT70: No | CU70: Burning | CW70: Yes | CY70: Yes, On Site | CZ70: No | DA70: Food Assistance | DC70: Yes | DD70: Yes | DE70: Yes | DF70: Pneumonia | DH70: UTI | DJ70: Malaria | DL70: Yes | DN70: On-site (< 3 km) | DO70: Government | DQ70: No | DR70: No | DV70: Pastoralism | DX70: 0 | DY70: No | DZ70: 3 months ago | EA70: No | EB70: Yes 25-50% | EC70: No | EE70: Yes | EF70: No | EG70: Local authorities | EI70: None | EJ70: No | EK70: None | EL70: No | EM70: None | EN70: No | EO70: 0 | EP70: 0 | EQ70: No | ES70: Yes | EU70: Yes | EV70: No lighting | EW70: Site Management | EY70: access to services distribution registration shelter relief assistance | EZ70: No | FA70: None | FB70: Yes | FC70: Emergency shelter kits | FD70: Bedding sets | FE70: Mosquito nets | FF70: Yes | FG70: Drought | FH70: During 2017 | FI70: 0 | FJ70: 0 | FK70: 0 | FL70: Yes | FM70: Onsite | FN70: < 1km
A71: SO301 | B71: Ali Gaciye | C71: 14 | D71: 2018-11-13 | E71: Dekow Muktar | F71: Male | G71: Somali | H71: Liben | I71: Deka Seftu | J71: Ali Gaciye | K71: 5.198675191 | L71: 40.07077634 | M71: Yes | P71: Spontaneous camp/site | R71: 2016-05-16 | S71: Unknown | T71: Yes | U71: Public/Government | X71: Yes | Y71: 1 | Z71: Yes | AA71: Fatuma mohamed | AB71: XXXX | AC71: Yes | AD71: Government | AF71: Kebele Adminstration | AG71: Dhi,is Garore | AH71: 0928886216 | AI71: No | AJ71: Yes | AK71: Yes | AL71: Yes | AM71: Yes | AN71: Yes | AO71: Yes | AP71: Yes | AQ71: Somali | AR71: Dawa | AS71: Mubarak | AT71: Harabali | AU71: Oromia | AV71: Guji | AW71: Goro Dola | AX71: Madha danun | AY71: 50 | AZ71: 33 | BA71: 33 | BB71: 33 | BC71: 23 | BD71: 18 | BE71: 140 | BF71: 40 | BG71: 30 | BH71: 28 | BI71: 23 | BJ71: 25 | BK71: 146 | BL71: 286 | BM71: 0 | BN71: 23 | BO71: 25 | BP71: 6 | BQ71: 2 | BR71: 0 | BS71: 1 | BT71: 0 | BU71: 0 | BV71: 0 | BW71: 42506 | BX71: 42622 | BZ71: No | CA71: accessibility lack of food house damaged destroyed lack of security safety no livelihood | CB71: None | CC71: > 75% | CD71: None | CE71: None | CF71: None | CG71: Off-site (> 20 minutes) | CH71: Surface water sources (ponds/canals/river/lake/birkat) | CL71: < 5 liters | CO71: No toilets | CQ71: No | CT71: No | CU71: No waste disposal system | CW71: Yes | CY71: Yes, On Site | CZ71: No | DA71: Food Assistance | DC71: No | DD71: No | DE71: No | DF71: Pneumonia | DH71: Malaria | DJ71: Diarrhea | DL71: No | DR71: No | DV71: Pastoralism | DX71: 0 | DY71: No | DZ71: 3 months ago | EA71: Yes | EB71: Yes > 75% | EC71: No | EE71: Yes | EF71: No | EG71: Self organized | EI71: None | EJ71: No | EK71: None | EL71: No | EM71: None | EN71: No | EO71: 0 | EP71: 0 | EQ71: No | ES71: Yes | EU71: Yes | EV71: No lighting | EW71: Local Leader | EY71: access to services shelter relief assistance | EZ71: No | FA71: < 25% | FB71: Yes | FC71: Kitchen sets | FD71: Emergency shelter kits | FE71: Bedding sets | FF71: Yes | FG71: Conflict | FH71: Before 2017 | FI71: 0 | FJ71: 0 | FK71: 0 | FL71: Yes | FM71: Onsite | FN71: < 1km
A72: SO566 | B72: Ali hudle | C72: 14 | D72: 2018-11-14 | E72: Mohamud Abdi | F72: Male | G72: Somali | H72: Shabelle | I72: Adadle | J72: Todob | K72: 5.204096667 | L72: 43.54472095 | M72: Yes | P72: Spontaneous camp/site | R72: 2017-06-14 | S72: Unknown | T72: Yes | U72: Public/Government | X72: Yes | Y72: 2 | Z72: Yes | AA72: Ismael roble huble | AB72: 0929476520 | AC72: Yes | AD72: Government | AF72: Ali huddle | AG72: Ismael roble huble | AH72: 0929476520 | AI72: Yes | AJ72: Yes | AK72: Yes | AL72: Yes | AM72: Yes | AN72: Yes | AO72: Yes | AP72: Yes | AQ72: Somali | AR72: Shabelle | AS72: Adadle | AT72: Bali abes | AU72: Somali | AV72: Shabelle | AW72: Adadle | AX72: Robdid | AY72: 105 | AZ72: 53 | BA72: 89 | BB72: 37 | BC72: 89 | BD72: 32 | BE72: 300 | BF72: 58 | BG72: 105 | BH72: 37 | BI72: 95 | BJ72: 32 | BK72: 327 | BL72: 627 | BM72: 0 | BN72: 22 | BO72: 35 | BP72: 6 | BQ72: 7 | BR72: 0 | BS72: 3 | BT72: 15 | BU72: 0 | BV72: 3 | BW72: 42900 | BX72: 43104 | BZ72: No | CA72: lack of food house damaged destroyed no livelihood | CB72: None | CC72: 25-50 % | CD72: None | CE72: None | CF72: None | CG72: On-site (< 20 minutes) | CH72: Surface water sources (ponds/canals/river/lake/birkat) | CL72: < 5 liters | CO72: No toilets | CQ72: No | CT72: No | CU72: Burning | CW72: Yes | CY72: Yes, On Site | CZ72: No | DA72: Food Assistance | DC72: No | DD72: No | DE72: No | DF72: UTI | DH72: Pneumonia | DJ72: Malaria | DL72: Yes | DN72: Off-site (> 3 km) | DO72: Government | DQ72: Yes | DR72: Yes | DS72: < 1km | DT72: 25-50 % | DU72: Onsite | DV72: Pastoralism | DX72: 0 | DY72: No | DZ72: Within the month | EA72: Yes | EB72: No | EC72: No | EE72: Yes | EF72: No | EG72: Community leaders | EI72: None | EJ72: No | EK72: None | EL72: No | EM72: None | EN72: No | EO72: 0 | EP72: 0 | EQ72: No | ES72: Yes | EU72: Yes | EV72: No lighting | EW72: Site Management | EY72: access to services distribution shelter relief assistance | EZ72: No | FA72: None | FB72: Yes | FC72: Bedding sets | FD72: Kitchen sets | FE72: Emergency shelter kits | FF72: Yes | FG72: Drought | FH72: During 2017 | FI72: 0 | FJ72: 0 | FK72: 0 | FL72: No
A73: SO236 | B73: Ali jiir | C73: 14 | D73: 2018-11-08 | E73: Ahmed Jama Ege | F73: Male | G73: Somali | H73: Siti | I73: Afdem | J73: Ali jiir | K73: 9.764745478 | L73: 40.82587292 | M73: Yes | P73: Spontaneous camp/site | R73: 2015-02-08 | S73: Unknown | T73: Yes | U73: Public/Government | X73: Yes | Y73: 2 | Z73: Yes | AA73: Hared Food Bouh | AB73: XXXX | AC73: Yes | AD73: Government | AF73: Ali Jiir | AG73: Ahmed Dibad Ali | AH73: XXXX | AI73: Yes | AJ73: Yes | AK73: Yes | AL73: Yes | AM73: Yes | AN73: Yes | AO73: Yes | AP73: Yes | AQ73: Somali | AR73: Siti | AS73: Afdem | AT73: Adayga | AU73: Somali | AV73: Siti | AW73: Afdem | AX73: Hidig | AY73: 330 | AZ73: 231 | BA73: 281 | BB73: 149 | BC73: 314 | BD73: 66 | BE73: 1041 | BF73: 198 | BG73: 182 | BH73: 165 | BI73: 330 | BJ73: 66 | BK73: 941 | BL73: 1982 | BM73: 0 | BN73: 37 | BO73: 56 | BP73: 4 | BQ73: 2 | BR73: 0 | BS73: 0 | BT73: 0 | BU73: 2 | BV73: 22 | BW73: 42043 | BX73: 42456 | BZ73: No | CA73: accessibility lack of food house damaged destroyed no livelihood | CB73: None | CC73: 51-75 % | CD73: None | CE73: None | CF73: None | CG73: On-site (< 20 minutes) | CH73: Protected wells (hand pumps/motorized boreholes) | CL73: 5-10 liters | CO73: No toilets | CQ73: No | CT73: No | CU73: Burning | CW73: Yes | CY73: Yes, On Site | CZ73: No | DA73: Cash Assistance | DC73: Yes | DD73: No | DE73: No | DF73: Malaria | DH73: Diarrhea | DJ73: UTI | DL73: Yes | DN73: On-site (< 3 km) | DO73: Government | DQ73: Yes | DR73: No | DV73: Pastoralism | DX73: 0 | DY73: No | DZ73: > 3 months ago | EA73: Yes | EB73: Yes 25-50% | EC73: No | EE73: Yes | EF73: No | EG73: Local authorities | EI73: None | EJ73: No | EK73: None | EL73: No | EM73: None | EN73: No | EO73: 0 | EP73: 0 | EQ73: No | ES73: Yes | EU73: Yes | EV73: No lighting | EW73: Mobile Phone | EY73: access to services distribution registration shelter | EZ73: No | FA73: None | FB73: Yes | FC73: Emergency shelter kits | FD73: Kitchen sets | FE73: Bedding sets | FF73: Yes | FG73: Drought | FH73: Before 2017 | FI73: 3 | FJ73: 0 | FK73: 0 | FL73: Yes | FM73: Onsite | FN73: < 1km
A74: OR1013 | B74: Ali Sheko Camp | C74: 14 | D74: 2018-11-09 | E74: Tewodros Asfaw | F74: Male | G74: Oromia | H74: East Harerge | I74: Goro Gutu | J74: 01 | K74: 9.37551992 | L74: 41.36379663 | M74: Yes | P74: Collective Center | R74: 2018-06-02 | S74: Unknown | T74: Yes | U74: Public/Government | X74: Yes | Y74: 1 | Z74: Yes | AA74: Hassen Sule | AB74: 0945624327 | AC74: Yes | AD74: Government | AF74: Woreda DRM Office | AG74: Jabir Mume | AH74: 0982605779 | AI74: No | AJ74: Yes | AK74: Yes | AL74: Yes | AM74: Yes | AN74: Yes | AO74: Yes | AP74: Yes | AQ74: Somali | AR74: Siti | AS74: Erer | AT74: Different Kebeles | AU74: Somali | AV74: Fafan | AW74: Jijiga | AX74: Different Kebeles | AY74: 143 | AZ74: 43 | BA74: 50 | BB74: 72 | BC74: 136 | BD74: 14 | BE74: 315 | BF74: 50 | BG74: 64 | BH74: 86 | BI74: 143 | BJ74: 7 | BK74: 350 | BL74: 665 | BM74: 0 | BN74: 6 | BO74: 20 | BP74: 0 | BQ74: 0 | BR74: 0 | BS74: 0 | BT74: 5 | BU74: 0 | BV74: 4 | BW74: 43253 | BZ74: No | CA74: accessibility house damaged destroyed lack of security safety basic infrastructures damage | CB74: None | CC74: None | CD74: > 75% | CE74: None | CF74: None | CG74: On-site (> 20 minutes) | CH74: Surface water sources (ponds/canals/river/lake/birkat) | CL74: < 5 liters | CM74: Suspended solids | CO74: Not so good (not hygienic) | CP74: 2 | CQ74: No | CS74: No | CT74: No | CU74: No waste disposal system | CW74: Yes | CY74: Yes, Offsite | CZ74: No | DA74: Food Assistance | DC74: No | DD74: No | DE74: No | DF74: Pneumonia | DH74: Diarrhea | DJ74: None | DL74: Yes | DN74: On-site (< 3 km) | DO74: Government | DQ74: Yes | DR74: No | DV74: None | DX74: 0 | DY74: No | DZ74: Last month | EA74: No | EB74: No | EC74: No | EE74: Yes | EF74: Yes | EG74: Self organized | EI74: Friction among site residents | EJ74: No | EK74: None | EL74: No | EM74: None | EN74: No | EO74: 0 | EP74: 0 | EQ74: Yes | ES74: No | EU74: No | EV74: No lighting | EW74: Radio/News | EY74: access to services distribution shelter | EZ74: No | FA74: None | FB74: Yes | FC74: Emergency shelter kits | FD74: Bedding sets | FE74: Hygiene kits | FF74: No | FG74: Conflict | FH74: In 2018 | FI74: 0 | FJ74: 0 | FK74: 0 | FL74: Yes | FM74: Offsite | FN74: 1-2km
A75: OR343 | B75: Alimadera | C75: 14 | D75: 2018-11-07 | E75: Alemayehu Dessu | F75: Male | G75: Oromia | H75: Guji | I75: Gumi-Eldelo | J75: Bulbul | K75: 5.053505864 | L75: 39.47539459 | M75: Yes | P75: Dispersed Settlement | R75: 2017-01-10 | S75: Unknown | T75: Yes | U75: Public/Government | X75: Yes | Y75: 2 | Z75: Yes | AA75: Bonaya Duba | AB75: 0926291486 | AC75: Yes | AD75: Government | AF75: DRM office | AG75: Boru Kena | AH75: 0910613768 | AI75: No | AJ75: Yes | AK75: Yes | AL75: Yes | AM75: Yes | AN75: Yes | AO75: Yes | AP75: Yes | AQ75: Oromia | AR75: Guji | AS75: Gumi-Eldelo | AT75: Oda Dima | AU75: Oromia | AV75: Guji | AW75: Gumi-Eldelo | AX75: Melka Duke | AY75: 570 | AZ75: 399 | BA75: 599 | BB75: 200 | BC75: 485 | BD75: 57 | BE75: 1740 | BF75: 513 | BG75: 741 | BH75: 171 | BI75: 656 | BJ75: 86 | BK75: 2167 | BL75: 3907 | BM75: 0 | BN75: 110 | BO75: 70 | BP75: 0 | BQ75: 5 | BR75: 0 | BS75: 0 | BT75: 30 | BU75: 0 | BV75: 4 | BW75: 42745 | BZ75: Yes | CA75: lack of food house damaged destroyed lack of security safety no livelihood | CB75: None | CC75: None | CD75: None | CE75: < 25% | CF75: None | CG75: Off-site (> 20 minutes) | CH75: Surface water sources (ponds/canals/river/lake/birkat) | CL75: < 5 liters | CM75: Suspended solids | CO75: Not so good (not hygienic) | CP75: 10 | CQ75: No | CS75: No | CT75: No | CU75: No waste disposal system | CW75: Yes | CY75: Yes, On Site | CZ75: Yes | DA75: Host Community Donation | DC75: No | DD75: No | DE75: No | DF75: Diarrhea | DH75: Pneumonia | DJ75: Malaria | DL75: No | DR75: No | DV75: None | DX75: 15 | DY75: Yes | DZ75: > 3 months ago | EA75: Yes | EB75: No | EC75: No | EE75: Yes | EF75: No | EG75: Self organized | EI75: None | EJ75: No | EK75: None | EL75: No | EM75: None | EN75: No | EO75: 0 | EP75: 0 | EQ75: Yes | ES75: No | EU75: No | EV75: No lighting | EW75: Site Management | EY75: distribution registration shelter how to get information relief assistance | EZ75: No | FA75: None | FB75: Yes | FC75: Emergency shelter kits | FD75: Bedding sets | FE75: Kitchen sets | FF75: Yes | FG75: Conflict | FH75: During 2017 | FI75: 0 | FJ75: 0 | FK75: 0 | FL75: Yes | FM75: Offsite | FN75: 3-5km
A76: SO665 | B76: Alo Huluqo | C76: 14 | D76: 2018-11-24 | E76: Abdi Adan | F76: Male | G76: Somali | H76: Dawa | I76: Moyale | J76: Alo Huluqo | K76: 3.591397127 | L76: 39.11464613 | M76: Yes | P76: Host community/families | R76: 2018-04-10 | S76: Unknown | T76: Yes | U76: Public/Government | X76: Yes | Y76: 1 | Z76: Yes | AA76: Boya Gabow | AB76: 0916382049 | AC76: Yes | AD76: Government | AF76: Local government administration | AG76: Boya Gabow | AH76: 0916382049 | AI76: No | AJ76: Yes | AK76: Yes | AL76: Yes | AM76: Yes | AN76: Yes | AO76: Yes | AP76: Yes | AQ76: Somali | AR76: Dawa | AS76: Moyale | AT76: Abitu | AU76: Somali | AV76: Dawa | AW76: Moyale | AX76: Qalqalcha | AY76: 512 | AZ76: 461 | BA76: 307 | BB76: 358 | BC76: 307 | BD76: 179 | BE76: 1612 | BF76: 461 | BG76: 410 | BH76: 307 | BI76: 589 | BJ76: 179 | BK76: 1946 | BL76: 3558 | BM76: 20 | BN76: 75 | BO76: 115 | BP76: 6 | BQ76: 10 | BR76: 0 | BS76: 5 | BT76: 25 | BU76: 10 | BV76: 15 | BW76: 43200 | BZ76: No | CA76: house damaged destroyed lack of security safety basic infrastructures damage | CB76: 25-50 % | CC76: None | CD76: 25-50 % | CE76: 25-50 % | CF76: None | CG76: On-site (> 20 minutes) | CH76: None | CL76: < 5 liters | CM76: Odor/smell | CO76: No toilets | CQ76: No | CT76: No | CU76: No waste disposal system | CW76: No | CY76: No | CZ76: No | DA76: Host Community Donation | DC76: Yes | DD76: No | DE76: No | DF76: Pneumonia | DH76: Diarrhea | DJ76: Malaria | DL76: Yes | DN76: On-site (< 3 km) | DO76: Government | DQ76: No | DR76: Yes | DS76: < 1km | DT76: Unknown | DU76: Onsite | DV76: None | DX76: 0 | DY76: No | EA76: No | EB76: No | EC76: No | EE76: Yes | EF76: No | EG76: Local authorities | EI76: None | EJ76: No | EK76: None | EL76: No | EM76: None | EN76: No | EO76: 0 | EP76: 0 | EQ76: Unknown | ES76: No | EU76: No | EV76: No lighting | EW76: Mobile Phone | EY76: distribution shelter safety and security relief assistance situation in origin | EZ76: No | FA76: None | FB76: Yes | FC76: Emergency shelter kits | FD76: Kitchen sets | FE76: Bedding sets | FF76: Yes | FG76: Conflict | FH76: In 2018 | FI76: 0 | FJ76: 0 | FK76: 0 | FL76: Yes | FM76: Onsite | FN76: < 1km
A77: OR813 | B77: Alo Taka | C77: 13 | D77: 2018-09-26 | E77: Mizan Zerihun | F77: Female | G77: Oromia | H77: Borena | I77: Guchi | J77: Alo Taka | K77: 3.688814308 | L77: 39.00138079 | M77: Yes | P77: Spontaneous camp/site | R77: 2017-09-09 | S77: Unknown | T77: Yes | U77: Public/Government | X77: No | AC77: Yes | AD77: Government | AF77: Drmo | AG77: Ali Hassan | AH77: 0916382064 | AI77: No | AJ77: Yes | AK77: Yes | AL77: Yes | AM77: Yes | AN77: Yes | AO77: Yes | AP77: Yes | AQ77: Oromia | AR77: Borena | AS77: Guchi | AT77: Karsa yaha | AU77: Oromia | AV77: Borena | AW77: Moyale | AX77: Lagsure | AY77: 1058 | AZ77: 979 | BA77: 1137 | BB77: 846 | BC77: 1084 | BD77: 476 | BE77: 4522 | BF77: 1111 | BG77: 1349 | BH77: 846 | BI77: 1428 | BJ77: 476 | BK77: 5210 | BL77: 9732 | BM77: 0 | BN77: 50 | BO77: 150 | BP77: 12 | BQ77: 5 | BR77: 0 | BS77: 0 | BT77: 80 | BU77: 0 | BV77: 5 | BW77: 42987 | BX77: 42988 | BZ77: No | CA77: house damaged destroyed lack of security safety no livelihood | CB77: None | CC77: < 25% | CD77: None | CE77: None | CF77: None | CG77: Off-site (> 20 minutes) | CH77: Surface water sources (ponds/canals/river/lake/birkat) | CL77: > 15 liters | CM77: Suspended solids | CO77: No toilets | CQ77: No | CT77: No | CU77: Burning | CW77: Yes | CY77: Yes, Offsite | CZ77: No | DA77: Food Assistance | DC77: No | DD77: No | DE77: No | DF77: Diarrhea | DH77: Malaria | DJ77: Pneumonia | DL77: No | DR77: Yes | DS77: 3-5km | DT77: None | DU77: Onsite | DV77: Pastoralism | DX77: 0 | DY77: No | DZ77: Last month | EA77: Yes | EB77: No | EC77: No | EE77: Yes | EF77: No | EG77: None | EI77: None | EJ77: No | EK77: None | EL77: No | EM77: None | EN77: No | EO77: 0 | EP77: 0 | EQ77: Yes | ES77: Yes | EU77: Yes | EV77: No lighting | EW77: Local Leader | EY77: access to services distribution shelter relief assistance situation in origin | EZ77: No | FA77: < 25% | FB77: Yes | FC77: Emergency shelter kits | FD77: Bedding sets | FE77: Kitchen sets | FF77: Yes | FG77: Conflict | FH77: During 2017 | FI77: 0 | FJ77: 0 | FK77: 0 | FL77: No
A78: SO305 | B78: Alobirti | C78: 14 | D78: 2018-11-08 | E78: Abdi Adan | F78: Male | G78: Somali | H78: Dawa | I78: Mubarak | J78: Malka Wila | K78: 4.404244965 | L78: 40.25672483 | M78: Yes | P78: Host community/families | R78: 2014-07-22 | S78: Unknown | T78: Yes | U78: Public/Government | X78: Yes | Y78: 1 | Z78: Yes | AA78: Enow Hassan | AB78: No | AC78: Yes | AD78: Government | AF78: Local government administration | AG78: Enow Hassan | AH78: No | AI78: No | AJ78: Yes | AK78: Yes | AL78: Yes | AM78: Yes | AN78: Yes | AO78: Yes | AP78: Yes | AQ78: Somali | AR78: Dawa | AS78: Mubarak | AT78: Malka Mari | AY78: 650 | AZ78: 325 | BA78: 358 | BB78: 325 | BC78: 520 | BD78: 325 | BE78: 1853 | BF78: 520 | BG78: 618 | BH78: 390 | BI78: 650 | BJ78: 325 | BK78: 2503 | BL78: 4356 | BM78: 10 | BN78: 32 | BO78: 42 | BP78: 5 | BQ78: 8 | BR78: 0 | BS78: 3 | BT78: 15 | BU78: 5 | BV78: 8 | BW78: 41842 | BZ78: No | CA78: Lack of safety/security | CB78: None | CC78: 51-75 % | CD78: None | CE78: None | CF78: None | CG78: On-site (< 20 minutes) | CH78: None | CL78: < 5 liters | CM78: Odor/smell | CO78: No toilets | CQ78: No | CT78: No | CU78: No waste disposal system | CW78: No | CY78: No | CZ78: No | DA78: Host Community Donation | DC78: Yes | DD78: No | DE78: No | DF78: Diarrhea | DH78: Malaria | DJ78: Pneumonia | DL78: Yes | DN78: On-site (< 3 km) | DO78: Government | DQ78: Yes | DR78: Yes | DS78: < 1km | DT78: 25-50 % | DU78: Onsite | DV78: Collecting firewood | DX78: 0 | DY78: No | EA78: No | EB78: No | EC78: No | EE78: Yes | EF78: Yes | EG78: Local authorities | EI78: None | EJ78: No | EK78: Forced marriage | EL78: No | EM78: Sexual violence | EN78: No | EO78: 0 | EP78: 0 | EQ78: Yes | ES78: Yes | EU78: Yes | EV78: No lighting | EW78: Other | EX78: From travelers | EY78: access to services distribution shelter how to get information relief assistance | EZ78: No | FA78: None | FB78: Yes | FC78: Kitchen sets | FD78: Bedding sets | FE78: Hygiene kits | FF78: Yes | FG78: Conflict | FH78: Before 2017 | FI78: 0 | FJ78: 0 | FK78: 0 | FL78: Yes | FM78: Onsite | FN78: < 1km
A79: TG218 | B79: Ambeset Fkada | C79: 14 | D79: 2018-11-10 | E79: Gebrehiwot Berhe | F79: Male | G79: Tigray | H79: Eastern | I79: Gulomekeda | J79: Ambeset Fkada | K79: 14.39053077 | L79: 39.40191445 | M79: Yes | P79: Host community/families | R79: 2018-09-25 | S79: Unknown | T79: Yes | U79: Public/Government | X79: No | AC79: Yes | AD79: Government | AF79: Kebelle Administration | AG79: Gebrekidan Dori | AH79: 09429553 | AI79: Yes | AJ79: Yes | AK79: Yes | AL79: Yes | AM79: Yes | AN79: Yes | AO79: Yes | AP79: Yes | AQ79: Oromia | AR79: East Wellega | AS79: Gida Ayana | AT79: Different kebelle | AU79: Amhara | AV79: Central Gonder | AW79: Gonder Zuria | AX79: Different kebelle | AY79: 68 | AZ79: 7 | BA79: 8 | BB79: 2 | BC79: 60 | BD79: 1 | BE79: 78 | BF79: 9 | BG79: 5 | BH79: 3 | BI79: 27 | BJ79: 0 | BK79: 44 | BL79: 122 | BM79: 0 | BN79: 3 | BO79: 5 | BP79: 0 | BQ79: 2 | BR79: 0 | BS79: 1 | BT79: 6 | BU79: 0 | BV79: 17 | BW79: 43368 | BX79: 43405 | BZ79: No | CA79: accessibility lack of food house damaged destroyed lack of security safety no livelihood basic infrastructures damage | CB79: None | CC79: None | CD79: None | CE79: 51-75 % | CF79: None | CG79: On-site (> 20 minutes) | CH79: Surface water sources (ponds/canals/river/lake/birkat) | CL79: < 5 liters | CM79: Suspended solids | CO79: No toilets | CQ79: No | CT79: No | CU79: No waste disposal system | CW79: Yes | CY79: Yes, Offsite | CZ79: No | DA79: Other | DB79: Daily labor | DC79: Yes | DD79: No | DE79: No | DF79: UTI | DH79: Diarrhea | DJ79: Scabies | DL79: Yes | DN79: On-site (< 3 km) | DO79: Government | DQ79: No | DR79: No | DV79: Daily Laborer | DX79: 0 | DY79: No | DZ79: Irregular | EA79: No | EB79: No | EC79: Yes | ED79: Both | EE79: Yes | EF79: Yes | EG79: Police/Militia | EI79: Friction with host community | EJ79: No | EK79: Psychological/Emotional abuse | EL79: No | EM79: child physical abuse child psycho distress child labor children separated | EN79: No | EO79: 0 | EP79: 0 | EQ79: Yes | ES79: Yes | EU79: Yes | EV79: No lighting | EW79: Local Leader | EY79: access to services distribution registration shelter safety and security how to get information relief assistance other | EZ79: Yes | FA79: None | FB79: Yes | FC79: Emergency shelter kits | FD79: Kitchen sets | FE79: Bedding sets | FF79: Yes | FG79: Conflict | FH79: In 2018 | FI79: 0 | FJ79: 1 | FK79: 0 | FL79: Yes | FM79: Onsite | FN79: 3-5km
A80: TG168 | B80: Amdi Weyane | C80: 14 | D80: 2018-11-20 | E80: Teklu Kidanu | F80: Male | G80: Tigray | H80: South East | I80: Saharti Samre | J80: Amdi Weyane Debre Hayla | K80: 13.27773147 | L80: 39.29295766 | M80: Yes | P80: Host community/families | R80: 2017-10-28 | S80: Unknown | T80: Yes | U80: Public/Government | X80: No | AC80: Yes | AD80: Government | AF80: Office of Kebelle Administration | AG80: Gebrehaweria Mesfin | AH80: 0962293536 | AI80: Yes | AJ80: Yes | AK80: Yes | AL80: Yes | AM80: Yes | AN80: Yes | AO80: Yes | AP80: Yes | AQ80: Oromia | AR80: East Shewa | AS80: Ada'a | AT80: Different Kebelles | AU80: Amhara | AV80: Central Gonder | AW80: Gonder Zuria | AX80: Different Kebelles | AY80: 23 | AZ80: 1 | BA80: 3 | BB80: 3 | BC80: 13 | BD80: 0 | BE80: 20 | BF80: 2 | BG80: 1 | BH80: 2 | BI80: 10 | BJ80: 0 | BK80: 15 | BL80: 35 | BM80: 0 | BN80: 0 | BO80: 2 | BP80: 0 | BQ80: 1 | BR80: 0 | BS80: 1 | BT80: 1 | BU80: 0 | BV80: 14 | BW80: 43036 | BX80: 43406 | BZ80: No | CA80: house damaged destroyed lack of security safety no livelihood | CB80: None | CC80: None | CD80: None | CE80: > 75% | CF80: < 25% | CG80: On-site (< 20 minutes) | CH80: Protected wells (hand pumps/motorized boreholes) | CL80: < 5 liters | CM80: Suspended solids | CO80: No toilets | CQ80: No | CT80: No | CU80: No waste disposal system | CW80: Yes | CY80: Yes, Offsite | CZ80: Yes | DA80: Other | DB80: Daily Labor | DC80: Yes | DD80: No | DE80: No | DF80: Pneumonia | DH80: Other | DI80: Eye infection | DJ80: Measles | DL80: Yes | DN80: Off-site (> 3 km) | DO80: Government | DQ80: No | DR80: No | DV80: Daily Laborer | DX80: 1 | DY80: No | DZ80: Irregular | EA80: No | EB80: No | EC80: Yes | ED80: Abroad | EE80: Yes | EF80: No | EG80: Police/Militia | EI80: None | EJ80: No | EK80: denial of resources psycho emotional abuse | EL80: No | EM80: child psycho distress children separated | EN80: No | EO80: 0 | EP80: 0 | EQ80: Yes | ES80: Yes | EU80: Yes | EV80: Yes, there is lighting but it is NOT adequate | EW80: Authorities | EY80: access to services distribution shelter relief assistance situation in origin | EZ80: No | FA80: None | FB80: Yes | FC80: Bedding sets | FD80: Kitchen sets | FE80: Emergency shelter kits | FF80: Yes | FG80: Conflict | FH80: During 2017 | FI80: 1 | FJ80: 0 | FK80: 0 | FL80: Yes | FM80: Onsite | FN80: < 1km
A81: HA109 | B81: Amir Nur | C81: 14 | D81: 2018-11-20 | E81: Dagnu Solomon | F81: Male | G81: Hareri | H81: Hareri | I81: Amir Nur | J81: Amir Nur | K81: 9.31113636 | L81: 42.13903179 | M81: Yes | P81: Host community/families | R81: 2017-09-12 | S81: Unknown | T81: Yes | U81: Public/Government | X81: Yes | Y81: 3 | Z81: Yes | AA81: Fatuma Abrahim | AB81: 0943900076 | AC81: Yes | AD81: Government | AF81: Hareri region DRM Office | AG81: Adil Abdulkadir | AH81: 0915745529 | AI81: No | AJ81: Yes | AK81: Yes | AL81: Yes | AM81: Yes | AN81: No | AO81: Yes | AP81: Yes | AQ81: Somali | AR81: Fafan | AS81: Jijiga | AT81: 11 | AU81: Somali | AV81: Fafan | AW81: Tog-Wajale | AX81: 2 | AY81: 20 | AZ81: 6 | BA81: 13 | BB81: 4 | BC81: 18 | BD81: 0 | BE81: 41 | BF81: 5 | BG81: 11 | BH81: 3 | BI81: 20 | BJ81: 0 | BK81: 39 | BL81: 80 | BM81: 0 | BN81: 0 | BO81: 3 | BP81: 0 | BQ81: 0 | BR81: 0 | BS81: 0 | BT81: 0 | BU81: 0 | BV81: 0 | BW81: 42990 | BZ81: No | CA81: lack of food house damaged destroyed lack of security safety no livelihood | CB81: None | CC81: None | CD81: None | CE81: 25-50 % | CF81: > 75% | CG81: On-site (< 20 minutes) | CH81: Water taps from piped network | CL81: < 5 liters | CO81: Not so good (not hygienic) | CP81: 10 | CQ81: No | CS81: No | CT81: No | CU81: No waste disposal system | CW81: No | CY81: Yes, Offsite | CZ81: Yes | DA81: Food Assistance | DC81: No | DD81: No | DE81: No | DF81: Other | DG81: Coughing | DH81: Other | DI81: Commen cold | DJ81: None | DL81: Yes | DN81: On-site (< 3 km) | DO81: Government | DQ81: Yes | DR81: No | DV81: None | DX81: 0 | DY81: No | DZ81: Irregular | EA81: No | EB81: No | EC81: No | EE81: No | EF81: No | EI81: None | EJ81: No | EK81: None | EL81: No | EM81: None | EN81: No | EO81: 0 | EP81: 0 | EQ81: No | ES81: Yes | EU81: Yes | EV81: Yes, there is lighting but it is NOT adequate | EW81: Site Management | EY81: distribution registration shelter situation in origin | EZ81: No | FA81: None | FB81: Yes | FC81: Emergency shelter kits | FD81: Bedding sets | FE81: Kitchen sets | FF81: No | FG81: Conflict | FH81: During 2017 | FI81: 0 | FJ81: 0 | FK81: 0 | FL81: Yes | FM81: Onsite | FN81: < 1km
A82: TG163 | B82: Amogedel | C82: 14 | D82: 2018-11-15 | E82: Asmelash Gebrehiwet | F82: Male | G82: Tigray | H82: Southern | I82: Raya Alamata | J82: Selen Wuha | K82: 12.33458834 | L82: 39.65438085 | M82: Yes | P82: Host community/families | R82: 2017-08-15 | S82: Unknown | T82: Yes | U82: Public/Government | X82: Yes | Y82: 3 | Z82: Yes | AA82: Dawd Seyid | AB82: 0924290885 | AC82: Yes | AD82: Government | AF82: Office of Agriculture and rural development | AG82: Desaley Meresa | AH82: 0920870380 | AI82: Yes | AJ82: Yes | AK82: Yes | AL82: Yes | AM82: Yes | AN82: Yes | AO82: Yes | AP82: Yes | AQ82: Tigray | AR82: Southern | AS82: Raya Alamata | AT82: Selen Wuha | AY82: 46 | AZ82: 10 | BA82: 13 | BB82: 15 | BC82: 37 | BD82: 15 | BE82: 90 | BF82: 4 | BG82: 5 | BH82: 9 | BI82: 23 | BJ82: 7 | BK82: 48 | BL82: 138 | BM82: 0 | BN82: 6 | BO82: 10 | BP82: 0 | BQ82: 3 | BR82: 0 | BS82: 4 | BT82: 10 | BU82: 0 | BV82: 3 | BW82: 42962 | BX82: 43401 | BZ82: Yes | CA82: lack of security safety no livelihood | CB82: None | CC82: None | CD82: None | CE82: > 75% | CF82: < 25% | CG82: Off-site (> 20 minutes) | CH82: Protected wells (hand pumps/motorized boreholes) | CL82: < 5 liters | CM82: Suspended solids | CO82: No toilets | CQ82: No | CT82: No | CU82: No waste disposal system | CW82: Yes | CY82: Yes, Offsite | CZ82: Yes | DA82: Cultivated/Sale of Livestock | DC82: Yes | DD82: Yes | DE82: Yes | DF82: Malaria | DH82: Pneumonia | DJ82: Scabies | DL82: Yes | DN82: On-site (< 3 km) | DO82: Government | DQ82: No | DR82: No | DV82: Farming | DX82: 40 | DY82: Yes | DZ82: Irregular | EA82: Yes | EB82: Yes 25-50% | EC82: Yes | ED82: Abroad | EE82: Yes | EF82: Yes | EG82: Police/Militia | EI82: alcohol drug theft robbery | EJ82: No | EK82: denial of resources psycho emotional abuse | EL82: No | EM82: child psycho distress child labor | EN82: No | EO82: 0 | EP82: 0 | EQ82: Yes | ES82: No | EU82: No | EV82: Yes, there is lighting but it is NOT adequate | EW82: Authorities | EY82: access to services distribution situation in origin | EZ82: No | FA82: None | FB82: Yes | FC82: Bedding sets | FD82: Kitchen sets | FE82: Emergency shelter kits | FF82: Yes | FG82: Seasonal Flood | FH82: During 2017 | FI82: 2 | FJ82: 0 | FK82: 0 | FL82: Yes | FM82: Onsite | FN82: < 1km
A83: OR649 | B83: Amola | C83: 14 | D83: 2018-11-15 | E83: Gelana Fekadu | F83: Male | G83: Oromia | H83: East Harerge | I83: Chinaksen | J83: Amola | K83: 9.56962494 | L83: 42.48668376 | M83: Yes | P83: Host community/families | R83: 2017-09-12 | S83: Unknown | T83: Yes | U83: Public/Government | X83: Yes | Y83: 0 | Z83: Yes | AA83: Adem Ahmed Iberahim | AB83: 0941104883 | AC83: Yes | AD83: Government | AF83: Chinaksen woreda Drm office | AG83: Hamdi Mohammed | AH83: 0915214107 | AI83: Yes | AJ83: Yes | AK83: Yes | AL83: Yes | AM83: Yes | AN83: Yes | AO83: Yes | AP83: Yes | AQ83: Somali | AR83: Fafan | AS83: Jijiga | AT83: 11 | AY83: 266 | AZ83: 120 | BA83: 120 | BB83: 93 | BC83: 239 | BD83: 40 | BE83: 612 | BF83: 146 | BG83: 146 | BH83: 67 | BI83: 266 | BJ83: 27 | BK83: 652 | BL83: 1264 | BM83: 0 | BN83: 3 | BO83: 1 | BP83: 0 | BQ83: 0 | BR83: 0 | BS83: 0 | BT83: 2 | BU83: 0 | BV83: 3 | BW83: 42990 | BZ83: No | CA83: lack of food house damaged destroyed lack of security safety no livelihood | CB83: None | CC83: None | CD83: None | CE83: > 75% | CF83: None | CG83: On-site (< 20 minutes) | CH83: Surface water sources (ponds/canals/river/lake/birkat) | CL83: < 5 liters | CM83: Suspended solids | CO83: Not so good (not hygienic) | CP83: 3 | CQ83: No | CS83: No | CT83: No | CU83: No waste disposal system | CW83: No | CY83: Yes, Offsite | CZ83: Yes | DA83: Food Assistance | DC83: Yes | DD83: No | DE83: No | DF83: Scabies | DH83: Other | DI83: Common cold | DJ83: Injury | DL83: Yes | DN83: Off-site (> 3 km) | DO83: Government | DQ83: Yes | DR83: No | DV83: None | DX83: 0 | DY83: No | DZ83: Last month | EA83: No | EB83: No | EC83: No | EE83: Yes | EF83: No | EG83: Self organized | EI83: None | EJ83: No | EK83: None | EL83: No | EM83: None | EN83: No | EO83: 0 | EP83: 0 | EQ83: Yes | ES83: Yes | EU83: Yes | EV83: No lighting | EW83: Local Leader | EY83: access to services distribution registration shelter safety and security | EZ83: No | FA83: None | FB83: Yes | FC83: Emergency shelter kits | FD83: Bedding sets | FE83: Kitchen sets | FF83: No | FG83: Conflict | FH83: During 2017 | FI83: 1 | FJ83: 0 | FK83: 0 | FL83: Yes | FM83: Offsite | FN83: 3-5km
A84: AM179 | B84: Amora Bet | C84: 14 | D84: 2018-11-23 | E84: Delseber Zerihun | F84: Male | G84: Amhara | H84: North Shewa (R3) | I84: Minjar Shenkora | J84: Amora Bet | K84: 8.89296522 | L84: 39.62189515 | M84: Yes | P84: Host community/families | R84: 2018-07-23 | S84: Unknown | T84: No, no vehicular access | U84: Public/Government | X84: No | AC84: Yes | AD84: Government | AF84: Kebele Administration | AG84: Million Derbe | AH84: 0910895836 | AI84: Yes | AJ84: No | AK84: No | AL84: Yes | AM84: No | AN84: No | AO84: No | AP84: Yes | AQ84: Oromia | AR84: Guji | AS84: Negele City Administration | AT84: Abadir | AU84: Oromia | AV84: Guji | AW84: Negele City Administration | AX84: Bole | AY84: 40 | AZ84: 8 | BA84: 14 | BB84: 8 | BC84: 30 | BD84: 0 | BE84: 60 | BF84: 8 | BG84: 20 | BH84: 0 | BI84: 40 | BJ84: 0 | BK84: 68 | BL84: 128 | BM84: 0 | BN84: 2 | BO84: 6 | BP84: 0 | BQ84: 0 | BR84: 0 | BS84: 0 | BT84: 8 | BU84: 0 | BV84: 4 | BW84: 43304 | BY84: Place of origin | BZ84: No | CB84: None | CC84: None | CD84: None | CE84: 51-75 % | CF84: None | CG84: On-site (< 20 minutes) | CH84: Unprotected springs | CL84: 5-10 liters | CO84: No toilets | CQ84: No | CT84: No | CU84: No waste disposal system | CW84: Yes | CY84: Yes, On Site | CZ84: Yes | DA84: Food Assistance | DC84: No | DD84: No | DE84: No | DF84: None | DH84: None | DJ84: None | DL84: Yes | DN84: On-site (< 3 km) | DO84: Government | DQ84: Yes | DR84: No | DV84: Other | DW84: Businessmen and daily labourers, few farmers | DX84: 25 | DY84: No | DZ84: Irregular | EA84: No | EB84: Yes 25-50% | EC84: No | EE84: Yes | EF84: No | EG84: Police/Militia | EI84: None | EJ84: No | EK84: None | EL84: No | EM84: None | EN84: No | EO84: 0 | EP84: 0 | EQ84: No | ES84: Yes | EU84: Yes | EV84: No lighting | EW84: Local Leader | EY84: access to services distribution shelter relief assistance situation in origin | EZ84: No | FA84: None | FB84: Yes | FC84: Kitchen sets | FD84: Hygiene kits | FE84: Bedding sets | FF84: No | FG84: Conflict | FH84: In 2018 | FI84: 0 | FJ84: 0 | FK84: 0 | FL84: Yes | FM84: Onsite | FN84: 1-2km
A85: AM143 | B85: Anda Bet | C85: 14 | D85: 2018-11-14 | E85: Hiwot Chekole | F85: Female | G85: Amhara | H85: South Gonder | I85: Anda Bet | J85: Kebele 01 | K85: 11.40980756 | L85: 37.95400178 | M85: Yes | P85: Host community/families | R85: 2017-12-18 | S85: Unknown | T85: Yes | U85: Public/Government | X85: No | AC85: Yes | AD85: Government | AF85: Anda Bet Woreda Adminstration office | AG85: Habtam Ejigu | AH85: 918309818 | AI85: Yes | AJ85: Yes | AK85: Yes | AL85: Yes | AM85: Yes | AN85: No | AO85: Yes | AP85: Yes | AQ85: Oromia | AR85: Bunno Bedele | AS85: Gechi | AT85: Gechi 01 | AU85: Oromia | AV85: Bunno Bedele | AW85: Dedesa | AX85: Chelo | AY85: 75 | AZ85: 4 | BA85: 19 | BB85: 9 | BC85: 76 | BD85: 0 | BE85: 108 | BF85: 11 | BG85: 17 | BH85: 7 | BI85: 66 | BJ85: 0 | BK85: 101 | BL85: 209 | BM85: 0 | BN85: 0 | BO85: 3 | BP85: 0 | BQ85: 0 | BR85: 0 | BS85: 0 | BT85: 3 | BU85: 0 | BV85: 13 | BW85: 43087 | BX85: 43387 | BZ85: No | CA85: Lack of safety/security | CB85: None | CC85: None | CD85: None | CE85: < 25% | CF85: 51-75 % | CG85: On-site (> 20 minutes) | CH85: Water taps from piped network | CL85: 5-10 liters | CO85: Not so good (not hygienic) | CP85: 0 | CQ85: No | CS85: No | CT85: No | CU85: Burning | CW85: No | CY85: No | CZ85: Yes | DA85: Other | DB85: Working daily lobour | DC85: No | DD85: No | DE85: No | DF85: Scabies | DH85: None | DJ85: None | DL85: Yes | DN85: On-site (< 3 km) | DO85: Government | DQ85: Yes | DR85: No | DV85: Daily Laborer | DX85: 75 | DY85: No | EA85: No | EB85: No | EC85: No | EE85: Yes | EF85: No | EG85: Police/Militia | EI85: None | EJ85: No | EK85: None | EL85: No | EM85: None | EN85: No | EO85: 0 | EP85: 0 | EQ85: No | ES85: Yes | EU85: Yes | EV85: No lighting | EW85: Families/Friends | EY85: distribution relief assistance | EZ85: No | FA85: None | FB85: None | FC85: Bedding sets | FD85: Kitchen sets | FE85: Hygiene kits | FF85: No | FG85: Conflict | FH85: During 2017 | FI85: 0 | FJ85: 0 | FK85: 0 | FL85: Yes | FM85: Onsite | FN85: < 1km
A86: AF177 | B86: Andada | C86: 14 | D86: 2018-11-26 | E86: Mestewat Tesfaye | F86: Female | G86: Afar | H86: Gabi (Zone 3) | I86: Amibara | J86: Angelile | K86: 9.483305937 | L86: 40.38096337 | M86: Yes | P86: Spontaneous camp/site | R86: 2015-10-10 | S86: Unknown | T86: Yes | U86: Public/Government | X86: Yes | Y86: 0 | Z86: Yes | AA86: Seid Abdo | AB86: 0910312730 | AC86: Yes | AD86: Government | AF86: Angelile kebele administration | AG86: Mohammed Humed | AH86: XXXX | AI86: Yes | AJ86: Yes | AK86: No | AL86: Yes | AM86: Yes | AN86: No | AO86: No | AP86: Yes | AQ86: Afar | AR86: Gabi (Zone 3) | AS86: Amibara | AT86: Angelile | AY86: 160 | AZ86: 72 | BA86: 88 | BB86: 64 | BC86: 112 | BD86: 24 | BE86: 360 | BF86: 72 | BG86: 128 | BH86: 32 | BI86: 128 | BJ86: 48 | BK86: 408 | BL86: 768 | BM86: 0 | BN86: 0 | BO86: 0 | BP86: 0 | BQ86: 0 | BR86: 0 | BS86: 0 | BT86: 0 | BU86: 0 | BV86: 0 | BW86: 42287 | BX86: 42524 | BZ86: No | CA86: accessibility lack of food no livelihood | CB86: None | CC86: > 75% | CD86: None | CE86: None | CF86: None | CG86: On-site (< 20 minutes) | CH86: Water taps from piped network | CL86: 5-10 liters | CO86: Not so good (not hygienic) | CP86: 3 | CQ86: No | CS86: No | CT86: No | CU86: Burning | CW86: No | CY86: Yes, On Site | CZ86: Yes | DA86: Food Assistance | DC86: Yes | DD86: Yes | DE86: Yes | DF86: Diarrhea | DH86: Malaria | DJ86: Pneumonia | DL86: Yes | DN86: On-site (< 3 km) | DO86: Government | DQ86: Yes | DR86: No | DV86: Pastoralism | DX86: 0 | DY86: No | DZ86: Last month | EA86: Yes | EB86: No | EC86: No | EE86: Yes | EF86: No | EG86: Police/Militia | EI86: None | EJ86: No | EK86: None | EL86: No | EM86: None | EN86: No | EO86: 0 | EP86: 0 | EQ86: Yes | ES86: Yes | EU86: Yes | EV86: No lighting | EW86: Site Management | EY86: access to services relief assistance | EZ86: No | FA86: > 75% | FB86: Yes | FC86: Emergency shelter kits | FD86: Kitchen sets | FE86: Bedding sets | FF86: Yes | FG86: Flash Flood | FH86: Before 2017 | FI86: 0 | FJ86: 0 | FK86: 0 | FL86: Yes | FM86: Onsite | FN86: < 1km
A87: OR344 | B87: Andereka | C87: 14 | D87: 2018-11-16 | E87: Alemayehu Dessu | F87: Male | G87: Oromia | H87: Guji | I87: Liben | J87: Miesa | K87: 5.235983771 | L87: 39.82178879 | M87: Yes | P87: Spontaneous camp/site | R87: 2017-09-15 | S87: Unknown | T87: Yes | U87: Public/Government | X87: Yes | Y87: 3 | Z87: Yes | AA87: Ibro Ali | AB87: 0925741495 | AC87: Yes | AD87: Government | AF87: DRM office | AG87: Mulualem Woreda | AH87: 0913370028 | AI87: No | AJ87: Yes | AK87: Yes | AL87: Yes | AM87: Yes | AN87: Yes | AO87: Yes | AP87: Yes | AQ87: Oromia | AR87: Guji | AS87: Liben | AT87: Miesa | AU87: Oromia | AV87: Guji | AW87: Liben | AX87: Wayame Ushe | AY87: 350 | AZ87: 263 | BA87: 438 | BB87: 123 | BC87: 280 | BD87: 35 | BE87: 1139 | BF87: 298 | BG87: 438 | BH87: 140 | BI87: 385 | BJ87: 18 | BK87: 1279 | BL87: 2418 | BM87: 0 | BN87: 80 | BO87: 140 | BP87: 2 | BQ87: 2 | BR87: 0 | BS87: 0 | BT87: 30 | BU87: 0 | BV87: 2 | BW87: 42993 | BZ87: No | CA87: lack of food house damaged destroyed lack of security safety no livelihood | CB87: None | CC87: None | CD87: None | CE87: < 25% | CF87: None | CG87: Off-site (> 20 minutes) | CH87: Surface water sources (ponds/canals/river/lake/birkat) | CL87: < 5 liters | CM87: Suspended solids | CO87: No toilets | CQ87: No | CT87: No | CU87: No waste disposal system | CW87: Yes | CY87: Yes, On Site | CZ87: No | DA87: Food Assistance | DC87: No | DD87: No | DE87: Yes | DF87: Pneumonia | DH87: Diarrhea | DJ87: Malaria | DL87: No | DR87: No | DV87: None | DX87: 10 | DY87: Yes | DZ87: Last month | EA87: Yes | EB87: No | EC87: No | EE87: Yes | EF87: No | EG87: Police/Militia | EI87: None | EJ87: No | EK87: None | EL87: No | EM87: None | EN87: No | EO87: 0 | EP87: 0 | EQ87: Yes | ES87: No | EU87: No | EV87: No lighting | EW87: Site Management | EY87: distribution registration shelter how to get information relief assistance | EZ87: No | FA87: None | FB87: Yes | FC87: Emergency shelter kits | FD87: Bedding sets | FE87: Kitchen sets | FF87: Yes | FG87: Conflict | FH87: During 2017 | FI87: 0 | FJ87: 0 | FK87: 0 | FL87: Yes | FM87: Offsite | FN87: < 1km
A88: AF118 | B88: Andido | C88: 14 | D88: 2018-11-27 | E88: Mestewat Tesfaye | F88: Female | G88: Afar | H88: Gabi (Zone 3) | I88: Amibara | J88: Andido | K88: 9.400695808 | L88: 40.32478092 | M88: Yes | P88: Host community/families | R88: 2015-09-30 | S88: Unknown | T88: Yes | U88: Public/Government | X88: Yes | Y88: 3 | Z88: Yes | AA88: Myrem Abdela | AB88: XXXX | AC88: Yes | AD88: Government | AF88: Andido kebele administration | AG88: Ali Edole | AH88: XXXX | AI88: Yes | AJ88: No | AK88: No | AL88: Yes | AM88: Yes | AN88: No | AO88: Yes | AP88: Yes | AQ88: Afar | AR88: Gabi (Zone 3) | AS88: Amibara | AT88: Hassoba | AY88: 172 | AZ88: 69 | BA88: 146 | BB88: 43 | BC88: 138 | BD88: 17 | BE88: 413 | BF88: 103 | BG88: 138 | BH88: 52 | BI88: 155 | BJ88: 34 | BK88: 482 | BL88: 895 | BM88: 0 | BN88: 0 | BO88: 0 | BP88: 0 | BQ88: 0 | BR88: 0 | BS88: 0 | BT88: 0 | BU88: 0 | BV88: 0 | BW88: 42277 | BX88: 42941 | BZ88: No | CA88: accessibility lack of food house damaged destroyed no livelihood | CB88: None | CC88: > 75% | CD88: None | CE88: None | CF88: None | CG88: On-site (< 20 minutes) | CH88: Water taps from piped network | CL88: 5-10 liters | CO88: Good (Hygienic) | CP88: 5 | CQ88: No | CS88: No | CT88: No | CU88: Burning | CW88: No | CY88: Yes, On Site | CZ88: Yes | DA88: Food Assistance | DC88: Yes | DD88: Yes | DE88: Yes | DF88: Malaria | DH88: Diarrhea | DJ88: Pneumonia | DL88: Yes | DN88: On-site (< 3 km) | DO88: Government | DQ88: Yes | DR88: No | DV88: Pastoralism | DX88: 0 | DY88: No | DZ88: Last month | EA88: Yes | EB88: No | EC88: No | EE88: Yes | EF88: No | EG88: Police/Militia | EI88: None | EJ88: No | EK88: None | EL88: No | EM88: None | EN88: No | EO88: 0 | EP88: 0 | EQ88: Yes | ES88: Yes | EU88: Yes | EV88: No lighting | EW88: Site Management | EY88: access to services how to get information relief assistance | EZ88: No | FA88: > 75% | FB88: Yes | FC88: Emergency shelter kits | FD88: Bedding sets | FE88: Kitchen sets | FF88: Yes | FG88: Flash Flood | FH88: Before 2017 | FI88: 0 | FJ88: 0 | FK88: 0 | FL88: Yes | FM88: Onsite | FN88: < 1km
A89: SO265 | B89: Ando Ubayd | C89: 14 | D89: 2018-11-18 | E89: Abdulkadir Mohamed | F89: Male | G89: Somali | H89: Siti | I89: Hadgalo | J89: Ando Ubayd | K89: 10.11205922 | L89: 42.21423515 | M89: Yes | P89: Spontaneous camp/site | R89: 2015-03-10 | S89: Unknown | T89: Yes | U89: Public/Government | X89: Yes | Y89: 2 | Z89: Yes | AA89: Andale Hufane Aynan | AB89: XXXX | AC89: Yes | AD89: Government | AF89: Ando-ubayd | AG89: Adosh Darar Abadid | AH89: 09858890248 | AI89: Yes | AJ89: Yes | AK89: Yes | AL89: Yes | AM89: Yes | AN89: Yes | AO89: Yes | AP89: Yes | AQ89: Somali | AR89: Siti | AS89: Hadgalo | AT89: Darif | AU89: Somali | AV89: Siti | AW89: Hadgalo | AX89: Adar | AY89: 235 | AZ89: 165 | BA89: 165 | BB89: 106 | BC89: 223 | BD89: 24 | BE89: 683 | BF89: 188 | BG89: 165 | BH89: 106 | BI89: 223 | BJ89: 47 | BK89: 729 | BL89: 1412 | BM89: 0 | BN89: 41 | BO89: 38 | BP89: 0 | BQ89: 0 | BR89: 0 | BS89: 0 | BT89: 25 | BU89: 0 | BV89: 3 | BW89: 42073 | BX89: 42370 | BZ89: No | CA89: accessibility lack of food house damaged destroyed lack of security safety no livelihood | CB89: None | CC89: 51-75 % | CD89: None | CE89: None | CF89: None | CG89: Off-site (< 20 minutes) | CH89: Surface water sources (ponds/canals/river/lake/birkat) | CL89: < 5 liters | CM89: Suspended solids | CO89: No toilets | CQ89: No | CT89: No | CU89: Burning | CW89: Yes | CY89: Yes, On Site | CZ89: No | DA89: Host Community Donation | DC89: Yes | DD89: No | DE89: No | DF89: Malaria | DH89: UTI | DJ89: Pneumonia | DL89: Yes | DN89: On-site (< 3 km) | DO89: Government | DQ89: Yes | DR89: No | DV89: Pastoralism | DX89: 0 | DY89: No | DZ89: Within the month | EA89: Yes | EB89: Yes 25-50% | EC89: No | EE89: Yes | EF89: No | EG89: Local authorities | EI89: None | EJ89: No | EK89: None | EL89: No | EM89: None | EN89: No | EO89: 0 | EP89: 0 | EQ89: No | ES89: Yes | EU89: Yes | EV89: No lighting | EW89: Site Management | EY89: access to services distribution registration shelter | EZ89: No | FA89: < 25% | FB89: Yes | FC89: Emergency shelter kits | FD89: Kitchen sets | FE89: Bedding sets | FF89: Yes | FG89: Drought | FH89: Before 2017 | FI89: 0 | FJ89: 0 | FK89: 0 | FL89: Yes | FM89: Onsite | FN89: < 1km
A90: AF220 | B90: Angalale | C90: 14 | D90: 2018-11-19 | E90: Endris Esmail | F90: Male | G90: Afar | H90: Fenti (Zone 4) | I90: Ewa | J90: Buti | K90: 11.83839152 | L90: 40.13390931 | M90: Yes | P90: Spontaneous camp/site | R90: 2017-01-04 | S90: Unknown | T90: Yes | U90: Public/Government | X90: Yes | Y90: 0 | Z90: Yes | AA90: Humed Ali | AB90: XXXX | AC90: Yes | AD90: Government | AF90: Kebele Administration | AG90: Humed Ali | AH90: XXXX | AI90: No | AJ90: Yes | AK90: Yes | AL90: Yes | AM90: Yes | AN90: No | AO90: No | AP90: Yes | AQ90: Afar | AR90: Fenti (Zone 4) | AS90: Ewa | AT90: Buti | AY90: 49 | AZ90: 17 | BA90: 12 | BB90: 10 | BC90: 44 | BD90: 12 | BE90: 95 | BF90: 20 | BG90: 20 | BH90: 10 | BI90: 44 | BJ90: 12 | BK90: 106 | BL90: 201 | BM90: 0 | BN90: 0 | BO90: 0 | BP90: 0 | BQ90: 0 | BR90: 0 | BS90: 0 | BT90: 0 | BU90: 0 | BV90: 0 | BW90: 42739 | BX90: 42930 | BZ90: No | CA90: accessibility lack of food no livelihood | CB90: None | CC90: > 75% | CD90: None | CE90: None | CF90: None | CG90: On-site (< 20 minutes) | CH90: Water taps from piped network | CL90: 5-10 liters | CO90: No toilets | CQ90: No | CT90: No | CU90: No waste disposal system | CW90: Yes | CY90: Yes, Offsite | CZ90: No | DA90: Food Assistance | DC90: Yes | DD90: Yes | DE90: Yes | DF90: Pneumonia | DH90: Diarrhea | DJ90: Malaria | DL90: Yes | DN90: On-site (< 3 km) | DO90: Government | DQ90: No | DR90: No | DV90: Pastoralism | DX90: 0 | DY90: No | DZ90: Within the month | EA90: Yes | EB90: No | EC90: No | EE90: Yes | EF90: No | EG90: Community leaders | EI90: None | EJ90: No | EK90: None | EL90: No | EM90: None | EN90: No | EO90: 0 | EP90: 0 | EQ90: Yes | ES90: Yes | EU90: Yes | EV90: No lighting | EW90: Families/Friends | EY90: access to services distribution registration shelter | EZ90: No | FA90: None | FB90: Yes | FC90: Kitchen sets | FD90: Emergency shelter kits | FE90: Hygiene kits | FF90: Yes | FG90: Other | FH90: During 2017 | FI90: 0 | FJ90: 0 | FK90: 0 | FL90: Yes | FM90: Onsite | FN90: < 1km
A91: OR1091 | B91: Anger Arategna | C91: 14 | D91: 2018-11-13 | E91: Girma Takele | F91: Male | G91: Oromia | H91: East Wellega | I91: Sasiga | J91: Horowata | K91: 9.358731102 | L91: 36.39592653 | M91: Yes | P91: Transit center/site | R91: 2018-09-25 | S91: Unknown | T91: Yes | U91: Public/Government | X91: Yes | Y91: 0 | Z91: Yes | AA91: Habtamu Melesa | AB91: 0938522415 | AC91: Yes | AD91: Government | AF91: Horowata Kebele Administration | AG91: Guluma Selbena | AH91: 0986528093 | AI91: Yes | AJ91: Yes | AK91: Yes | AL91: Yes | AM91: Yes | AN91: Yes | AO91: Yes | AP91: Yes | AQ91: Oromia | AR91: East Wellega | AS91: Sasiga | AT91: Horowata | AU91: Beneshangul Gumu | AV91: Kemashi | AW91: Bio Jiganifado | AX91: Anger shenkora | AY91: 1444 | AZ91: 939 | BA91: 1588 | BB91: 722 | BC91: 1661 | BD91: 144 | BE91: 5054 | BF91: 1227 | BG91: 1661 | BH91: 578 | BI91: 1588 | BJ91: 217 | BK91: 5271 | BL91: 10325 | BM91: 2 | BN91: 80 | BO91: 150 | BP91: 3 | BQ91: 5 | BR91: 0 | BS91: 0 | BT91: 179 | BU91: 0 | BV91: 50 | BW91: 43368 | BX91: 43416 | BZ91: Yes | CA91: accessibility lack of food house damaged destroyed lack of security safety no livelihood | CB91: < 25% | CC91: None | CD91: < 25% | CE91: < 25% | CF91: None | CG91: Off-site (> 20 minutes) | CH91: Surface water sources (ponds/canals/river/lake/birkat) | CL91: 10-15 liters | CM91: Odor/smell | CO91: No toilets | CQ91: No | CT91: No | CU91: Burning | CW91: Yes | CY91: Yes, On Site | CZ91: No | DA91: Host Community Donation | DC91: No | DD91: No | DE91: No | DF91: Malaria | DH91: Diarrhea | DJ91: Pneumonia | DL91: Yes | DN91: On-site (< 3 km) | DO91: Government | DQ91: No | DR91: No | DV91: None | DX91: 0 | DY91: No | DZ91: Last month | EA91: No | EB91: No | EC91: No | EE91: Yes | EF91: No | EG91: Police/Militia | EI91: None | EJ91: No | EK91: Psychological/Emotional abuse | EL91: No | EM91: None | EN91: No | EO91: 0 | EP91: 0 | EQ91: No | ES91: Yes | EU91: Yes | EV91: No lighting | EW91: Site Management | EY91: access to services distribution registration shelter safety and security how to get information relief assistance | EZ91: No | FA91: 25-50 % | FB91: Yes | FC91: Bedding sets | FD91: Emergency shelter kits | FE91: Kitchen sets | FF91: Yes | FG91: Conflict | FH91: In 2018 | FI91: 0 | FJ91: 0 | FK91: 0 | FL91: No
A92: OR1092 | B92: Anger Central | C92: 14 | D92: 2018-11-13 | E92: Abebe Nigus | F92: Male | G92: Oromia | H92: East Wellega | I92: Sasiga | J92: Oda gudina | K92: 9.320087422 | L92: 36.38198898 | M92: Yes | P92: Planned camp/site | R92: 2018-09-25 | S92: Unknown | T92: Yes | U92: Public/Government | X92: Yes | Y92: 0 | Z92: Yes | AA92: Ibro Ahmed | AB92: 0933447210 | AC92: Yes | AD92: Government | AF92: Oda gudina Kebele Administration | AG92: Badesa Umer | AH92: 0938475066 | AI92: Yes | AJ92: Yes | AK92: Yes | AL92: Yes | AM92: Yes | AN92: Yes | AO92: Yes | AP92: Yes | AQ92: Oromia | AR92: East Wellega | AS92: Sasiga | AT92: Meda jalela | AU92: Beneshangul Gumu | AV92: Kemashi | AW92: Bio Jiganifado | AX92: Soge 01 | AY92: 1088 | AZ92: 816 | BA92: 1142 | BB92: 490 | BC92: 1469 | BD92: 163 | BE92: 4080 | BF92: 707 | BG92: 1088 | BH92: 544 | BI92: 1414 | BJ92: 218 | BK92: 3971 | BL92: 8051 | BM92: 5 | BN92: 150 | BO92: 250 | BP92: 6 | BQ92: 10 | BR92: 0 | BS92: 0 | BT92: 68 | BU92: 0 | BV92: 25 | BW92: 43368 | BX92: 43416 | BZ92: No | CA92: accessibility lack of food house damaged destroyed lack of security safety no livelihood basic infrastructures damage | CB92: < 25% | CC92: None | CD92: None | CE92: None | CF92: None | CG92: Off-site (> 20 minutes) | CH92: Surface water sources (ponds/canals/river/lake/birkat) | CL92: 10-15 liters | CM92: Taste | CO92: No toilets | CQ92: No | CT92: No | CU92: No waste disposal system | CW92: Yes | CY92: Yes, Offsite | CZ92: No | DA92: Host Community Donation | DC92: No | DD92: No | DE92: No | DF92: Diarrhea | DH92: Pneumonia | DJ92: Malaria | DL92: Yes | DN92: Off-site (< 3 km) | DO92: Government | DQ92: No | DR92: No | DV92: None | DX92: 0 | DY92: No | DZ92: Within the month | EA92: Yes | EB92: No | EC92: No | EE92: Yes | EF92: No | EG92: Police/Militia | EI92: None | EJ92: No | EK92: None | EL92: No | EM92: None | EN92: No | EO92: 0 | EP92: 0 | EQ92: No | ES92: Yes | EU92: Yes | EV92: No lighting | EW92: Site Management | EY92: access to services distribution registration shelter safety and security how to get information relief assistance other | EZ92: Yes | FA92: < 25% | FB92: Yes | FC92: Emergency shelter kits | FD92: Bedding sets | FE92: Hygiene kits | FF92: Yes | FG92: Conflict | FH92: In 2018 | FI92: 1 | FJ92: 0 | FK92: 0 | FL92: No
A93: OR1115 | B93: Anger Gute Town Administration Hall | C93: 14 | D93: 2018-11-27 | E93: Abebe Nigus | F93: Male | G93: Oromia | H93: East Wellega | I93: Gida Ayana | J93: Anger Gute town Administration | K93: 9.564421667 | L93: 36.6282885 | M93: Yes | P93: Collective Center | R93: 2018-09-26 | S93: Unknown | T93: Yes | U93: Public/Government | X93: Yes | Y93: 0 | Z93: Yes | AA93: Fikru Mitiku | AB93: 0917854752 | AC93: Yes | AD93: Government | AF93: Anger Gute town Administration | AG93: Daraje Beyene | AH93: 0917851818 | AI93: Yes | AJ93: Yes | AK93: Yes | AL93: Yes | AM93: Yes | AN93: Yes | AO93: Yes | AP93: Yes | AQ93: Beneshangul Gumu | AR93: Kemashi | AS93: Yaso | AT93: Yaso | AU93: Beneshangul Gumu | AV93: Kemashi | AW93: Bio Jiganifado | AX93: Soge | AY93: 150 | AZ93: 53 | BA93: 128 | BB93: 60 | BC93: 120 | BD93: 8 | BE93: 369 | BF93: 83 | BG93: 173 | BH93: 15 | BI93: 180 | BJ93: 8 | BK93: 459 | BL93: 828 | BM93: 0 | BN93: 11 | BO93: 48 | BP93: 0 | BQ93: 4 | BR93: 0 | BS93: 0 | BT93: 17 | BU93: 0 | BV93: 5 | BW93: 43369 | BX93: 43431 | BZ93: No | CA93: accessibility lack of food house damaged destroyed lack of security safety no livelihood basic infrastructures damage | CB93: < 25% | CC93: < 25% | CD93: > 75% | CE93: < 25% | CF93: > 75% | CG93: On-site (< 20 minutes) | CH93: None | CL93: 10-15 liters | CM93: Suspended solids | CO93: Not so good (not hygienic) | CP93: 4 | CQ93: No | CS93: Yes | CT93: No | CU93: No waste disposal system | CW93: No | CY93: Yes, On Site | CZ93: Yes | DA93: Food Assistance | DC93: No | DD93: No | DE93: No | DF93: Diarrhea | DH93: Malaria | DJ93: Scabies | DL93: Yes | DN93: Off-site (< 3 km) | DO93: Government | DQ93: Yes | DR93: No | DV93: None | DX93: 0 | DY93: No | DZ93: Last month | EA93: No | EB93: No | EC93: No | EE93: Yes | EF93: Yes | EG93: Military | EI93: Alcohol/drug-related disturbance | EJ93: No | EK93: None | EL93: No | EM93: child psycho distress children separated | EN93: No | EO93: 0 | EP93: 0 | EQ93: No | ES93: No | EU93: No | EV93: Yes, there is lighting and it is adequate | EW93: Authorities | EY93: access to services distribution registration shelter safety and security relief assistance | EZ93: No | FA93: None | FB93: Yes | FC93: Emergency shelter kits | FD93: Kitchen sets | FE93: Bedding sets | FF93: Yes | FG93: Conflict | FH93: In 2018 | FI93: 0 | FJ93: 0 | FK93: 0 | FL93: No
A94: SO583 | B94: Anole | C94: 14 | D94: 2018-11-26 | E94: Ali Abdi | F94: Male | G94: Somali | H94: Korahe | I94: Shekosh | J94: Wijiwaji | K94: 7.186936853 | L94: 44.14093625 | M94: Yes | P94: Host community/families | R94: 2017-06-25 | S94: Unknown | T94: Yes | U94: Public/Government | X94: Yes | Y94: 1 | Z94: Yes | AA94: Mawlid Sahal Ali | AB94: 0911287231 | AC94: Yes | AD94: Government | AF94: Anole | AG94: Kalil Sharif Qorane | AH94: 0906812392 | AI94: Yes | AJ94: Yes | AK94: Yes | AL94: Yes | AM94: Yes | AN94: Yes | AO94: Yes | AP94: Yes | AQ94: Somali | AR94: Korahe | AS94: Shekosh | AT94: Wijiwaji | AU94: Somali | AV94: Korahe | AW94: Shekosh | AX94: Wijiwaji | AY94: 60 | AZ94: 33 | BA94: 45 | BB94: 42 | BC94: 57 | BD94: 6 | BE94: 183 | BF94: 24 | BG94: 39 | BH94: 36 | BI94: 60 | BJ94: 12 | BK94: 171 | BL94: 354 | BM94: 0 | BN94: 14 | BO94: 23 | BP94: 3 | BQ94: 0 | BR94: 0 | BS94: 2 | BT94: 1 | BU94: 0 | BV94: 0 | BW94: 42911 | BX94: 42988 | BZ94: No | CA94: accessibility lack of food house damaged destroyed no livelihood | CB94: None | CC94: 25-50 % | CD94: None | CE94: None | CF94: None | CG94: On-site (> 20 minutes) | CH94: Surface water sources (ponds/canals/river/lake/birkat) | CL94: 5-10 liters | CO94: No toilets | CQ94: No | CT94: No | CU94: Burning | CW94: Yes | CY94: Yes, On Site | CZ94: Yes | DA94: Food Assistance | DC94: Yes | DD94: Yes | DE94: Yes | DF94: Malaria | DH94: Pneumonia | DJ94: UTI | DL94: No | DR94: Yes | DS94: < 1km | DT94: 25-50 % | DU94: Onsite | DV94: Pastoralism | DX94: 0 | DY94: No | DZ94: Last month | EA94: No | EB94: Yes > 75% | EC94: No | EE94: Yes | EF94: No | EG94: Police/Militia | EI94: None | EJ94: No | EK94: None | EL94: No | EM94: None | EN94: No | EO94: 0 | EP94: 0 | EQ94: No | ES94: Yes | EU94: Yes | EV94: No lighting | EW94: Authorities | EY94: access to services distribution shelter relief assistance | EZ94: No | FA94: None | FB94: Yes | FC94: Emergency shelter kits | FD94: Bedding sets | FE94: Kitchen sets | FF94: Yes | FG94: Drought | FH94: During 2017 | FI94: 0 | FJ94: 0 | FK94: 0 | FL94: No
A95: TG171 | B95: Arada Mangudo | C95: 14 | D95: 2018-11-12 | E95: Daniel Abraham | F95: Male | G95: Tigray | H95: Southern | I95: Raya Azebo | J95: Kara | K95: 12.68360067 | L95: 39.72911681 | M95: Yes | P95: Host community/families | R95: 2018-02-16 | S95: Unknown | T95: Yes | U95: Public/Government | X95: No | AC95: Yes | AD95: Government | AF95: Office of kebele Admininstration | AG95: Haji Awel | AH95: 0914166883 | AI95: Yes | AJ95: Yes | AK95: Yes | AL95: Yes | AM95: Yes | AN95: Yes | AO95: Yes | AP95: Yes | AQ95: Oromia | AR95: Jimma | AS95: Limu Kosa | AT95: Different Kebeles | AU95: Oromia | AV95: Bunno Bedele | AW95: Gechi | AX95: Different Kebeles | AY95: 162 | AZ95: 24 | BA95: 34 | BB95: 40 | BC95: 146 | BD95: 12 | BE95: 256 | BF95: 9 | BG95: 20 | BH95: 36 | BI95: 79 | BJ95: 9 | BK95: 153 | BL95: 409 | BM95: 0 | BN95: 5 | BO95: 12 | BP95: 0 | BQ95: 1 | BR95: 0 | BS95: 9 | BT95: 6 | BU95: 0 | BV95: 11 | BW95: 43147 | BX95: 43407 | BZ95: No | CA95: house damaged destroyed lack of security safety no livelihood | CB95: None | CC95: None | CD95: None | CE95: > 75% | CF95: None | CG95: On-site (< 20 minutes) | CH95: Unprotected wells (open wells) | CL95: < 5 liters | CM95: Suspended solids | CO95: No toilets | CQ95: No | CT95: No | CU95: No waste disposal system | CW95: Yes | CY95: Yes, Offsite | CZ95: Yes | DA95: Other | DB95: Daily labor | DC95: Yes | DD95: No | DE95: No | DF95: Pneumonia | DH95: Malaria | DJ95: Other | DK95: Acute Upper Respiratory Tract Infection | DL95: Yes | DN95: On-site (> 3 km) | DO95: Government | DQ95: No | DR95: No | DV95: Daily Laborer | DX95: 2 | DY95: No | DZ95: Irregular | EA95: No | EB95: No | EC95: Yes | ED95: Abroad | EE95: Yes | EF95: No | EG95: Police/Militia | EI95: None | EJ95: No | EK95: denial of resources psycho emotional abuse | EL95: No | EM95: child psycho distress children separated | EN95: No | EO95: 0 | EP95: 0 | EQ95: Yes | ES95: Yes | EU95: Yes | EV95: No lighting | EW95: Authorities | EY95: access to services distribution shelter how to get information relief assistance situation in origin | EZ95: No | FA95: None | FB95: Yes | FC95: Bedding sets | FD95: Kitchen sets | FE95: Emergency shelter kits | FF95: Yes | FG95: Conflict | FH95: In 2018 | FI95: 0 | FJ95: 0 | FK95: 0 | FL95: Yes | FM95: Onsite | FN95: < 1km
A96: SO555 | B96: Arbadhis | C96: 14 | D96: 2018-11-27 | E96: Seid Ibrahim Omer | F96: Male | G96: Somali | H96: Jarar | I96: Bil'ilbur | J96: Arbadhis | K96: 8.157073593 | L96: 43.27667983 | M96: Yes | P96: Spontaneous camp/site | R96: 2017-05-10 | S96: Unknown | T96: Yes | U96: Public/Government | X96: Yes | Y96: 2 | Z96: Yes | AA96: Faysal mahamed muse | AB96: 0902081316 | AC96: Yes | AD96: Government | AF96: Arbadhis kebele Admistration | AG96: Abdikafi siyad adan | AH96: 0989205544 | AI96: Yes | AJ96: Yes | AK96: Yes | AL96: Yes | AM96: Yes | AN96: Yes | AO96: Yes | AP96: Yes | AQ96: Somali | AR96: Jarar | AS96: Bil'ilbur | AT96: Arbadhis | AU96: Somali | AV96: Jarar | AW96: Bil'ilbur | AX96: Ali garad | AY96: 95 | AZ96: 100 | BA96: 81 | BB96: 38 | BC96: 95 | BD96: 5 | BE96: 319 | BF96: 67 | BG96: 57 | BH96: 29 | BI96: 95 | BJ96: 10 | BK96: 258 | BL96: 577 | BM96: 0 | BN96: 9 | BO96: 16 | BP96: 4 | BQ96: 5 | BR96: 0 | BS96: 5 | BT96: 13 | BU96: 2 | BV96: 2 | BW96: 42865 | BX96: 42962 | BZ96: No | CA96: accessibility lack of food no livelihood | CB96: None | CC96: 25-50 % | CD96: None | CE96: None | CF96: None | CG96: On-site (> 20 minutes) | CH96: Unprotected wells (open wells) | CL96: 5-10 liters | CM96: Suspended solids | CO96: No toilets | CQ96: No | CT96: No | CU96: Burning | CW96: Yes | CY96: Yes, On Site | CZ96: No | DA96: Food Assistance | DC96: Yes | DD96: Yes | DE96: Yes | DF96: Malaria | DH96: Diarrhea | DJ96: Pneumonia | DL96: No | DR96: Yes | DS96: < 1km | DT96: 51-75 % | DU96: Onsite | DV96: Pastoralism | DX96: 0 | DY96: No | DZ96: Last month | EA96: Yes | EB96: Yes 51-75% | EC96: No | EE96: Yes | EF96: No | EG96: Police/Militia | EI96: None | EJ96: No | EK96: None | EL96: No | EM96: None | EN96: No | EO96: 0 | EP96: 0 | EQ96: No | ES96: Yes | EU96: Yes | EV96: No lighting | EW96: Site Management | EY96: access to services distribution registration shelter relief assistance | EZ96: No | FA96: None | FB96: Yes | FC96: Emergency shelter kits | FD96: Kitchen sets | FE96: Bedding sets | FF96: Yes | FG96: Drought | FH96: During 2017 | FI96: 0 | FJ96: 0 | FK96: 0 | FL96: No
A97: OR620 | B97: Arboye Town | C97: 14 | D97: 2018-11-16 | E97: Melaku Alemu | F97: Male | G97: Oromia | H97: Arsi | I97: Jeju | J97: Arboye 01 kebele | K97: 8.38162628 | L97: 39.68421829 | M97: Yes | P97: Host community/families | R97: 2017-09-19 | S97: Unknown | T97: Yes | U97: Public/Government | X97: Yes | Y97: 0 | Z97: Yes | AA97: Ziyad kemer | AB97: 0978960233 | AC97: Yes | AD97: Government | AF97: Jeju Woreda Disaster Resk Menagement Office | AG97: Kalid Abadir | AH97: 0912254547 | AI97: Yes | AJ97: Yes | AK97: Yes | AL97: Yes | AM97: Yes | AN97: No | AO97: Yes | AP97: Yes | AQ97: Somali | AR97: Fafan | AS97: Jijiga | AT97: 07 | AU97: Somali | AV97: Fafan | AW97: Jijiga | AX97: 12 | AY97: 25 | AZ97: 5 | BA97: 1 | BB97: 0 | BC97: 28 | BD97: 1 | BE97: 35 | BF97: 1 | BG97: 6 | BH97: 0 | BI97: 18 | BJ97: 0 | BK97: 25 | BL97: 60 | BM97: 0 | BN97: 3 | BO97: 5 | BP97: 0 | BQ97: 0 | BR97: 0 | BS97: 0 | BT97: 1 | BU97: 0 | BV97: 0 | BW97: 42997 | BX97: 43342 | BZ97: No | CA97: house damaged destroyed lack of security safety | CB97: None | CC97: None | CD97: None | CE97: 25-50 % | CF97: > 75% | CG97: On-site (< 20 minutes) | CH97: Water taps from piped network | CL97: 5-10 liters | CO97: Not so good (not hygienic) | CP97: 10 | CQ97: No | CS97: No | CT97: No | CU97: No waste disposal system | CW97: No | CY97: Yes, On Site | CZ97: Yes | DA97: Food Assistance | DC97: No | DD97: No | DE97: No | DF97: None | DH97: None | DJ97: None | DL97: Yes | DN97: On-site (< 3 km) | DO97: Government | DQ97: Yes | DR97: No | DV97: Petty Trade | DX97: 0 | DY97: No | DZ97: Within the month | EA97: No | EB97: No | EC97: No | EE97: Yes | EF97: No | EG97: Police/Militia | EI97: None | EJ97: No | EK97: None | EL97: No | EM97: None | EN97: No | EO97: 0 | EP97: 0 | EQ97: Yes | ES97: Yes | EU97: Yes | EV97: Yes, there is lighting but it is NOT adequate | EW97: Site Management | EY97: access to services distribution shelter relief assistance | EZ97: No | FA97: None | FB97: Yes | FC97: Emergency shelter kits | FD97: Bedding sets | FE97: Kitchen sets | FF97: No | FG97: Conflict | FH97: During 2017 | FI97: 0 | FJ97: 0 | FK97: 0 | FL97: Yes | FM97: Onsite | FN97: < 1km
A98: OR844 | B98: Arda Bururi | C98: 14 | D98: 2018-11-11 | E98: Eyob Assefa | F98: Male | G98: Oromia | H98: Guji | I98: Liben | J98: Arda Bururi | K98: 5.345256744 | L98: 39.57058149 | M98: Yes | P98: Other | Q98: In rental house in dispersed settlement type | R98: 2018-03-15 | S98: Unknown | T98: Yes | U98: Private | X98: Yes | Y98: 1 | Z98: Yes | AA98: Aliyi Mohammed | AB98: 0916325907 | AC98: Yes | AD98: Government | AF98: DRM office | AG98: Mulalem Woreda | AH98: 0913370028 | AI98: No | AJ98: Yes | AK98: Yes | AL98: Yes | AM98: Yes | AN98: Yes | AO98: Yes | AP98: Yes | AQ98: Somali | AR98: Liben | AS98: Karsa Dulla | AT98: Hara Nur | AU98: Somali | AV98: Liben | AW98: Karsa Dulla | AX98: Dire Luca | AY98: 122 | AZ98: 98 | BA98: 128 | BB98: 18 | BC98: 122 | BD98: 6 | BE98: 372 | BF98: 116 | BG98: 122 | BH98: 37 | BI98: 122 | BJ98: 0 | BK98: 397 | BL98: 769 | BM98: 0 | BN98: 25 | BO98: 30 | BP98: 0 | BQ98: 4 | BR98: 0 | BS98: 0 | BT98: 10 | BU98: 0 | BV98: 8 | BW98: 43174 | BZ98: No | CA98: lack of food house damaged destroyed lack of security safety no livelihood | CB98: None | CC98: None | CD98: None | CE98: < 25% | CF98: 25-50 % | CG98: Off-site (< 20 minutes) | CH98: Surface water sources (ponds/canals/river/lake/birkat) | CL98: < 5 liters | CM98: Suspended solids | CO98: Not so good (not hygienic) | CP98: 30 | CQ98: No | CS98: No | CT98: No | CU98: No waste disposal system | CW98: Yes | CY98: Yes, Offsite | CZ98: Yes | DA98: Food Assistance | DC98: No | DD98: No | DE98: Yes | DF98: Other | DG98: Typhoid | DH98: Malaria | DJ98: Pneumonia | DL98: Yes | DN98: Off-site (< 3 km) | DO98: Government | DQ98: No | DR98: No | DV98: None | DX98: 2 | DY98: Yes | DZ98: Within the month | EA98: No | EB98: No | EC98: No | EE98: Yes | EF98: No | EG98: Police/Militia | EI98: None | EJ98: No | EK98: None | EL98: No | EM98: None | EN98: No | EO98: 0 | EP98: 0 | EQ98: Yes | ES98: Yes | EU98: Yes | EV98: Yes, there is lighting but it is NOT adequate | EW98: Site Management | EY98: distribution registration shelter how to get information relief assistance | EZ98: No | FA98: None | FB98: Yes | FC98: Emergency shelter kits | FD98: Bedding sets | FE98: Kitchen sets | FF98: No | FG98: Conflict | FH98: In 2018 | FI98: 0 | FJ98: 0 | FK98: 0 | FL98: Yes | FM98: Offsite | FN98: 1-2km
A99: OR715 | B99: Arda Hula | C99: 13 | D99: 2018-09-14 | E99: Getachew Tola | F99: Male | G99: Oromia | H99: Bale | I99: Dawe Serar | J99: Gora | K99: 6.294921 | L99: 41.49739607 | M99: Yes | P99: Spontaneous camp/site | R99: 2017-12-16 | S99: Unknown | T99: Yes | U99: Public/Government | X99: Yes | Y99: 2 | Z99: Yes | AA99: Adem Isak | AB99: 0947224071 | AC99: Yes | AD99: Government | AF99: Disaster Risk Management office of Dawe Serar woreda. | AG99: Kemal Hussien | AH99: 0921469739 | AI99: No | AJ99: Yes | AK99: Yes | AL99: Yes | AM99: Yes | AN99: Yes | AO99: Yes | AP99: Yes | AQ99: Somali | AR99: Liben | AS99: Goro Baqaqsa | AT99: Borati | AU99: Somali | AV99: Liben | AW99: Goro Baqaqsa | AX99: Wateti | AY99: 737 | AZ99: 258 | BA99: 295 | BB99: 369 | BC99: 811 | BD99: 258 | BE99: 1991 | BF99: 221 | BG99: 405 | BH99: 590 | BI99: 774 | BJ99: 147 | BK99: 2137 | BL99: 4128 | BM99: 0 | BN99: 165 | BO99: 227 | BP99: 4 | BQ99: 5 | BR99: 0 | BS99: 11 | BT99: 370 | BU99: 0 | BV99: 0 | BW99: 43085 | BX99: 43197 | BZ99: No | CA99: accessibility house damaged destroyed lack of security safety no livelihood | CB99: < 25% | CC99: None | CD99: None | CE99: None | CF99: None | CG99: On-site (< 20 minutes) | CH99: Water truck | CL99: < 5 liters | CM99: Taste | CO99: No toilets | CQ99: No | CT99: No | CU99: No waste disposal system | CW99: Yes | CY99: Yes, Offsite | CZ99: No | DA99: Food Assistance | DC99: No | DD99: No | DE99: No | DF99: Diarrhea | DH99: Pneumonia | DJ99: Malaria | DL99: Yes | DN99: Off-site (> 3 km) | DO99: Government | DQ99: Yes | DR99: Yes | DS99: 1-2km | DT99: < 25% | DU99: Onsite | DV99: Pastoralism | DX99: 20 | DY99: No | DZ99: Irregular | EA99: Yes | EB99: No | EC99: No | EE99: Yes | EF99: No | EG99: Self organized | EI99: None | EJ99: No | EK99: None | EL99: No | EM99: None | EN99: No | EO99: 0 | EP99: 0 | EQ99: No | ES99: No | EU99: No | EV99: No lighting | EW99: Local Leader | EY99: access to services distribution registration shelter safety and security how to get information relief assistance situation in origin | EZ99: No | FA99: < 25% | FB99: Yes | FC99: Bedding sets | FD99: Kitchen sets | FE99: Emergency shelter kits | FF99: Yes | FG99: Conflict | FH99: During 2017 | FI99: 0 | FJ99: 0 | FK99: 0 | FL99: Yes | FM99: Offsite | FN99: 6-10km
A100: OR852 | B100: Arda Meda | C100: 13 | D100: 2018-09-19 | E100: Getachew Tola | F100: Male | G100: Oromia | H100: Bale | I100: Rayitu | J100: Anole | K100: 7.04184238 | L100: 41.21526463 | M100: Yes | P100: Spontaneous camp/site | R100: 2017-12-28 | S100: Unknown | T100: Yes | U100: Public/Government | X100: Yes | Y100: 2 | Z100: Yes | AA100: Ibrahim Abdi | AB100: 0975011442 | AC100: Yes | AD100: Government | AF100: Disaster Risk Management office of Rayitu Woreda. | AG100: Umer Elias | AH100: 0921253147 | AI100: No | AJ100: Yes | AK100: Yes | AL100: Yes | AM100: Yes | AN100: Yes | AO100: Yes | AP100: Yes | AQ100: Oromia | AR100: Bale | AS100: Rayitu | AT100: Anole | AY100: 649 | AZ100: 227 | BA100: 162 | BB100: 389 | BC100: 876 | BD100: 97 | BE100: 1751 | BF100: 195 | BG100: 195 | BH100: 422 | BI100: 844 | BJ100: 162 | BK100: 1818 | BL100: 3569 | BM100: 0 | BN100: 227 | BO100: 312 | BP100: 9 | BQ100: 7 | BR100: 0 | BS100: 17 | BT100: 0 | BU100: 0 | BV100: 330 | BW100: 43097 | BX100: 43278 | BZ100: No | CB100: < 25% | CC100: None | CD100: None | CE100: None | CF100: None | CG100: Off-site (> 20 minutes) | CH100: Surface water sources (ponds/canals/river/lake/birkat) | CL100: < 5 liters | CM100: Odor/smell | CO100: No toilets | CQ100: No | CT100: No | CU100: No waste disposal system | CW100: Yes | CY100: Yes, Offsite | CZ100: No | DA100: Food Assistance | DC100: No | DD100: No | DE100: No | DF100: Malaria | DH100: Diarrhea | DJ100: Pneumonia | DL100: No | DR100: Yes | DS100: 1-2km | DT100: < 25% | DU100: Onsite | DV100: Pastoralism | DX100: 30 | DY100: No | DZ100: Irregular | EA100: Yes | EB100: No | EC100: No | EE100: Yes | EF100: No | EG100: Self organized | EI100: None | EJ100: No | EK100: None | EL100: No | EM100: None | EN100: No | EO100: 0 | EP100: 0 | EQ100: Yes | ES100: No | EU100: No | EV100: No lighting | EW100: Local Leader | EY100: access to services distribution registration shelter safety and security how to get information relief assistance situation in origin | EZ100: No | FA100: < 25% | FB100: Yes | FC100: Emergency shelter kits | FD100: Bedding sets | FE100: Kitchen sets | FF100: Yes | FG100: Conflict | FH100: During 2017 | FI100: 0 | FJ100: 0 | FK100: 0 | FL100: Yes | FM100: Offsite | FN100: 6-10km
A101: OR383 | B101: Ardam Dhera | C101: 14 | D101: 2018-11-09 | E101: Eyob Assefa | F101: Male | G101: Oromia | H101: Guji | I101: Gumi-Eldelo | J101: Hadhesa | K101: 5.010757947 | L101: 39.71072255 | M101: Yes | P101: Spontaneous camp/site | R101: 2017-04-10 | S101: Unknown | T101: Yes | U101: Public/Government | X101: Yes | Y101: 3 | Z101: Yes | AA101: Racha koricha | AB101: xxxx | AC101: Yes | AD101: Government | AF101: DRM office | AG101: Boru kena | AH101: 09 10 61 37 68 | AI101: No | AJ101: Yes | AK101: Yes | AL101: Yes | AM101: Yes | AN101: Yes | AO101: Yes | AP101: Yes | AQ101: Oromia | AR101: Guji | AS101: Gumi-Eldelo | AT101: Oda Dima | AU101: Oromia | AV101: Guji | AW101: Gumi-Eldelo | AX101: Alloye | AY101: 180 | AZ101: 108 | BA101: 189 | BB101: 54 | BC101: 162 | BD101: 9 | BE101: 522 | BF101: 135 | BG101: 234 | BH101: 63 | BI101: 180 | BJ101: 18 | BK101: 630 | BL101: 1152 | BM101: 0 | BN101: 25 | BO101: 50 | BP101: 0 | BQ101: 1 | BR101: 0 | BS101: 0 | BT101: 20 | BU101: 0 | BV101: 2 | BW101: 42835 | BZ101: No | CA101: lack of food house damaged destroyed lack of security safety no livelihood | CB101: None | CC101: None | CD101: None | CE101: < 25% | CF101: None | CG101: On-site (< 20 minutes) | CH101: Surface water sources (ponds/canals/river/lake/birkat) | CL101: < 5 liters | CM101: Suspended solids | CO101: Not so good (not hygienic) | CP101: 2 | CQ101: No | CS101: No | CT101: No | CU101: No waste disposal system | CW101: Yes | CY101: Yes, On Site | CZ101: Yes | DA101: Food Assistance | DC101: No | DD101: No | DE101: Yes | DF101: Malaria | DH101: Diarrhea | DJ101: Pneumonia | DL101: Yes | DN101: On-site (< 3 km) | DO101: Government | DQ101: Yes | DR101: Yes | DS101: < 1km | DT101: 25-50 % | DU101: Onsite | DV101: None | DX101: 12 | DY101: Yes | DZ101: Last month | EA101: Yes | EB101: No | EC101: No | EE101: Yes | EF101: No | EG101: Police/Militia | EI101: None | EJ101: No | EK101: None | EL101: No | EM101: None | EN101: No | EO101: 0 | EP101: 0 | EQ101: Yes | ES101: Yes | EU101: Yes | EV101: No lighting | EW101: Site Management | EY101: distribution registration shelter safety and security relief assistance | EZ101: No | FA101: None | FB101: Yes | FC101: Emergency shelter kits | FD101: Kitchen sets | FE101: Bedding sets | FF101: Yes | FG101: Conflict | FH101: During 2017 | FI101: 0 | FJ101: 0 | FK101: 0 | FL101: Yes | FM101: Onsite | FN101: < 1km
A102: OR478 | B102: Arjilio | C102: 14 | D102: 2018-11-13 | E102: Mizan Zerihun | F102: Female | G102: Oromia | H102: Borena | I102: Dhaas | J102: Mata Arba | K102: 4.222537572 | L102: 38.97806771 | M102: Yes | P102: Spontaneous camp/site | R102: 2018-06-10 | S102: Unknown | T102: Yes | U102: Public/Government | X102: No | AC102: Yes | AD102: Government | AF102: Drmo(Disaster Risk Management office) | AG102: Dulacha Boru | AH102: 0961382481 | AI102: No | AJ102: Yes | AK102: Yes | AL102: Yes | AM102: Yes | AN102: Yes | AO102: Yes | AP102: Yes | AQ102: Oromia | AR102: Borena | AS102: Dhaas | AT102: Mata Arba | AU102: Oromia | AV102: Borena | AW102: Dhaas | AX102: Raro | AY102: 784 | AZ102: 784 | BA102: 666 | BB102: 392 | BC102: 784 | BD102: 470 | BE102: 3096 | BF102: 706 | BG102: 745 | BH102: 274 | BI102: 980 | BJ102: 353 | BK102: 3058 | BL102: 6154 | BM102: 0 | BN102: 30 | BO102: 80 | BP102: 4 | BQ102: 2 | BR102: 0 | BS102: 0 | BT102: 52 | BU102: 0 | BV102: 2 | BW102: 43261 | BX102: 43268 | BY102: Place of origin | BZ102: Yes | CB102: None | CC102: < 25% | CD102: None | CE102: None | CF102: None | CG102: Off-site (> 20 minutes) | CH102: Surface water sources (ponds/canals/river/lake/birkat) | CL102: 10-15 liters | CM102: Suspended solids | CO102: No toilets | CQ102: No | CT102: No | CU102: Burning | CW102: Yes | CY102: Yes, Offsite | CZ102: No | DA102: Cash Assistance | DC102: Yes | DD102: No | DE102: No | DF102: Diarrhea | DH102: Pneumonia | DJ102: Malaria | DL102: No | DR102: No | DV102: Pastoralism | DX102: 0 | DY102: No | DZ102: 2 months ago | EA102: Yes | EB102: No | EC102: No | EE102: Yes | EF102: No | EG102: Self organized | EI102: None | EJ102: No | EK102: None | EL102: No | EM102: None | EN102: No | EO102: 0 | EP102: 0 | EQ102: Yes | ES102: Yes | EU102: Yes | EV102: No lighting | EW102: Local Leader | EY102: access to services distribution registration shelter relief assistance situation in origin | EZ102: No | FA102: None | FB102: Yes | FC102: Emergency shelter kits | FD102: Bedding sets | FE102: Mosquito nets | FF102: Yes | FG102: Conflict | FH102: In 2018 | FI102: 0 | FJ102: 0 | FK102: 0 | FL102: No
A103: SO607 | B103: Armada | C103: 14 | D103: 2018-11-16 | E103: Hassan Dahir Abdi | F103: Male | G103: Somali | H103: Erer | I103: Salahad | J103: Armada | K103: 7.045600072 | L103: 41.3902119 | M103: Yes | P103: Spontaneous camp/site | R103: 2017-10-12 | S103: Unknown | T103: Yes | U103: Public/Government | X103: Yes | Y103: 2 | Z103: Yes | AA103: Ma'alim Ahmed Hassan | AB103: XXXX | AC103: Yes | AD103: Government | AF103: Armada Kebele Administration | AG103: Hassan Abdilahi Muhumed | AH103: 0968104116 | AI103: No | AJ103: Yes | AK103: Yes | AL103: Yes | AM103: Yes | AN103: Yes | AO103: Yes | AP103: Yes | AQ103: Oromia | AR103: Bale | AS103: Seweyna | AT103: Bad awar | AU103: Oromia | AV103: Bale | AW103: Ginir | AX103: Katabti | AY103: 172 | AZ103: 86 | BA103: 103 | BB103: 120 | BC103: 146 | BD103: 43 | BE103: 498 | BF103: 103 | BG103: 112 | BH103: 120 | BI103: 155 | BJ103: 34 | BK103: 524 | BL103: 1022 | BM103: 0 | BN103: 27 | BO103: 31 | BP103: 3 | BQ103: 3 | BR103: 0 | BS103: 3 | BT103: 10 | BU103: 0 | BV103: 2 | BW103: 43020 | BX103: 43393 | BZ103: No | CA103: house damaged destroyed lack of security safety no livelihood | CB103: None | CC103: 25-50 % | CD103: None | CE103: None | CF103: None | CG103: Off-site (> 20 minutes) | CH103: Surface water sources (ponds/canals/river/lake/birkat) | CL103: 5-10 liters | CM103: Odor/smell | CO103: Not so good (not hygienic) | CP103: 12 | CQ103: Yes | CS103: Yes | CT103: Yes | CU103: No waste disposal system | CW103: Yes | CY103: Yes, On Site | CZ103: No | DA103: Food Assistance | DC103: Yes | DD103: No | DE103: No | DF103: Pneumonia | DH103: UTI | DJ103: Diarrhea | DL103: No | DR103: Yes | DS103: < 1km | DT103: < 25% | DU103: Onsite | DV103: Pastoralism | DX103: 0 | DY103: No | DZ103: 3 months ago | EA103: Yes | EB103: No | EC103: No | EE103: Yes | EF103: No | EG103: Police/Militia | EI103: None | EJ103: No | EK103: None | EL103: No | EM103: None | EN103: No | EO103: 0 | EP103: 0 | EQ103: No | ES103: Yes | EU103: Yes | EV103: No lighting | EW103: Site Management | EY103: distribution registration shelter relief assistance | EZ103: No | FA103: < 25% | FB103: Yes | FC103: Emergency shelter kits | FD103: Bedding sets | FE103: Kitchen sets | FF103: Yes | FG103: Conflict | FH103: During 2017 | FI103: 0 | FJ103: 0 | FK103: 0 | FL103: No
A104: AF213 | B104: Aro | C104: 14 | D104: 2018-11-27 | E104: Azeb Admasu | F104: Female | G104: Afar | H104: Gabi (Zone 3) | I104: Galalu | J104: Diyara | K104: 10.16376271 | L104: 40.55775648 | M104: Yes | P104: Spontaneous camp/site | R104: 2016-02-13 | S104: Unknown | T104: Yes | U104: Public/Government | X104: Yes | Y104: 0 | Z104: Yes | AA104: Mohammed Menda | AB104: XXXX | AC104: Yes | AD104: Government | AF104: Diyara kebele administration | AG104: Hyder Menda | AH104: 0912443043 | AI104: Yes | AJ104: Yes | AK104: Yes | AL104: Yes | AM104: Yes | AN104: No | AO104: Yes | AP104: Yes | AQ104: Afar | AR104: Gabi (Zone 3) | AS104: Galalu | AT104: Diyara | AY104: 300 | AZ104: 300 | BA104: 255 | BB104: 225 | BC104: 345 | BD104: 90 | BE104: 1215 | BF104: 255 | BG104: 360 | BH104: 285 | BI104: 255 | BJ104: 90 | BK104: 1245 | BL104: 2460 | BM104: 0 | BN104: 0 | BO104: 0 | BP104: 0 | BQ104: 0 | BR104: 0 | BS104: 0 | BT104: 0 | BU104: 0 | BV104: 0 | BW104: 42413 | BX104: 42444 | BZ104: No | CA104: accessibility lack of food no livelihood | CB104: None | CC104: > 75% | CD104: None | CE104: None | CF104: None | CG104: On-site (< 20 minutes) | CH104: Protected wells (hand pumps/motorized boreholes) | CL104: 5-10 liters | CM104: Suspended solids | CO104: No toilets | CQ104: No | CT104: No | CU104: No waste disposal system | CW104: Yes | CY104: Yes, Offsite | CZ104: No | DA104: Food Assistance | DC104: Yes | DD104: Yes | DE104: Yes | DF104: Pneumonia | DH104: Malaria | DJ104: Diarrhea | DL104: Yes | DN104: On-site (< 3 km) | DO104: Government | DQ104: No | DR104: No | DV104: Pastoralism | DX104: 0 | DY104: No | DZ104: Last month | EA104: Yes | EB104: No | EC104: No | EE104: Yes | EF104: No | EG104: Police/Militia | EI104: None | EJ104: No | EK104: None | EL104: No | EM104: None | EN104: No | EO104: 0 | EP104: 0 | EQ104: Yes | ES104: Yes | EU104: Yes | EV104: No lighting | EW104: Site Management | EY104: access to services how to get information relief assistance | EZ104: No | FA104: > 75% | FB104: Yes | FC104: Emergency shelter kits | FD104: Bedding sets | FE104: Kitchen sets | FF104: Yes | FG104: Drought | FH104: Before 2017 | FI104: 1 | FJ104: 0 | FK104: 0 | FL104: Yes | FM104: Onsite | FN104: < 1km
A105: OR1119 | B105: AROJI SERDO CAMP | C105: 14 | D105: 2018-11-26 | E105: Dagnachew Anteneh | F105: Male | G105: Oromia | H105: West Wellega | I105: Lalo Asabi | J105: Aroji Serdo | K105: 9.234150106 | L105: 35.72160476 | M105: Yes | P105: Collective Center | R105: 2018-09-28 | S105: Unknown | T105: Yes | U105: Public/Government | X105: Yes | Y105: 3 | Z105: Yes | AA105: Paulos Terfe | AB105: 0917418865 | AC105: Yes | AD105: Government | AF105: Aroji serdo kebele administration | AG105: Wondemu Abedeta | AH105: 0919218744 | AI105: Yes | AJ105: Yes | AK105: Yes | AL105: Yes | AM105: Yes | AN105: Yes | AO105: Yes | AP105: Yes | AQ105: Beneshangul Gumu | AR105: Kemashi | AS105: Kamashi | AT105: Endaderba | AU105: Beneshangul Gumu | AV105: Kemashi | AW105: Kamashi | AX105: 01 | AY105: 548 | AZ105: 274 | BA105: 712 | BB105: 192 | BC105: 712 | BD105: 82 | BE105: 1972 | BF105: 329 | BG105: 548 | BH105: 247 | BI105: 712 | BJ105: 82 | BK105: 1918 | BL105: 3890 | BM105: 3 | BN105: 10 | BO105: 78 | BP105: 6 | BQ105: 12 | BR105: 0 | BS105: 0 | BT105: 21 | BU105: 0 | BV105: 54 | BW105: 43371 | BX105: 43429 | BZ105: No | CA105: accessibility lack of food house damaged destroyed lack of security safety no livelihood basic infrastructures damage | CB105: None | CC105: None | CD105: None | CE105: None | CF105: None | CG105: On-site (< 20 minutes) | CH105: Surface water sources (ponds/canals/river/lake/birkat) | CL105: 5-10 liters | CO105: Not so good (not hygienic) | CP105: 15 | CQ105: No | CS105: Yes | CT105: No | CU105: No waste disposal system | CW105: Yes | CY105: Yes, On Site | CZ105: No | DA105: Food Assistance | DC105: No | DD105: No | DE105: No | DF105: Malaria | DH105: Diarrhea | DJ105: Other | DK105: Typoid | DL105: Yes | DN105: Off-site (> 3 km) | DO105: Government | DQ105: No | DR105: No | DV105: None | DX105: 0 | DY105: No | DZ105: Irregular | EA105: Yes | EB105: No | EC105: No | EE105: Yes | EF105: No | EG105: Other | EH105: UNCamp guard | EI105: None | EJ105: No | EK105: None | EL105: No | EM105: None | EN105: No | EO105: 0 | EP105: 0 | EQ105: No | ES105: Yes | EU105: Yes | EV105: No lighting | EW105: Authorities | EY105: access to services distribution registration shelter safety and security how to get information relief assistance situation in origin | EZ105: No | FA105: None | FB105: Yes | FC105: Emergency shelter kits | FD105: Bedding sets | FE105: Kitchen sets | FF105: Yes | FG105: Conflict | FH105: In 2018 | FI105: 0 | FJ105: 1 | FK105: 0 | FL105: Yes | FM105: Offsite | FN105: 1-2km
A106: SO382 | B106: Aroosyale | C106: 14 | D106: 2018-11-12 | E106: Mohamud Abdi | F106: Male | G106: Somali | H106: Shabelle | I106: Gode | J106: Aroosyale | K106: 6.017230265 | L106: 43.59240906 | M106: Yes | P106: Spontaneous camp/site | R106: 2017-01-05 | S106: Unknown | T106: Yes | U106: Public/Government | X106: Yes | Y106: 2 | Z106: Yes | AA106: Mohammed haybe sagal | AB106: 0968360275 | AC106: Yes | AD106: Government | AF106: Aroosyale | AG106: Mohammed haybe sagal | AH106: 0968360275 | AI106: Yes | AJ106: Yes | AK106: Yes | AL106: Yes | AM106: Yes | AN106: Yes | AO106: Yes | AP106: Yes | AQ106: Somali | AR106: Shabelle | AS106: Gode | AT106: Ubataale | AU106: Somali | AV106: Shabelle | AW106: Gode | AX106: Gaada | AY106: 56 | AZ106: 22 | BA106: 62 | BB106: 17 | BC106: 48 | BD106: 17 | BE106: 166 | BF106: 31 | BG106: 56 | BH106: 20 | BI106: 48 | BJ106: 22 | BK106: 177 | BL106: 343 | BM106: 0 | BN106: 13 | BO106: 18 | BP106: 3 | BQ106: 6 | BR106: 0 | BS106: 4 | BT106: 3 | BU106: 1 | BV106: 6 | BW106: 42740 | BX106: 43101 | BZ106: No | CA106: lack of food house damaged destroyed no livelihood | CB106: None | CC106: 25-50 % | CD106: None | CE106: None | CF106: None | CG106: On-site (< 20 minutes) | CH106: Surface water sources (ponds/canals/river/lake/birkat) | CL106: < 5 liters | CO106: No toilets | CQ106: No | CT106: No | CU106: No waste disposal system | CW106: Yes | CY106: Yes, On Site | CZ106: No | DA106: Food Assistance | DC106: Yes | DD106: No | DE106: No | DF106: Malaria | DH106: Pneumonia | DJ106: UTI | DL106: Yes | DN106: Off-site (> 3 km) | DO106: Government | DQ106: Yes | DR106: Yes | DS106: < 1km | DT106: 25-50 % | DU106: Onsite | DV106: Pastoralism | DX106: 0 | DY106: No | DZ106: Last month | EA106: No | EB106: No | EC106: No | EE106: Yes | EF106: No | EG106: Community leaders | EI106: None | EJ106: No | EK106: None | EL106: No | EM106: None | EN106: No | EO106: 0 | EP106: 0 | EQ106: No | ES106: Yes | EU106: Yes | EV106: No lighting | EW106: Site Management | EY106: access to services distribution shelter relief assistance | EZ106: No | FA106: None | FB106: Yes | FC106: Kitchen sets | FD106: Emergency shelter kits | FE106: Bedding sets | FF106: Yes | FG106: Drought | FH106: During 2017 | FI106: 0 | FJ106: 0 | FK106: 0 | FL106: No
A107: SO685 | B107: Arra'ad Conflict | C107: 14 | D107: 2018-11-10 | E107: Dekow Muktar | F107: Male | G107: Somali | H107: Liben | I107: Dolo Odo | J107: Bardaaley | K107: 4.161879021 | L107: 42.05407197 | M107: Yes | P107: Spontaneous camp/site | R107: 2018-06-17 | S107: Unknown | T107: Yes | U107: Public/Government | X107: Yes | Y107: 1 | Z107: Yes | AA107: Adar sheik hassan | AB107: 0901591401 | AC107: Yes | AD107: Government | AF107: Kebele Adminstration | AG107: Sheik ahmed aden | AH107: 0985125109 | AI107: No | AJ107: Yes | AK107: Yes | AL107: Yes | AM107: Yes | AN107: Yes | AO107: Yes | AP107: Yes | AQ107: Oromia | AR107: Guji | AS107: Adola | AT107: Shali | AU107: Oromia | AV107: Guji | AW107: Girja (Harenfema) | AX107: Ganale,Qorja | AY107: 300 | AZ107: 165 | BA107: 240 | BB107: 135 | BC107: 165 | BD107: 90 | BE107: 795 | BF107: 225 | BG107: 225 | BH107: 225 | BI107: 120 | BJ107: 195 | BK107: 990 | BL107: 1785 | BM107: 23 | BN107: 6 | BO107: 4 | BP107: 10 | BQ107: 1 | BR107: 0 | BS107: 0 | BT107: 0 | BU107: 0 | BV107: 0 | BW107: 43268 | BX107: 43278 | BZ107: No | CA107: accessibility lack of food house damaged destroyed lack of security safety | CB107: None | CC107: > 75% | CD107: None | CE107: None | CF107: None | CG107: Off-site (> 20 minutes) | CH107: Surface water sources (ponds/canals/river/lake/birkat) | CL107: > 15 liters | CM107: Suspended solids | CO107: Good (Hygienic) | CP107: 4 | CQ107: No | CS107: No | CT107: No | CU107: No waste disposal system | CW107: Yes | CY107: Yes, Offsite | CZ107: No | DA107: Food Assistance | DC107: No | DD107: No | DE107: No | DF107: Malaria | DH107: Pneumonia | DJ107: Diarrhea | DL107: No | DR107: No | DV107: Pastoralism | DX107: 0 | DY107: No | DZ107: Within the month | EA107: No | EB107: No | EC107: No | EE107: Yes | EF107: No | EG107: Self organized | EI107: None | EJ107: No | EK107: None | EL107: No | EM107: None | EN107: No | EO107: 0 | EP107: 0 | EQ107: No | ES107: Yes | EU107: Yes | EV107: No lighting | EW107: Local Leader | EY107: access to services shelter how to get information | EZ107: No | FA107: < 25% | FB107: Yes | FC107: Emergency shelter kits | FD107: Kitchen sets | FE107: Bedding sets | FF107: Yes | FG107: Conflict | FH107: In 2018 | FI107: 0 | FJ107: 0 | FK107: 0 | FL107: Yes | FM107: Offsite | FN107: 3-5km
A108: SO684 | B108: Arra'ad Drought | C108: 14 | D108: 2018-11-10 | E108: Dekow Muktar | F108: Male | G108: Somali | H108: Liben | I108: Dolo Odo | J108: Bardaaley | K108: 4.160242608 | L108: 42.04967521 | M108: Yes | P108: Spontaneous camp/site | R108: 2018-06-17 | S108: Unknown | T108: Yes | U108: Public/Government | X108: Yes | Y108: 1 | Z108: Yes | AA108: Salado hassan | AB108: XXXX | AC108: Yes | AD108: Government | AF108: Kebele Adminstration | AG108: Farah aden | AH108: 0904814725 | AI108: No | AJ108: Yes | AK108: Yes | AL108: Yes | AM108: Yes | AN108: Yes | AO108: Yes | AP108: Yes | AQ108: Somali | AR108: Liben | AS108: Dolo Odo | AT108: Makinajab,garbab, | AU108: Somali | AV108: Liben | AW108: Dolo Odo | AX108: Abdilajis | AY108: 150 | AZ108: 113 | BA108: 75 | BB108: 75 | BC108: 83 | BD108: 83 | BE108: 429 | BF108: 98 | BG108: 90 | BH108: 98 | BI108: 90 | BJ108: 98 | BK108: 474 | BL108: 903 | BM108: 36 | BN108: 14 | BO108: 6 | BP108: 8 | BQ108: 1 | BR108: 0 | BS108: 0 | BT108: 0 | BU108: 0 | BV108: 0 | BW108: 43268 | BX108: 43277 | BZ108: No | CA108: accessibility lack of food house damaged destroyed lack of security safety | CB108: None | CC108: > 75% | CD108: None | CE108: None | CF108: None | CG108: Off-site (> 20 minutes) | CH108: Surface water sources (ponds/canals/river/lake/birkat) | CL108: > 15 liters | CM108: Suspended solids | CO108: Good (Hygienic) | CP108: 4 | CQ108: Yes | CS108: No | CT108: No | CU108: No waste disposal system | CW108: Yes | CY108: Yes, Offsite | CZ108: No | DA108: Food Assistance | DC108: No | DD108: No | DE108: No | DF108: Malaria | DH108: Pneumonia | DJ108: Diarrhea | DL108: No | DR108: No | DV108: Pastoralism | DX108: 0 | DY108: No | DZ108: Within the month | EA108: No | EB108: No | EC108: No | EE108: Yes | EF108: No | EG108: Self organized | EI108: None | EJ108: No | EK108: None | EL108: No | EM108: None | EN108: No | EO108: 0 | EP108: 0 | EQ108: No | ES108: Yes | EU108: Yes | EV108: No lighting | EW108: Local Leader | EY108: access to services shelter how to get information | EZ108: No | FA108: < 25% | FB108: Yes | FC108: Emergency shelter kits | FD108: Kitchen sets | FE108: Bedding sets | FF108: Yes | FG108: Drought | FH108: In 2018 | FI108: 0 | FJ108: 0 | FK108: 0 | FL108: Yes | FM108: Onsite | FN108: 3-5km
A109: SO700 | B109: Arro Madow | C109: 14 | D109: 2018-11-17 | E109: Dekow Muktar | F109: Male | G109: Somali | H109: Liben | I109: Deka Seftu | J109: 02 kebele | K109: 5.225661685 | L109: 39.92425637 | M109: Yes | P109: Spontaneous camp/site | R109: 2018-08-10 | S109: Unknown | T109: Yes | U109: Public/Government | X109: Yes | Y109: 1 | Z109: Yes | AA109: A bass sheikh mahamed | AB109: XXXX | AC109: Yes | AD109: Government | AF109: Kebele Adminstration | AG109: Muhumed hasan weydow | AH109: 0960914745 | AI109: No | AJ109: Yes | AK109: Yes | AL109: Yes | AM109: Yes | AN109: Yes | AO109: Yes | AP109: Yes | AQ109: Oromia | AR109: Guji | AS109: Aga Wayu | AT109: Burukaro,Buru,ajarso | AU109: Oromia | AV109: Bale | AW109: Meda Welabu | AX109: Don,arab | AY109: 210 | AZ109: 158 | BA109: 95 | BB109: 105 | BC109: 126 | BD109: 116 | BE109: 600 | BF109: 137 | BG109: 105 | BH109: 126 | BI109: 158 | BJ109: 116 | BK109: 642 | BL109: 1242 | BM109: 0 | BN109: 35 | BO109: 42 | BP109: 3 | BQ109: 3 | BR109: 0 | BS109: 1 | BT109: 0 | BU109: 0 | BV109: 0 | BW109: 43322 | BX109: 43418 | BZ109: No | CA109: accessibility lack of food house damaged destroyed lack of security safety | CB109: None | CC109: > 75% | CD109: None | CE109: None | CF109: None | CG109: Off-site (> 20 minutes) | CH109: Surface water sources (ponds/canals/river/lake/birkat) | CL109: 5-10 liters | CO109: No toilets | CQ109: No | CT109: No | CU109: No waste disposal system | CW109: Yes | CY109: No | CZ109: No | DA109: Host Community Donation | DC109: No | DD109: No | DE109: No | DF109: Malaria | DH109: Pneumonia | DJ109: Diarrhea | DL109: Yes | DN109: On-site (< 3 km) | DO109: Government | DQ109: No | DR109: No | DV109: Pastoralism | DX109: 0 | DY109: No | EA109: Yes | EB109: No | EC109: No | EE109: Yes | EF109: No | EG109: Self organized | EI109: None | EJ109: No | EK109: physical assault denial of resources | EL109: No | EM109: child physical abuse child labor | EN109: No | EO109: 0 | EP109: 0 | EQ109: No | ES109: Yes | EU109: Yes | EV109: No lighting | EW109: Local Leader | EY109: access to services shelter how to get information | EZ109: No | FA109: < 25% | FB109: Yes | FC109: Emergency shelter kits | FD109: Kitchen sets | FE109: Bedding sets | FF109: Yes | FG109: Conflict | FH109: In 2018 | FI109: 0 | FJ109: 0 | FK109: 0 | FL109: Yes | FM109: Offsite | FN109: 3-5km
A110: OR827 | B110: Arsi Negele Town | C110: 14 | D110: 2018-11-06 | E110: Gifto wakessa | F110: Female | G110: Oromia | H110: West Arsi | I110: Arsi Negele | J110: 03 kebele | K110: 7.35140253 | L110: 38.67641589 | M110: Yes | P110: Host community/families | R110: 2017-09-12 | S110: Unknown | T110: Yes | U110: Public/Government | X110: Yes | Y110: 0 | Z110: Yes | AA110: Aliyi Tasho | AB110: 09 88 07 73 10 | AC110: Yes | AD110: Government | AF110: ARSI NEGELE DRM OFFICE | AG110: Mamo Oliyo | AH110: 09 11 57 05 02 | AI110: Yes | AJ110: Yes | AK110: Yes | AL110: Yes | AM110: Yes | AN110: No | AO110: Yes | AP110: Yes | AQ110: Somali | AR110: Fafan | AS110: Jijiga | AT110: 06 kebele | AU110: Somali | AV110: Liben | AW110: Moyale | AX110: 08 kebele | AY110: 22 | AZ110: 2 | BA110: 1 | BB110: 0 | BC110: 28 | BD110: 0 | BE110: 31 | BF110: 6 | BG110: 1 | BH110: 0 | BI110: 5 | BJ110: 0 | BK110: 12 | BL110: 43 | BM110: 0 | BN110: 2 | BO110: 3 | BP110: 0 | BQ110: 0 | BR110: 0 | BS110: 0 | BT110: 1 | BU110: 0 | BV110: 0 | BW110: 42990 | BX110: 43133 | BZ110: No | CA110: lack of food lack of security safety no livelihood basic infrastructures damage | CB110: None | CC110: < 25% | CD110: None | CE110: > 75% | CF110: > 75% | CG110: On-site (< 20 minutes) | CH110: Water taps from piped network | CL110: < 5 liters | CO110: Not so good (not hygienic) | CP110: 3 | CQ110: No | CS110: No | CT110: No | CU110: No waste disposal system | CW110: Yes | CY110: Yes, On Site | CZ110: Yes | DA110: Food Assistance | DC110: No | DD110: No | DE110: No | DF110: Diarrhea | DH110: Pneumonia | DJ110: None | DL110: Yes | DN110: On-site (< 3 km) | DO110: Government | DQ110: Yes | DR110: No | DV110: Daily Laborer | DX110: 0 | DY110: No | DZ110: Within the month | EA110: No | EB110: No | EC110: No | EE110: Yes | EF110: No | EG110: Local authorities | EI110: None | EJ110: No | EK110: None | EL110: No | EM110: None | EN110: No | EO110: 0 | EP110: 0 | EQ110: Yes | ES110: Yes | EU110: Yes | EV110: Yes, there is lighting but it is NOT adequate | EW110: Authorities | EY110: distribution registration shelter | EZ110: No | FA110: None | FB110: Yes | FC110: Emergency shelter kits | FD110: Bedding sets | FE110: Kitchen sets | FF110: Unknown | FG110: Conflict | FH110: During 2017 | FI110: 0 | FJ110: 0 | FK110: 0 | FL110: Yes | FM110: Onsite | FN110: < 1km
A111: AF196 | B111: Asade | C111: 14 | D111: 2018-11-14 | E111: Ahmed Abdella | F111: Male | G111: Afar | H111: Kilbati (Zone 2) | I111: Megale | J111: Aradu | K111: 12.69940622 | L111: 39.85931173 | M111: Yes | P111: Spontaneous camp/site | R111: 2017-02-28 | S111: Unknown | T111: Yes | U111: Public/Government | X111: Yes | Y111: 1 | Z111: Yes | AA111: Mohammed utana | AB111: XXXX | AC111: Yes | AD111: Government | AF111: Kebele Administration | AG111: Ahmed Ali | AH111: XXXX | AI111: No | AJ111: Yes | AK111: Yes | AL111: Yes | AM111: Yes | AN111: No | AO111: Yes | AP111: No | AQ111: Afar | AR111: Kilbati (Zone 2) | AS111: Megale | AT111: Aradu | AY111: 280 | AZ111: 154 | BA111: 182 | BB111: 98 | BC111: 280 | BD111: 14 | BE111: 728 | BF111: 98 | BG111: 112 | BH111: 84 | BI111: 280 | BJ111: 42 | BK111: 616 | BL111: 1344 | BM111: 0 | BN111: 15 | BO111: 23 | BP111: 0 | BQ111: 0 | BR111: 0 | BS111: 0 | BT111: 0 | BU111: 0 | BV111: 0 | BW111: 42794 | BX111: 43078 | BZ111: No | CA111: lack of food lack of security safety | CB111: None | CC111: 51-75 % | CD111: None | CE111: None | CF111: None | CG111: On-site (< 20 minutes) | CH111: Unprotected springs | CL111: 10-15 liters | CM111: Suspended solids | CO111: No toilets | CQ111: No | CT111: No | CU111: No waste disposal system | CW111: Yes | CY111: Yes, Offsite | CZ111: No | DA111: Cultivated/Sale of Livestock | DC111: No | DD111: No | DE111: No | DF111: Other | DG111: Eye deases | DH111: Other | DI111: Common Cold | DJ111: Malaria | DL111: Yes | DN111: Off-site (< 3 km) | DO111: Government | DQ111: Yes | DR111: No | DV111: Pastoralism | DX111: 0 | DY111: No | DZ111: > 3 months ago | EA111: Yes | EB111: No | EC111: No | EE111: Yes | EF111: No | EG111: Police/Militia | EI111: None | EJ111: No | EK111: None | EL111: No | EM111: None | EN111: No | EO111: 0 | EP111: 0 | EQ111: Yes | ES111: Yes | EU111: Yes | EV111: No lighting | EW111: Families/Friends | EY111: access to services shelter safety and security | EZ111: No | FA111: None | FB111: Yes | FC111: Kitchen sets | FD111: Bedding sets | FE111: Hygiene kits | FF111: Yes | FG111: Conflict | FH111: During 2017 | FI111: 0 | FJ111: 0 | FK111: 0 | FL111: Yes | FM111: Offsite | FN111: 1-2km
A112: SO234 | B112: Asbuli | C112: 14 | D112: 2018-11-06 | E112: Ahmed Jama Ege | F112: Male | G112: Somali | H112: Siti | I112: Erer | J112: Asbuli | K112: 9.983278671 | L112: 41.16386636 | M112: Yes | P112: Spontaneous camp/site | R112: 2015-04-01 | S112: Unknown | T112: Yes | U112: Public/Government | X112: Yes | Y112: 2 | Z112: Yes | AA112: Shared Omar | AB112: XXXX | AC112: Yes | AD112: Government | AF112: Asbuli | AG112: Awale Mohamed Omar | AH112: 0915072797 | AI112: Yes | AJ112: Yes | AK112: Yes | AL112: Yes | AM112: Yes | AN112: Yes | AO112: Yes | AP112: Yes | AQ112: Somali | AR112: Siti | AS112: Erer | AT112: Danaane | AU112: Somali | AV112: Siti | AW112: Erer | AX112: Bondara | AY112: 1605 | AZ112: 1043 | BA112: 1003 | BB112: 1204 | BC112: 1485 | BD112: 241 | BE112: 4976 | BF112: 923 | BG112: 1083 | BH112: 843 | BI112: 1605 | BJ112: 201 | BK112: 4655 | BL112: 9631 | BM112: 0 | BN112: 272 | BO112: 191 | BP112: 7 | BQ112: 3 | BR112: 0 | BS112: 2 | BT112: 67 | BU112: 0 | BV112: 9 | BW112: 42095 | BX112: 42530 | BZ112: No | CA112: accessibility lack of food house damaged destroyed no livelihood | CB112: None | CC112: 51-75 % | CD112: None | CE112: None | CF112: None | CG112: Off-site (< 20 minutes) | CH112: Surface water sources (ponds/canals/river/lake/birkat) | CL112: < 5 liters | CM112: Suspended solids | CO112: Good (Hygienic) | CP112: 24 | CQ112: No | CS112: Yes | CT112: No | CU112: Burning | CW112: Yes | CY112: Yes, On Site | CZ112: Yes | DA112: Cash Assistance | DC112: Yes | DD112: No | DE112: No | DF112: Malaria | DH112: UTI | DJ112: Pneumonia | DL112: Yes | DN112: On-site (< 3 km) | DO112: Government | DQ112: Yes | DR112: No | DV112: Pastoralism | DX112: 0 | DY112: No | DZ112: > 3 months ago | EA112: Yes | EB112: Yes 25-50% | EC112: No | EE112: Yes | EF112: No | EG112: Local authorities | EI112: None | EJ112: No | EK112: None | EL112: No | EM112: None | EN112: No | EO112: 0 | EP112: 0 | EQ112: No | ES112: Yes | EU112: Yes | EV112: No lighting | EW112: Site Management | EY112: access to services distribution registration shelter | EZ112: No | FA112: < 25% | FB112: Yes | FC112: Emergency shelter kits | FD112: Bedding sets | FE112: Hygiene kits | FF112: Yes | FG112: Drought | FH112: Before 2017 | FI112: 0 | FJ112: 0 | FK112: 0 | FL112: Yes | FM112: Offsite | FN112: 1-2km
A113: OR808 | B113: Aseko Town | C113: 14 | D113: 2018-11-15 | E113: Melaku Alemu | F113: Male | G113: Oromia | H113: Arsi | I113: Aseko | J113: Aseko 01 kebele | K113: 8.50542331 | L113: 40.026546 | M113: Yes | P113: Host community/families | R113: 2017-09-16 | S113: Unknown | T113: Yes | U113: Public/Government | X113: Yes | Y113: 0 | Z113: Yes | AA113: Dita Ibrahim | AB113: 0941361418 | AC113: Yes | AD113: Government | AF113: Aseko woreda Disaster Resk Menagement Office | AG113: Sultan Safeno | AH113: 0923310251 | AI113: Yes | AJ113: Yes | AK113: Yes | AL113: Yes | AM113: Yes | AN113: No | AO113: Yes | AP113: Yes | AQ113: Somali | AR113: Fafan | AS113: Jijiga | AT113: 01 | AU113: Somali | AV113: Fafan | AW113: Jijiga | AX113: 03 | AY113: 22 | AZ113: 9 | BA113: 9 | BB113: 7 | BC113: 18 | BD113: 0 | BE113: 43 | BF113: 6 | BG113: 4 | BH113: 3 | BI113: 14 | BJ113: 0 | BK113: 27 | BL113: 70 | BM113: 0 | BN113: 4 | BO113: 6 | BP113: 0 | BQ113: 2 | BR113: 0 | BS113: 0 | BT113: 2 | BU113: 0 | BV113: 0 | BW113: 42994 | BX113: 43164 | BZ113: No | CA113: house damaged destroyed lack of security safety no livelihood | CB113: None | CC113: None | CD113: None | CE113: 25-50 % | CF113: > 75% | CG113: On-site (< 20 minutes) | CH113: Surface water sources (ponds/canals/river/lake/birkat) | CL113: 5-10 liters | CO113: Not so good (not hygienic) | CP113: 10 | CQ113: No | CS113: No | CT113: No | CU113: No waste disposal system | CW113: No | CY113: Yes, On Site | CZ113: Yes | DA113: Food Assistance | DC113: Yes | DD113: No | DE113: No | DF113: Scabies | DH113: None | DJ113: None | DL113: Yes | DN113: On-site (< 3 km) | DO113: Government | DQ113: Yes | DR113: No | DV113: Petty Trade | DX113: 0 | DY113: No | DZ113: Last month | EA113: No | EB113: No | EC113: No | EE113: Yes | EF113: No | EG113: Police/Militia | EI113: None | EJ113: No | EK113: None | EL113: No | EM113: None | EN113: No | EO113: 0 | EP113: 0 | EQ113: Yes | ES113: Yes | EU113: Yes | EV113: Yes, there is lighting but it is NOT adequate | EW113: Site Management | EY113: access to services distribution shelter safety and security how to get information relief assistance | EZ113: No | FA113: None | FB113: Yes | FC113: Emergency shelter kits | FD113: Bedding sets | FE113: Kitchen sets | FF113: No | FG113: Conflict | FH113: During 2017 | FI113: 0 | FJ113: 0 | FK113: 0 | FL113: Yes | FM113: Onsite | FN113: < 1km
A114: SO235 | B114: Asli | C114: 14 | D114: 2018-11-08 | E114: Ahmed Jama Ege | F114: Male | G114: Somali | H114: Siti | I114: Afdem | J114: Asli | K114: 9.805617653 | L114: 40.92175328 | M114: Yes | P114: Spontaneous camp/site | R114: 2015-08-02 | S114: Unknown | T114: Yes | U114: Public/Government | X114: Yes | Y114: 2 | Z114: Yes | AA114: Abdulahi Mouse Farah | AB114: XXXX | AC114: Yes | AD114: Government | AF114: Asli | AG114: Ibrahim Omar Mohamed | AH114: 0928051301 | AI114: Yes | AJ114: Yes | AK114: Yes | AL114: Yes | AM114: Yes | AN114: Yes | AO114: Yes | AP114: Yes | AQ114: Somali | AR114: Siti | AS114: Afdem | AT114: Harta | AU114: Somali | AV114: Siti | AW114: Afdem | AX114: Faraw | AY114: 430 | AZ114: 215 | BA114: 237 | BB114: 366 | BC114: 409 | BD114: 65 | BE114: 1292 | BF114: 194 | BG114: 280 | BH114: 280 | BI114: 430 | BJ114: 108 | BK114: 1292 | BL114: 2584 | BM114: 0 | BN114: 33 | BO114: 66 | BP114: 0 | BQ114: 6 | BR114: 0 | BS114: 5 | BT114: 22 | BU114: 1 | BV114: 2 | BW114: 42218 | BX114: 42452 | BZ114: No | CA114: accessibility lack of food house damaged destroyed no livelihood | CB114: None | CC114: 51-75 % | CD114: None | CE114: None | CF114: None | CG114: Off-site (> 20 minutes) | CH114: Water taps from piped network | CL114: 5-10 liters | CO114: No toilets | CQ114: No | CT114: No | CU114: Garbage pit | CW114: Yes | CY114: Yes, On Site | CZ114: No | DA114: Cash Assistance | DC114: Yes | DD114: No | DE114: No | DF114: Pneumonia | DH114: Diarrhea | DJ114: UTI | DL114: Yes | DN114: On-site (< 3 km) | DO114: Government | DQ114: Yes | DR114: No | DV114: Pastoralism | DX114: 0 | DY114: No | DZ114: > 3 months ago | EA114: Yes | EB114: Yes 25-50% | EC114: No | EE114: Yes | EF114: No | EG114: Local authorities | EI114: None | EJ114: No | EK114: None | EL114: No | EM114: None | EN114: No | EO114: 0 | EP114: 0 | EQ114: No | ES114: Yes | EU114: Yes | EV114: No lighting | EW114: Site Management | EY114: access to services distribution registration shelter | EZ114: No | FA114: < 25% | FB114: Yes | FC114: Emergency shelter kits | FD114: Kitchen sets | FE114: Bedding sets | FF114: Yes | FG114: Drought | FH114: Before 2017 | FI114: 0 | FJ114: 0 | FK114: 0 | FL114: Yes | FM114: Onsite | FN114: < 1km
A115: TG256 | B115: Atsela | C115: 14 | D115: 2018-11-08 | E115: Teklu Kidanu | F115: Male | G115: Tigray | H115: Southern | I115: Imba Alaje | J115: Atsela | K115: 12.92923871 | L115: 39.52573203 | M115: Yes | P115: Host community/families | R115: 2018-09-03 | S115: Unknown | T115: Yes | U115: Public/Government | X115: No | AC115: Yes | AD115: Government | AF115: Office of labor and social Affairs | AG115: Harnet Nega | AH115: 0914825909 | AI115: Yes | AJ115: Yes | AK115: Yes | AL115: Yes | AM115: Yes | AN115: Yes | AO115: Yes | AP115: Yes | AQ115: Oromia | AR115: Bunno Bedele | AS115: Gechi | AT115: Different Kebeles | AU115: Oromia | AV115: Bunno Bedele | AW115: Bedele Town | AX115: Different Kebeles | AY115: 42 | AZ115: 4 | BA115: 7 | BB115: 1 | BC115: 24 | BD115: 4 | BE115: 40 | BF115: 2 | BG115: 4 | BH115: 1 | BI115: 19 | BJ115: 2 | BK115: 28 | BL115: 68 | BM115: 0 | BN115: 1 | BO115: 1 | BP115: 2 | BQ115: 0 | BR115: 0 | BS115: 2 | BT115: 1 | BU115: 0 | BV115: 0 | BW115: 43346 | BX115: 43407 | BZ115: No | CA115: house damaged destroyed lack of security safety no livelihood | CB115: None | CC115: None | CD115: None | CE115: < 25% | CF115: 25-50 % | CG115: On-site (< 20 minutes) | CH115: Protected wells (hand pumps/motorized boreholes) | CL115: 5-10 liters | CO115: No toilets | CQ115: No | CT115: No | CU115: No waste disposal system | CW115: Yes | CY115: Yes, Offsite | CZ115: Yes | DA115: Other | DB115: Daily labor | DC115: Yes | DD115: No | DE115: No | DF115: Diarrhea | DH115: Other | DI115: Acute Upper Respiratory Tract Infection | DJ115: Other | DK115: Eye infections | DL115: Yes | DN115: Off-site (< 3 km) | DO115: Government | DQ115: No | DR115: No | DV115: Daily Laborer | DX115: 2 | DY115: No | DZ115: Irregular | EA115: No | EB115: No | EC115: Yes | ED115: Abroad | EE115: Yes | EF115: No | EG115: Police/Militia | EI115: None | EJ115: No | EK115: denial of resources psycho emotional abuse | EL115: No | EM115: child psycho distress children separated | EN115: No | EO115: 0 | EP115: 0 | EQ115: Yes | ES115: Yes | EU115: Yes | EV115: Yes, there is lighting but it is NOT adequate | EW115: Authorities | EY115: access to services distribution shelter how to get information relief assistance situation in origin | EZ115: No | FA115: None | FB115: Yes | FC115: Bedding sets | FD115: Kitchen sets | FE115: Emergency shelter kits | FF115: Yes | FG115: Conflict | FH115: In 2018 | FI115: 1 | FJ115: 0 | FK115: 0 | FL115: Yes | FM115: Onsite | FN115: < 1km
A116: SO698 | B116: Awal | C116: 14 | D116: 2018-11-14 | E116: Abas Ali Ali Osman | F116: Male | G116: Somali | H116: Liben | I116: Deka Seftu | J116: Bunda Qaran | K116: 5.132220116 | L116: 39.87394512 | M116: Yes | P116: Spontaneous camp/site | R116: 2018-07-21 | S116: Unknown | T116: Yes | U116: Public/Government | X116: Yes | Y116: 1 | Z116: Yes | AA116: Ibrahim Abdiqadir | AB116: XXXX | AC116: Yes | AD116: Government | AF116: Kabale administration | AG116: Hared Ahmed | AH116: 0934728467 | AI116: Yes | AJ116: Yes | AK116: Yes | AL116: Yes | AM116: Yes | AN116: Yes | AO116: Yes | AP116: Yes | AQ116: Oromia | AR116: Guji | AS116: Goro Dola | AT116: Gofa yanbo | AU116: Oromia | AV116: Guji | AW116: Liben | AX116: Bururi | AY116: 73 | AZ116: 55 | BA116: 37 | BB116: 40 | BC116: 29 | BD116: 44 | BE116: 205 | BF116: 51 | BG116: 40 | BH116: 37 | BI116: 55 | BJ116: 47 | BK116: 230 | BL116: 435 | BM116: 0 | BN116: 5 | BO116: 10 | BP116: 2 | BQ116: 1 | BR116: 0 | BS116: 2 | BT116: 0 | BU116: 0 | BV116: 0 | BW116: 43302 | BX116: 43418 | BZ116: No | CA116: lack of food house damaged destroyed lack of security safety no livelihood | CB116: None | CC116: 51-75 % | CD116: None | CE116: None | CF116: None | CG116: On-site (< 20 minutes) | CH116: Surface water sources (ponds/canals/river/lake/birkat) | CL116: 5-10 liters | CM116: Odor/smell | CO116: No toilets | CQ116: No | CT116: No | CU116: No waste disposal system | CW116: No | CY116: No | CZ116: No | DA116: None | DC116: No | DD116: No | DE116: No | DF116: Malaria | DH116: Pneumonia | DJ116: Diarrhea | DL116: No | DR116: No | DV116: Pastoralism | DX116: 2 | DY116: No | EA116: No | EB116: No | EC116: No | EE116: Yes | EF116: No | EG116: Self organized | EI116: None | EJ116: No | EK116: None | EL116: No | EM116: None | EN116: No | EO116: 0 | EP116: 0 | EQ116: No | ES116: Yes | EU116: Yes | EV116: No lighting | EW116: Authorities | EY116: access to services distribution registration shelter safety and security how to get information relief assistance | EZ116: No | FA116: < 25% | FB116: Yes | FC116: Emergency shelter kits | FD116: Kitchen sets | FE116: Bedding sets | FF116: Yes | FG116: Conflict | FH116: In 2018 | FI116: 0 | FJ116: 0 | FK116: 0 | FL116: No
A117: SO561 | B117: Aware town | C117: 14 | D117: 2018-11-25 | E117: Dahir Mohamed | F117: Male | G117: Somali | H117: Jarar | I117: Aware | J117: 01 & 02 kebele | K117: 8.263317588 | L117: 44.16014261 | M117: Yes | P117: Spontaneous camp/site | R117: 2017-06-25 | S117: Unknown | T117: Yes | U117: Public/Government | X117: Yes | Y117: 2 | Z117: Yes | AA117: Muna Ibrahim | AB117: XXXX | AC117: Yes | AD117: Government | AF117: 01 &02 Kebele | AG117: Hassan Dahir | AH117: XXXX | AI117: Yes | AJ117: Yes | AK117: Yes | AL117: Yes | AM117: Yes | AN117: Yes | AO117: Yes | AP117: Yes | AQ117: Somali | AR117: Jarar | AS117: Aware | AT117: Tulolalis | AU117: Somali | AV117: Jarar | AW117: Aware | AX117: Aware town Area | AY117: 320 | AZ117: 240 | BA117: 176 | BB117: 208 | BC117: 288 | BD117: 80 | BE117: 992 | BF117: 176 | BG117: 224 | BH117: 112 | BI117: 336 | BJ117: 80 | BK117: 928 | BL117: 1920 | BM117: 0 | BN117: 43 | BO117: 52 | BP117: 4 | BQ117: 2 | BR117: 0 | BS117: 0 | BT117: 5 | BU117: 0 | BV117: 3 | BW117: 42911 | BX117: 43423 | BZ117: No | CA117: lack of food house damaged destroyed no livelihood | CB117: None | CC117: 25-50 % | CD117: None | CE117: None | CF117: None | CG117: Off-site (> 20 minutes) | CH117: Surface water sources (ponds/canals/river/lake/birkat) | CL117: 5-10 liters | CO117: No toilets | CQ117: No | CT117: No | CU117: No waste disposal system | CW117: Yes | CY117: Yes, On Site | CZ117: Yes | DA117: Food Assistance | DC117: Yes | DD117: Yes | DE117: Yes | DF117: Malaria | DH117: Pneumonia | DJ117: Other | DK117: Whooping cough | DL117: Yes | DN117: Off-site (< 3 km) | DO117: Government | DQ117: Yes | DR117: No | DV117: Pastoralism | DX117: 0 | DY117: No | DZ117: 2 months ago | EA117: No | EB117: Yes > 75% | EC117: No | EE117: Yes | EF117: No | EG117: Police/Militia | EI117: None | EJ117: No | EK117: None | EL117: No | EM117: child labor children separated | EN117: No | EO117: 0 | EP117: 0 | EQ117: No | ES117: Yes | EU117: Yes | EV117: No lighting | EW117: Site Management | EY117: access to services distribution shelter relief assistance | EZ117: No | FA117: < 25% | FB117: Yes | FC117: Emergency shelter kits | FD117: Mosquito nets | FE117: Bedding sets | FF117: Yes | FG117: Drought | FH117: During 2017 | FI117: 0 | FJ117: 0 | FK117: 0 | FL117: Yes | FM117: Offsite | FN117: 1-2km
A118: SO654 | B118: Aw-bare | C118: 14 | D118: 2018-11-15 | E118: Abass Ali Osman | F118: Male | G118: Somali | H118: Liben | I118: Deka Seftu | J118: Takad Hagar | K118: 5.007495335 | L118: 39.85814059 | M118: Yes | P118: Spontaneous camp/site | R118: 2017-08-13 | S118: Unknown | T118: Yes | U118: Public/Government | X118: Yes | Y118: 1 | Z118: Yes | AA118: Saytun mahmed ibrahim | AB118: XXXX | AC118: Yes | AD118: Government | AF118: Kabale Adminstration | AG118: Mahamed Ibrahim | AH118: 0985468611 | AI118: No | AJ118: Yes | AK118: Yes | AL118: Yes | AM118: Yes | AN118: Yes | AO118: Yes | AP118: Yes | AQ118: Oromia | AR118: Guji | AS118: Liben | AT118: Hadhayso | AU118: Oromia | AV118: Guji | AW118: Liben | AX118: Qorati | AY118: 450 | AZ118: 293 | BA118: 225 | BB118: 270 | BC118: 248 | BD118: 270 | BE118: 1306 | BF118: 315 | BG118: 293 | BH118: 248 | BI118: 315 | BJ118: 248 | BK118: 1419 | BL118: 2725 | BM118: 2 | BN118: 2 | BO118: 25 | BP118: 3 | BQ118: 2 | BR118: 0 | BS118: 3 | BT118: 4 | BU118: 1 | BV118: 1 | BW118: 42960 | BX118: 43089 | BZ118: No | CA118: accessibility lack of food house damaged destroyed lack of security safety no livelihood | CB118: None | CC118: 51-75 % | CD118: None | CE118: None | CF118: None | CG118: Off-site (> 20 minutes) | CH118: None | CL118: 5-10 liters | CM118: Odor/smell | CO118: Good (Hygienic) | CP118: 40 | CQ118: Yes | CS118: No | CT118: No | CU118: No waste disposal system | CW118: No | CY118: No | CZ118: No | DA118: Host Community Donation | DC118: Yes | DD118: Yes | DE118: Yes | DF118: Malaria | DH118: Pneumonia | DJ118: Diarrhea | DL118: No | DR118: Yes | DS118: < 1km | DT118: 25-50 % | DU118: Onsite | DV118: Pastoralism | DX118: 2 | DY118: No | EA118: No | EB118: Yes < 25% | EC118: No | EE118: Yes | EF118: No | EG118: Police/Militia | EI118: None | EJ118: No | EK118: None | EL118: No | EM118: None | EN118: No | EO118: 0 | EP118: 0 | EQ118: No | ES118: Yes | EU118: Yes | EV118: No lighting | EW118: Local Leader | EY118: access to services shelter relief assistance | EZ118: No | FA118: < 25% | FB118: Yes | FC118: Emergency shelter kits | FD118: Kitchen sets | FE118: Bedding sets | FF118: Yes | FG118: Conflict | FH118: During 2017 | FI118: 0 | FJ118: 0 | FK118: 0 | FL118: No
A119: AM189 | B119: Awera godana | C119: 14 | D119: 2018-11-28 | E119: Demeke Berhanu | F119: Male | G119: Amhara | H119: South Wollo | I119: Thehulederie | J119: 05 | K119: 11.32317026 | L119: 39.68285425 | M119: Yes | P119: Planned camp/site | R119: 2018-09-15 | S119: Unknown | T119: Yes | U119: Public/Government | X119: Yes | Y119: 1 | Z119: Yes | AA119: Said mohammed | AB119: 0913499281 | AC119: Yes | AD119: Government | AF119: Kebele 05 adminstration | AG119: Hailysues addise | AH119: XXXX | AI119: Yes | AJ119: No | AK119: No | AL119: Yes | AM119: Yes | AN119: No | AO119: No | AP119: Yes | AQ119: Somali | AR119: Fafan | AS119: Jijiga | AT119: Different | AU119: Oromia | AV119: Ilubabor | AW119: Badele Zuria | AX119: Different | AY119: 40 | AZ119: 8 | BA119: 8 | BB119: 6 | BC119: 24 | BD119: 4 | BE119: 50 | BF119: 10 | BG119: 12 | BH119: 8 | BI119: 36 | BJ119: 2 | BK119: 68 | BL119: 118 | BM119: 0 | BN119: 2 | BO119: 6 | BP119: 0 | BQ119: 0 | BR119: 0 | BS119: 0 | BT119: 7 | BU119: 0 | BV119: 3 | BW119: 43358 | BX119: 43408 | BZ119: No | CA119: accessibility house damaged destroyed lack of security safety no livelihood | CB119: None | CC119: None | CD119: 51-75 % | CE119: 25-50 % | CF119: 51-75 % | CG119: On-site (< 20 minutes) | CH119: Water taps from piped network | CL119: 5-10 liters | CM119: Suspended solids | CO119: Not so good (not hygienic) | CP119: 1 | CQ119: No | CS119: No | CT119: No | CU119: Burning | CW119: No | CY119: Yes, On Site | CZ119: Yes | DA119: Host Community Donation | DC119: Yes | DD119: No | DE119: No | DF119: Other | DG119: Thypoied | DH119: Diarrhea | DJ119: Scabies | DL119: Yes | DN119: On-site (< 3 km) | DO119: Government | DQ119: Yes | DR119: No | DV119: Daily Laborer | DX119: 10 | DY119: Unknown | DZ119: Within the month | EA119: No | EB119: No | EC119: No | EE119: Yes | EF119: No | EG119: Police/Militia | EI119: None | EJ119: No | EK119: None | EL119: No | EM119: None | EN119: No | EO119: 0 | EP119: 0 | EQ119: No | ES119: Yes | EU119: Yes | EV119: Yes, there is lighting but it is NOT adequate | EW119: Families/Friends | EY119: distribution shelter safety and security relief assistance | EZ119: No | FA119: 51-75 % | FB119: Yes | FC119: Bedding sets | FD119: Hygiene kits | FE119: Kitchen sets | FF119: No | FG119: Conflict | FH119: In 2018 | FI119: 0 | FJ119: 0 | FK119: 0 | FL119: Yes | FM119: Onsite | FN119: 1-2km
A120: SO196 | B120: Awjabur | C120: 14 | D120: 2018-11-28 | E120: Hassen Mohamed | F120: Male | G120: Somali | H120: Fafan | I120: Babile | J120: Ali Ethiopia | K120: 8.724696676 | L120: 42.37268324 | M120: Yes | P120: Spontaneous camp/site | R120: 2014-09-01 | S120: Unknown | T120: Yes | U120: Public/Government | X120: Yes | Y120: 2 | Z120: Yes | AA120: Shugri Ibrahim | AB120: XXXX | AC120: Yes | AD120: Government | AF120: Awjabur kebele Administration | AG120: Sabuur Abib Ibrahim | AH120: 0945670532 | AI120: Yes | AJ120: Yes | AK120: Yes | AL120: Yes | AM120: Yes | AN120: Yes | AO120: Yes | AP120: Yes | AQ120: Oromia | AR120: East Harerge | AS120: Golo Oda | AT120: Harira | AU120: Oromia | AV120: East Harerge | AW120: Meyu Muluke | AX120: Burqamayu | AY120: 370 | AZ120: 241 | BA120: 278 | BB120: 204 | BC120: 333 | BD120: 56 | BE120: 1112 | BF120: 315 | BG120: 241 | BH120: 148 | BI120: 352 | BJ120: 56 | BK120: 1112 | BL120: 2224 | BM120: 4 | BN120: 85 | BO120: 121 | BP120: 5 | BQ120: 6 | BR120: 0 | BS120: 2 | BT120: 1 | BU120: 1 | BV120: 1 | BW120: 41883 | BX120: 43424 | BZ120: No | CA120: accessibility lack of food house damaged destroyed lack of security safety no livelihood basic infrastructures damage | CB120: None | CC120: 25-50 % | CD120: None | CE120: None | CF120: None | CG120: Off-site (> 20 minutes) | CH120: Surface water sources (ponds/canals/river/lake/birkat) | CL120: 5-10 liters | CM120: Odor/smell | CO120: No toilets | CQ120: No | CT120: No | CU120: No waste disposal system | CW120: Yes | CY120: Yes, On Site | CZ120: Yes | DA120: Food Assistance | DC120: Yes | DD120: Yes | DE120: Yes | DF120: Diarrhea | DH120: Pneumonia | DJ120: UTI | DL120: Yes | DN120: Mobile Clinic/Health extension worker visit | DO120: NGO | DQ120: Yes | DR120: Yes | DS120: < 1km | DT120: 25-50 % | DU120: Onsite | DV120: Agro-Pastoralism | DX120: 0 | DY120: No | DZ120: 3 months ago | EA120: Yes | EB120: No | EC120: No | EE120: Yes | EF120: No | EG120: Police/Militia | EI120: None | EJ120: No | EK120: None | EL120: No | EM120: Child Labor | EN120: No | EO120: 0 | EP120: 0 | EQ120: No | ES120: Yes | EU120: Yes | EV120: No lighting | EW120: Authorities | EY120: access to services distribution registration shelter safety and security how to get information relief assistance | EZ120: No | FA120: < 25% | FB120: Yes | FC120: Emergency shelter kits | FD120: Bedding sets | FE120: Kitchen sets | FF120: Yes | FG120: Conflict | FH120: Before 2017 | FI120: 0 | FJ120: 0 | FK120: 0 | FL120: No
A121: SO440 | B121: Awlo Saar | C121: 14 | D121: 2018-11-04 | E121: Ali Abdi | F121: Male | G121: Somali | H121: Korahe | I121: Debeweyin | J121: Awlo-saar | K121: 6.000561979 | L121: 44.33641182 | M121: Yes | P121: Spontaneous camp/site | R121: 2017-01-10 | S121: Unknown | T121: Yes | U121: Public/Government | X121: Yes | Y121: 1 | Z121: Yes | AA121: Mohamed Arab | AB121: 0948638517 | AC121: Yes | AD121: Government | AF121: Awlo Saar | AG121: Abdi Muhumed Kilas | AH121: 0940639884 | AI121: Yes | AJ121: Yes | AK121: Yes | AL121: Yes | AM121: Yes | AN121: Yes | AO121: Yes | AP121: Yes | AQ121: Somali | AR121: Korahe | AS121: Debeweyin | AT121: Awlo Saar | AU121: Somali | AV121: Korahe | AW121: Debeweyin | AX121: Awlo Saar | AY121: 171 | AZ121: 68 | BA121: 154 | BB121: 120 | BC121: 197 | BD121: 17 | BE121: 556 | BF121: 77 | BG121: 111 | BH121: 111 | BI121: 171 | BJ121: 26 | BK121: 496 | BL121: 1052 | BM121: 0 | BN121: 47 | BO121: 72 | BP121: 8 | BQ121: 4 | BR121: 0 | BS121: 3 | BT121: 2 | BU121: 1 | BV121: 1 | BW121: 42745 | BX121: 43058 | BZ121: No | CA121: accessibility lack of food house damaged destroyed no livelihood | CB121: None | CC121: 25-50 % | CD121: None | CE121: None | CF121: None | CG121: Off-site (> 20 minutes) | CH121: Surface water sources (ponds/canals/river/lake/birkat) | CL121: 5-10 liters | CM121: Suspended solids | CO121: Good (Hygienic) | CP121: 18 | CQ121: Yes | CS121: Yes | CT121: No | CU121: Burning | CW121: Yes | CY121: Yes, On Site | CZ121: Yes | DA121: Food Assistance | DC121: Yes | DD121: Yes | DE121: Yes | DF121: Malaria | DH121: UTI | DJ121: Pneumonia | DL121: Yes | DN121: On-site (< 3 km) | DO121: Government | DQ121: No | DR121: No | DV121: Pastoralism | DX121: 0 | DY121: No | DZ121: Last month | EA121: No | EB121: Yes > 75% | EC121: No | EE121: Yes | EF121: No | EG121: Police/Militia | EI121: None | EJ121: No | EK121: None | EL121: No | EM121: None | EN121: No | EO121: 0 | EP121: 0 | EQ121: No | ES121: Yes | EU121: Yes | EV121: No lighting | EW121: Authorities | EY121: access to services distribution shelter how to get information | EZ121: No | FA121: None | FB121: Yes | FC121: Emergency shelter kits | FD121: Bedding sets | FE121: Kitchen sets | FF121: Yes | FG121: Drought | FH121: During 2017 | FI121: 0 | FJ121: 0 | FK121: 0 | FL121: Yes | FM121: Onsite | FN121: < 1km
A122: OR579 | B122: Awsherif | C122: 12 | D122: 2018-07-29 | E122: Chala Feyissa | F122: Male | G122: Oromia | H122: East Harerge | I122: Babile | J122: Awsherif | K122: 9.15515192 | L122: 42.37587827 | M122: Yes | P122: Host community/families | R122: 2017-09-15 | S122: Unknown | T122: Yes | U122: Public/Government | X122: Yes | Y122: 2 | Z122: Yes | AA122: Dastu Kalifa | AB122: Xxxx | AC122: Yes | AD122: Government | AF122: DRM Office | AG122: Abdusalam Mohamed | AH122: 948618232 | AI122: Yes | AJ122: Yes | AK122: Yes | AL122: Yes | AM122: Yes | AN122: No | AO122: Yes | AP122: Yes | AQ122: Somali | AR122: Fafan | AS122: Jijiga | AT122: Different kebele | AU122: Oromia | AV122: East Harerge | AW122: Babile | AX122: Awsherif | AY122: 175 | AZ122: 50 | BA122: 80 | BB122: 60 | BC122: 191 | BD122: 0 | BE122: 381 | BF122: 131 | BG122: 91 | BH122: 70 | BI122: 191 | BJ122: 10 | BK122: 493 | BL122: 874 | BM122: 0 | BN122: 5 | BO122: 30 | BP122: 0 | BQ122: 0 | BR122: 0 | BS122: 0 | BT122: 15 | BU122: 0 | BV122: 5 | BW122: 42993 | BX122: 42998 | BZ122: No | CA122: accessibility lack of food house damaged destroyed lack of security safety no livelihood | CB122: None | CC122: None | CD122: < 25% | CE122: > 75% | CF122: 25-50 % | CG122: On-site (> 20 minutes) | CH122: Protected wells (hand pumps/motorized boreholes) | CL122: < 5 liters | CO122: No toilets | CQ122: No | CT122: No | CU122: No waste disposal system | CW122: Yes | CY122: Yes, Offsite | CZ122: No | DA122: Food Assistance | DC122: No | DD122: No | DE122: No | DF122: Diarrhea | DH122: Pneumonia | DJ122: None | DL122: Yes | DN122: On-site (< 3 km) | DO122: Government | DQ122: No | DR122: No | DV122: Farming | DX122: 10 | DY122: Yes | DZ122: Within the month | EA122: Yes | EB122: Yes < 25% | EC122: No | EE122: Yes | EF122: No | EG122: Community leaders | EI122: None | EJ122: No | EK122: None | EL122: No | EM122: None | EN122: No | EO122: 0 | EP122: 0 | EQ122: No | ES122: No | EU122: No | EV122: Yes, there is lighting but it is NOT adequate | EW122: Families/Friends | EY122: access to services distribution shelter safety and security relief assistance situation in origin | EZ122: No | FA122: None | FB122: Yes | FC122: Emergency shelter kits | FD122: Bedding sets | FE122: Kitchen sets | FF122: No | FG122: Conflict | FH122: During 2017 | FI122: 2 | FJ122: 0 | FK122: 0 | FL122: Yes | FM122: Onsite | FN122: 1-2km
A123: OR661 | B123: Awubare | C123: 14 | D123: 2018-11-15 | E123: Chala Feyissa | F123: Male | G123: Oromia | H123: East Harerge | I123: Gursum | J123: Awubare | K123: 9.37033038 | L123: 42.32728533 | M123: Yes | P123: Host community/families | R123: 2017-09-16 | S123: Unknown | T123: Yes | U123: Public/Government | X123: Yes | Y123: 2 | Z123: Yes | AA123: Ahmed Mohamed | AB123: Xxxx | AC123: Yes | AD123: Government | AF123: DRM Office | AG123: Zeyidan Hassen | AH123: 0920435255 | AI123: Yes | AJ123: Yes | AK123: Yes | AL123: Yes | AM123: Yes | AN123: No | AO123: Yes | AP123: Yes | AQ123: Somali | AR123: Fafan | AS123: Jijiga | AT123: Different kebeles | AU123: Somali | AV123: Fafan | AW123: Aw-bare | AX123: Different kebeles | AY123: 37 | AZ123: 13 | BA123: 17 | BB123: 13 | BC123: 35 | BD123: 0 | BE123: 78 | BF123: 19 | BG123: 20 | BH123: 13 | BI123: 39 | BJ123: 0 | BK123: 91 | BL123: 169 | BM123: 0 | BN123: 0 | BO123: 7 | BP123: 0 | BQ123: 0 | BR123: 0 | BS123: 0 | BT123: 2 | BU123: 0 | BV123: 1 | BW123: 42994 | BX123: 42998 | BZ123: No | CA123: accessibility lack of food house damaged destroyed lack of security safety no livelihood | CB123: None | CC123: None | CD123: None | CE123: > 75% | CF123: > 75% | CG123: On-site (> 20 minutes) | CH123: Protected wells (hand pumps/motorized boreholes) | CL123: < 5 liters | CO123: No toilets | CQ123: No | CT123: No | CU123: No waste disposal system | CW123: Yes | CY123: Yes, Offsite | CZ123: Yes | DA123: Food Assistance | DC123: No | DD123: No | DE123: No | DF123: None | DH123: None | DJ123: None | DL123: Yes | DN123: On-site (< 3 km) | DO123: Government | DQ123: No | DR123: No | DV123: None | DX123: 0 | DY123: No | DZ123: Within the month | EA123: No | EB123: No | EC123: No | EE123: No | EF123: No | EI123: None | EJ123: No | EK123: None | EL123: No | EM123: None | EN123: No | EO123: 0 | EP123: 0 | EQ123: No | ES123: No | EU123: No | EV123: Yes, there is lighting but it is NOT adequate | EW123: Families/Friends | EY123: access to services distribution shelter safety and security relief assistance | EZ123: No | FA123: None | FB123: Yes | FC123: Emergency shelter kits | FD123: Kitchen sets | FE123: Bedding sets | FF123: No | FG123: Conflict | FH123: During 2017 | FI123: 1 | FJ123: 0 | FK123: 0 | FL123: Yes | FM123: Onsite | FN123: < 1km
A124: TG127 | B124: Axum Town | C124: 14 | D124: 2018-11-25 | E124: Mulugeta Shishay | F124: Male | G124: Tigray | H124: Central | I124: Axum | J124: Axum Town | K124: 14.12168657 | L124: 38.73325341 | M124: Yes | P124: Host community/families | R124: 2016-08-20 | S124: Unknown | T124: Yes | U124: Public/Government | X124: Yes | Y124: 1 | Z124: Yes | AA124: Kidane Naizgi | AB124: 0918804721 | AC124: Yes | AD124: Government | AF124: Woreda of Labour and Social Affair | AG124: Shishay Legesse | AH124: 0910334492 | AI124: Yes | AJ124: Yes | AK124: Yes | AL124: Yes | AM124: Yes | AN124: Yes | AO124: Yes | AP124: Yes | AQ124: Amhara | AR124: West Gonder | AS124: Metema | AT124: Different Kebeles | AU124: Amhara | AV124: West Gonder | AW124: Metema Yohanes City Administarion | AX124: Different Kebeles | AY124: 935 | AZ124: 160 | BA124: 232 | BB124: 110 | BC124: 695 | BD124: 9 | BE124: 1206 | BF124: 167 | BG124: 211 | BH124: 132 | BI124: 438 | BJ124: 11 | BK124: 959 | BL124: 2165 | BM124: 0 | BN124: 27 | BO124: 121 | BP124: 6 | BQ124: 15 | BR124: 0 | BS124: 20 | BT124: 69 | BU124: 0 | BV124: 71 | BW124: 42602 | BX124: 43425 | BZ124: No | CA124: lack of food house damaged destroyed lack of security safety no livelihood | CB124: None | CC124: None | CD124: None | CE124: 25-50 % | CF124: < 25% | CG124: On-site (< 20 minutes) | CH124: Surface water sources (ponds/canals/river/lake/birkat) | CL124: < 5 liters | CO124: Not so good (not hygienic) | CP124: 517 | CQ124: No | CS124: No | CT124: No | CU124: Garbage pit | CW124: Yes | CY124: Yes, On Site | CZ124: Yes | DA124: Other | DB124: Daily Labourer | DC124: Yes | DD124: No | DE124: No | DF124: Pneumonia | DH124: Diarrhea | DJ124: Malaria | DL124: Yes | DN124: On-site (< 3 km) | DO124: Government | DQ124: No | DR124: No | DV124: Daily Laborer | DX124: 6 | DY124: No | DZ124: Irregular | EA124: No | EB124: No | EC124: No | EE124: Yes | EF124: No | EG124: Police/Militia | EI124: None | EJ124: No | EK124: Psychological/Emotional abuse | EL124: No | EM124: child psycho distress child labor | EN124: No | EO124: 0 | EP124: 0 | EQ124: Yes | ES124: Yes | EU124: Yes | EV124: Yes, there is lighting but it is NOT adequate | EW124: Authorities | EY124: access to services distribution registration shelter safety and security how to get information relief assistance situation in origin | EZ124: No | FA124: None | FB124: Yes | FC124: Emergency shelter kits | FD124: Kitchen sets | FE124: Bedding sets | FF124: Yes | FG124: Conflict | FH124: Before 2017 | FI124: 5 | FJ124: 0 | FK124: 0 | FL124: Yes | FM124: Onsite | FN124: 1-2km
A125: TG159 | B125: Ayder | C125: 14 | D125: 2018-11-26 | E125: Asmelash Gebrehiwot | F125: Male | G125: Tigray | H125: Mekelle | I125: Ayder Sub City | J125: Ayder | K125: 13.5102203 | L125: 39.47132643 | M125: Yes | P125: Host community/families | R125: 2016-09-02 | S125: Unknown | T125: Yes | U125: Public/Government | X125: Yes | Y125: 0 | Z125: Yes | AA125: Gebrehiwot Zerai | AB125: 0941679438 | AC125: Yes | AD125: Government | AF125: Office of Labor and Social Affairs | AG125: Zewdu Gebremichael | AH125: 0914768811 | AI125: Yes | AJ125: Yes | AK125: Yes | AL125: Yes | AM125: Yes | AN125: Yes | AO125: Yes | AP125: Yes | AQ125: Oromia | AR125: West Arsi | AS125: Shashemene Zuria | AT125: Different Kebelles | AU125: Somali | AV125: Fafan | AW125: Jijiga | AX125: Different Kebelles | AY125: 1287 | AZ125: 174 | BA125: 114 | BB125: 68 | BC125: 924 | BD125: 21 | BE125: 1301 | BF125: 221 | BG125: 82 | BH125: 55 | BI125: 543 | BJ125: 12 | BK125: 913 | BL125: 2214 | BM125: 0 | BN125: 18 | BO125: 23 | BP125: 0 | BQ125: 5 | BR125: 0 | BS125: 24 | BT125: 13 | BU125: 0 | BV125: 112 | BW125: 42615 | BX125: 43414 | BZ125: No | CA125: house damaged destroyed lack of security safety no livelihood | CB125: None | CC125: None | CD125: None | CE125: < 25% | CF125: > 75% | CG125: On-site (< 20 minutes) | CH125: Water taps from piped network | CL125: < 5 liters | CO125: Not so good (not hygienic) | CP125: 86 | CQ125: No | CS125: No | CT125: No | CU125: Garbage pit | CW125: Yes | CY125: Yes, On Site | CZ125: Yes | DA125: Other | DB125: Daily Labor | DC125: Yes | DD125: No | DE125: No | DF125: Diarrhea | DH125: Scabies | DJ125: Malaria | DL125: Yes | DN125: On-site (< 3 km) | DO125: Government | DQ125: No | DR125: No | DV125: Daily Laborer | DX125: 4 | DY125: No | DZ125: Irregular | EA125: No | EB125: No | EC125: Yes | ED125: Abroad | EE125: Yes | EF125: No | EG125: Police/Militia | EI125: None | EJ125: No | EK125: denial of resources psycho emotional abuse | EL125: No | EM125: child psycho distress children separated | EN125: No | EO125: 0 | EP125: 0 | EQ125: Yes | ES125: Yes | EU125: Yes | EV125: Yes, there is lighting and it is adequate | EW125: Authorities | EY125: access to services distribution shelter relief assistance situation in origin | EZ125: No | FA125: None | FB125: Yes | FC125: Bedding sets | FD125: Kitchen sets | FE125: Emergency shelter kits | FF125: Yes | FG125: Conflict | FH125: Before 2017 | FI125: 0 | FJ125: 0 | FK125: 0 | FL125: Yes | FM125: Onsite | FN125: < 1km
